Body Name,Body,Service Area Catergorisation,Service Division Catergorisation,Responsible Unit,Expenses Type,Detailed Expenses Type,Expenses Code,Date,Transaction Number,Amount,Capital / Revenue,Supplier Name,Supplier ID
North East Lincolnshire Council,http://statistics.data.gov.uk/id/local-authority/00FC),Economy And Growth,Regeneration,Clee Hlf Townscape Heritage,Cap Land/Build-Build Enh Wrk,Cap Land/Build-Build Enh Wrk,YA102,22/02/2022,712744,5817,CAPITAL,CONTROL PANELS AND INSTALLATIONS LTD,148754
North East Lincolnshire Council,http://statistics.data.gov.uk/id/local-authority/00FC),Economy And Growth,Regeneration,Clee Hlf Townscape Heritage,Cap Land/Build-Build Enh Wrk,Cap Land/Build-Build Enh Wrk,YA102,17/02/2022,1008455,2568,CAPITAL,REDACTED PERSONAL INFORMATION,REDACTED PERSONAL INFORMATION
North East Lincolnshire Council,http://statistics.data.gov.uk/id/local-authority/00FC),Economy And Growth,Regeneration,Clee Hlf Townscape Heritage,Cap Infrastr-Build Enh Wrk,Cap Infrastr-Build Enh Wrk,YC102,22/02/2022,713132,4653.26,CAPITAL,CAG DEVELOPMENTS LTD,150541
North East Lincolnshire Council,http://statistics.data.gov.uk/id/local-authority/00FC),Economy And Growth,Regeneration,Clee Hlf Townscape Heritage,Cap Infrastr-Build Enh Wrk,Cap Infrastr-Build Enh Wrk,YC102,10/02/2022,711891,8899.99,CAPITAL,CAG DEVELOPMENTS LTD,150541
North East Lincolnshire Council,http://statistics.data.gov.uk/id/local-authority/00FC),Economy And Growth,Regeneration,Shiip Scheme,Cap Infrastr-Prof Fees,Cap Infrastr-Prof Fees,YC103,01/02/2022,709791,335,CAPITAL,LANDMARK CHAMBERS,102475
North East Lincolnshire Council,http://statistics.data.gov.uk/id/local-authority/00FC),Economy And Growth,Regeneration,Shiip Scheme,Cap Infrastr-Prof Fees,Cap Infrastr-Prof Fees,YC103,01/02/2022,709832,1100,CAPITAL,LANDMARK CHAMBERS,102475
North East Lincolnshire Council,http://statistics.data.gov.uk/id/local-authority/00FC),Economy And Growth,Regeneration,Shiip Scheme,Cap Infrastr-Prof Fees,Cap Infrastr-Prof Fees,YC103,15/02/2022,712252,875,CAPITAL,LANDMARK CHAMBERS,102475
North East Lincolnshire Council,http://statistics.data.gov.uk/id/local-authority/00FC),Economy And Growth,Regeneration,Shiip Scheme,Cap Infrastr-Prof Fees,Cap Infrastr-Prof Fees,YC103,15/02/2022,712605,15470.27,CAPITAL,BROWNE JACOBSON LLP,111781
North East Lincolnshire Council,http://statistics.data.gov.uk/id/local-authority/00FC),Economy And Growth,Regeneration,Shiip Scheme,Cap Infrastr-Build Enh Wrk,Cap Infrastr-Build Enh Wrk,YC102,03/02/2022,710470,625,CAPITAL,GOWN ENGINEERING LTD,148800
North East Lincolnshire Council,http://statistics.data.gov.uk/id/local-authority/00FC),Economy And Growth,Regeneration,Town Deal Investment,Cap Land/Build-Prof Fees,Cap Land/Build-Prof Fees,YA103,08/02/2022,711164,2277.24,CAPITAL,MOBILE MINI UK LTD,105081
North East Lincolnshire Council,http://statistics.data.gov.uk/id/local-authority/00FC),Economy And Growth,Regeneration,Town Deal Investment,Cap Land/Build-Prof Fees,Cap Land/Build-Prof Fees,YA103,15/02/2022,712265,1250,CAPITAL,BROWNE JACOBSON LLP,111781
North East Lincolnshire Council,http://statistics.data.gov.uk/id/local-authority/00FC),Economy And Growth,Regeneration,Central Clee Regeneration,Cap Infrastr-Build Enh Wrk,Cap Infrastr-Build Enh Wrk,YC102,18/02/2022,713137,5403,CAPITAL,J MCCANN & CO LTD,100841
North East Lincolnshire Council,http://statistics.data.gov.uk/id/local-authority/00FC),Economy And Growth,Regeneration,Europarc Fez,Cap Land/Build-Build Enh Wrk,Cap Land/Build-Build Enh Wrk,YA102,25/02/2022,714284,31107.23,CAPITAL,WYKELAND GROUP LTD,101729
North East Lincolnshire Council,http://statistics.data.gov.uk/id/local-authority/00FC),Economy And Growth,Regeneration,Cdf - Open For Culture,Cap Land/Build-Prof Fees,Cap Land/Build-Prof Fees,YA103,28/02/2022,714324,1000,CAPITAL,ENGIE SERVICES LTD,133267
North East Lincolnshire Council,http://statistics.data.gov.uk/id/local-authority/00FC),Economy And Growth,Regeneration,Future High Street Funds,Cap Land/Build-Prof Fees,Cap Land/Build-Prof Fees,YA103,01/02/2022,710016,9400,CAPITAL,MONTAGU EVANS LLP,145979
North East Lincolnshire Council,http://statistics.data.gov.uk/id/local-authority/00FC),Economy And Growth,Regeneration,Future High Street Funds,Cap Land/Build-Prof Fees,Cap Land/Build-Prof Fees,YA103,01/02/2022,710014,7680,CAPITAL,MONTAGU EVANS LLP,145979
North East Lincolnshire Council,http://statistics.data.gov.uk/id/local-authority/00FC),Economy And Growth,Regeneration,Future High Street Funds,Cap Land/Build-Prof Fees,Cap Land/Build-Prof Fees,YA103,01/02/2022,710242,10000,CAPITAL,MONTAGU EVANS LLP,145979
North East Lincolnshire Council,http://statistics.data.gov.uk/id/local-authority/00FC),Economy And Growth,Regeneration,Future High Street Funds,Cap Land/Build-Prof Fees,Cap Land/Build-Prof Fees,YA103,01/02/2022,710287,6700,CAPITAL,MONTAGU EVANS LLP,145979
North East Lincolnshire Council,http://statistics.data.gov.uk/id/local-authority/00FC),Economy And Growth,Regeneration,Future High Street Funds,Cap Land/Build-Prof Fees,Cap Land/Build-Prof Fees,YA103,01/02/2022,710017,12455,CAPITAL,QUEENSBERRY REAL ESTATE (UK) LTD,150696
North East Lincolnshire Council,http://statistics.data.gov.uk/id/local-authority/00FC),Economy And Growth,Regeneration,Future High Street Funds,Cap Land/Build-Prof Fees,Cap Land/Build-Prof Fees,YA103,14/02/2022,712295,12455,CAPITAL,QUEENSBERRY REAL ESTATE (UK) LTD,150696
North East Lincolnshire Council,http://statistics.data.gov.uk/id/local-authority/00FC),Economy And Growth,Regeneration,Future High Street Funds,Cap Land/Build-Prof Fees,Cap Land/Build-Prof Fees,YA103,16/02/2022,711012,3808,CAPITAL,FREETHS LLP,149375
North East Lincolnshire Council,http://statistics.data.gov.uk/id/local-authority/00FC),Economy And Growth,Regeneration,Future High Street Funds,Cap Land/Build-Prof Fees,Cap Land/Build-Prof Fees,YA103,07/02/2022,711014,1707,CAPITAL,FREETHS LLP,149375
North East Lincolnshire Council,http://statistics.data.gov.uk/id/local-authority/00FC),Economy And Growth,Regeneration,Future High Street Funds,Cap Land/Build-Prof Fees,Cap Land/Build-Prof Fees,YA103,07/02/2022,711025,5278,CAPITAL,FREETHS LLP,149375
North East Lincolnshire Council,http://statistics.data.gov.uk/id/local-authority/00FC),Economy And Growth,Regeneration,Towns Fund,Cap Land/Build-Build Enh Wrk,Cap Land/Build-Build Enh Wrk,YA102,15/02/2022,712600,1100,CAPITAL,GOWN ENGINEERING LTD,148800
North East Lincolnshire Council,http://statistics.data.gov.uk/id/local-authority/00FC),Economy And Growth,Regeneration,Towns Fund,Cap Infrastr-Build Enh Wrk,Cap Infrastr-Build Enh Wrk,YC102,21/02/2022,713226,39285.71,CAPITAL,ENGIE SERVICES LTD,133267
North East Lincolnshire Council,http://statistics.data.gov.uk/id/local-authority/00FC),Economy And Growth,Regeneration,Towns Fund,Cap Infrastr-Build Enh Wrk,Cap Infrastr-Build Enh Wrk,YC102,28/02/2022,714005,20000,CAPITAL,ENGIE SERVICES LTD,133267
North East Lincolnshire Council,http://statistics.data.gov.uk/id/local-authority/00FC),Economy And Growth,Housing Highways And Transport,Local Transport Plan Schemes,Cap Infrastr-Build Enh Wrk,Cap Infrastr-Build Enh Wrk,YC102,28/02/2022,714010,857.4,CAPITAL,ENGIE SERVICES LTD,133267
North East Lincolnshire Council,http://statistics.data.gov.uk/id/local-authority/00FC),Economy And Growth,Housing Highways And Transport,Local Transport Plan Schemes,Cap Infrastr-Prof Fees,Cap Infrastr-Prof Fees,YC103,23/02/2022,713225,58000,CAPITAL,ENGIE SERVICES LTD,133267
North East Lincolnshire Council,http://statistics.data.gov.uk/id/local-authority/00FC),Economy And Growth,Housing Highways And Transport,Local Transport Plan Schemes,Cap Land/Build-Build Enh Wrk,Cap Land/Build-Build Enh Wrk,YA102,10/02/2022,710619,8141.35,CAPITAL,J MCCANN & CO LTD,100841
North East Lincolnshire Council,http://statistics.data.gov.uk/id/local-authority/00FC),Economy And Growth,Housing Highways And Transport,Local Transport Plan Schemes,Cap Land/Build-Build Enh Wrk,Cap Land/Build-Build Enh Wrk,YA102,10/02/2022,710620,2096.34,CAPITAL,J MCCANN & CO LTD,100841
North East Lincolnshire Council,http://statistics.data.gov.uk/id/local-authority/00FC),Economy And Growth,Housing Highways And Transport,Local Transport Plan Schemes,Cap Infrastr-Build Enh Wrk,Cap Infrastr-Build Enh Wrk,YC102,03/02/2022,710351,1090,CAPITAL,INTELLIGENT DATA COLLECTION LTD,137877
North East Lincolnshire Council,http://statistics.data.gov.uk/id/local-authority/00FC),Economy And Growth,Housing Highways And Transport,Local Transport Plan Schemes,Cap Infrastr-Prof Fees,Cap Infrastr-Prof Fees,YC103,08/02/2022,711168,1920,CAPITAL,DELTA-SIMONS ENVIRONMENTAL CONSULTANTS LTD,122455
North East Lincolnshire Council,http://statistics.data.gov.uk/id/local-authority/00FC),Economy And Growth,Housing Highways And Transport,Local Transport Plan Schemes,Cap Infrastr-Prof Fees,Cap Infrastr-Prof Fees,YC103,04/02/2022,694853,2409,CAPITAL,NATIONWIDE DATA COLLECTION,127290
North East Lincolnshire Council,http://statistics.data.gov.uk/id/local-authority/00FC),Economy And Growth,Housing Highways And Transport,Local Transport Plan Schemes,Cap Infrastr-Build Enh Wrk,Cap Infrastr-Build Enh Wrk,YC102,08/02/2022,711122,1500,CAPITAL,ENGIE SERVICES LTD,133267
North East Lincolnshire Council,http://statistics.data.gov.uk/id/local-authority/00FC),Economy And Growth,Housing Highways And Transport,Local Transport Plan Schemes,Cap Infrastr-Purchase,Cap Infrastr-Purchase,YC101,03/02/2022,710458,8716.83,CAPITAL,R2P UK SYSTEMS LTD,124772
North East Lincolnshire Council,http://statistics.data.gov.uk/id/local-authority/00FC),Economy And Growth,Housing Highways And Transport,Local Transport Plan Schemes,Cap Infrastr-Purchase,Cap Infrastr-Purchase,YC101,18/02/2022,713217,4500,CAPITAL,R2P UK SYSTEMS LTD,124772
North East Lincolnshire Council,http://statistics.data.gov.uk/id/local-authority/00FC),Economy And Growth,Housing Highways And Transport,Local Transport Plan Schemes,Cap Infrastr-Build Enh Wrk,Cap Infrastr-Build Enh Wrk,YC102,04/02/2022,710618,11835.57,CAPITAL,SPECIALIST SURFACING LIMITED,100579
North East Lincolnshire Council,http://statistics.data.gov.uk/id/local-authority/00FC),Economy And Growth,Housing Highways And Transport,Local Transport Plan Schemes,Cap Infrastr-Build Enh Wrk,Cap Infrastr-Build Enh Wrk,YC102,01/02/2022,709789,1046,CAPITAL,ONEWAY TM LIMITED,128602
North East Lincolnshire Council,http://statistics.data.gov.uk/id/local-authority/00FC),Economy And Growth,Housing Highways And Transport,Local Transport Plan Schemes,Cap Infrastr-Build Enh Wrk,Cap Infrastr-Build Enh Wrk,YC102,07/02/2022,710621,13929.76,CAPITAL,J MCCANN & CO LTD,100841
North East Lincolnshire Council,http://statistics.data.gov.uk/id/local-authority/00FC),Economy And Growth,Housing Highways And Transport,Local Transport Plan Schemes,Cap Infrastr-Purchase,Cap Infrastr-Purchase,YC101,04/02/2022,690922,830,CAPITAL,NATIONWIDE DATA COLLECTION,127290
North East Lincolnshire Council,http://statistics.data.gov.uk/id/local-authority/00FC),Economy And Growth,Housing Highways And Transport,Local Transport Plan Schemes,Cap Infrastr-Purchase,Cap Infrastr-Purchase,YC101,24/02/2022,712613,265,CAPITAL,J MCCANN & CO LTD,100841
North East Lincolnshire Council,http://statistics.data.gov.uk/id/local-authority/00FC),Economy And Growth,Housing Highways And Transport,Local Transport Plan Schemes,Cap Infrastr-Build Enh Wrk,Cap Infrastr-Build Enh Wrk,YC102,04/02/2022,710624,9665.08,CAPITAL,EC SURFACING LTD,125951
North East Lincolnshire Council,http://statistics.data.gov.uk/id/local-authority/00FC),Economy And Growth,Housing Highways And Transport,Housing Assist Grants And Loan,Cap Grants To O/Side Sources,Cap Grants To O/Side Sources,YJ101,15/02/2022,712044,1648.33,CAPITAL,ENGIE SERVICES LTD,133267
North East Lincolnshire Council,http://statistics.data.gov.uk/id/local-authority/00FC),Economy And Growth,Housing Highways And Transport,Housing Assist Grants And Loan,Cap Grants To O/Side Sources,Cap Grants To O/Side Sources,YJ101,17/02/2022,712664,1962.91,CAPITAL,PACIFICA GROUP,149391
North East Lincolnshire Council,http://statistics.data.gov.uk/id/local-authority/00FC),Economy And Growth,Housing Highways And Transport,Housing Assist Grants And Loan,Cap Grants To O/Side Sources,Cap Grants To O/Side Sources,YJ101,08/02/2022,710919,3078,CAPITAL,FRED MARGARSON LTD,100592
North East Lincolnshire Council,http://statistics.data.gov.uk/id/local-authority/00FC),Economy And Growth,Housing Highways And Transport,Housing Assist Grants And Loan,Cap Grants To O/Side Sources,Cap Grants To O/Side Sources,YJ101,23/02/2022,713901,1600,CAPITAL,P & P PLUMBING & HEATING SERVICES (UK) LTD,142857
North East Lincolnshire Council,http://statistics.data.gov.uk/id/local-authority/00FC),Economy And Growth,Housing Highways And Transport,Housing Assist Grants And Loan,Cap Grants To O/Side Sources,Cap Grants To O/Side Sources,YJ101,17/02/2022,712676,651.36,CAPITAL,PACIFICA GROUP,149391
North East Lincolnshire Council,http://statistics.data.gov.uk/id/local-authority/00FC),Economy And Growth,Housing Highways And Transport,Housing Assist Grants And Loan,Cap Grants To O/Side Sources,Cap Grants To O/Side Sources,YJ101,11/02/2022,711942,2819.33,CAPITAL,EMPOWER EMPLOYABILITY MENTORING PROGRAMME,118831
North East Lincolnshire Council,http://statistics.data.gov.uk/id/local-authority/00FC),Economy And Growth,Housing Highways And Transport,Gllep Junction Improvement,Cap Infrastr-Purchase,Cap Infrastr-Purchase,YC101,24/02/2022,714056,24812.18,CAPITAL,C R REYNOLDS (CONSTRUCTION) LTD,103021
North East Lincolnshire Council,http://statistics.data.gov.uk/id/local-authority/00FC),Economy And Growth,Housing Highways And Transport,Gllep Junction Improvement,Cap Infrastr-Purchase,Cap Infrastr-Purchase,YC101,17/02/2022,713135,29861.81,CAPITAL,PBS CONSTRUCTION (NORTH EAST) LTD,127459
North East Lincolnshire Council,http://statistics.data.gov.uk/id/local-authority/00FC),Economy And Growth,Housing Highways And Transport,Gllep Junction Improvement,Cap Infrastr-Build Enh Wrk,Cap Infrastr-Build Enh Wrk,YC102,17/02/2022,709359,33400.82,CAPITAL,ENGIE SERVICES LTD,133267
North East Lincolnshire Council,http://statistics.data.gov.uk/id/local-authority/00FC),Economy And Growth,Housing Highways And Transport,A18 Laceby To Ludborough,Cap Land/Build-Build Enh Wrk,Cap Land/Build-Build Enh Wrk,YA102,25/02/2022,707642,216975.57,CAPITAL,C R REYNOLDS (CONSTRUCTION) LTD,103021
North East Lincolnshire Council,http://statistics.data.gov.uk/id/local-authority/00FC),Economy And Growth,Housing Highways And Transport,A18 Laceby To Ludborough,Cap Infrastr-Build Enh Wrk,Cap Infrastr-Build Enh Wrk,YC102,17/02/2022,694969,1354.41,CAPITAL,ENGIE SERVICES LTD,133267
North East Lincolnshire Council,http://statistics.data.gov.uk/id/local-authority/00FC),Economy And Growth,Housing Highways And Transport,A18 Laceby To Ludborough,Cap Infrastr-Build Enh Wrk,Cap Infrastr-Build Enh Wrk,YC102,17/02/2022,708414,56189.64,CAPITAL,ENGIE SERVICES LTD,133267
North East Lincolnshire Council,http://statistics.data.gov.uk/id/local-authority/00FC),Economy And Growth,Housing Highways And Transport,Accelerated Cons Funding,Cap Infrastr-Build Enh Wrk,Cap Infrastr-Build Enh Wrk,YC102,18/02/2022,713133,3396,CAPITAL,SOUTHAM SERVICES (LINCS) LTD,140951
North East Lincolnshire Council,http://statistics.data.gov.uk/id/local-authority/00FC),Economy And Growth,Housing Highways And Transport,Accelerated Cons Funding,Cap Land/Build-Build Enh Wrk,Cap Land/Build-Build Enh Wrk,YA102,01/02/2022,709626,1759.2,CAPITAL,ANGLIAN WATER SERVICES LIMITED,125923
North East Lincolnshire Council,http://statistics.data.gov.uk/id/local-authority/00FC),Economy And Growth,Housing Highways And Transport,Accelerated Cons Funding,Cap Land/Build-Build Enh Wrk,Cap Land/Build-Build Enh Wrk,YA102,23/02/2022,711950,8695,CAPITAL,NETWORK ARCHAEOLOGY,147380
North East Lincolnshire Council,http://statistics.data.gov.uk/id/local-authority/00FC),Economy And Growth,Housing Highways And Transport,Accelerated Cons Funding,Cap Land/Build-Build Enh Wrk,Cap Land/Build-Build Enh Wrk,YA102,24/02/2022,703249,15604.33,CAPITAL,NORTHERN POWERGRID (YORKSHIRE) PLC,108328
North East Lincolnshire Council,http://statistics.data.gov.uk/id/local-authority/00FC),Economy And Growth,Housing Highways And Transport,Accelerated Cons Funding,Cap Land/Build-Build Enh Wrk,Cap Land/Build-Build Enh Wrk,YA102,24/02/2022,714260,20770.79,CAPITAL,VIRGIN MEDIA LTD,101831
North East Lincolnshire Council,http://statistics.data.gov.uk/id/local-authority/00FC),Economy And Growth,Housing Highways And Transport,Accelerated Cons Funding,Cap Land/Build-Prof Fees,Cap Land/Build-Prof Fees,YA103,28/02/2022,714006,3000,CAPITAL,ENGIE SERVICES LTD,133267
North East Lincolnshire Council,http://statistics.data.gov.uk/id/local-authority/00FC),Economy And Growth,Housing Highways And Transport,Corporation Rd Bridge Refurb,Cap Land/Build-Build Enh Wrk,Cap Land/Build-Build Enh Wrk,YA102,21/02/2022,713223,5103.33,CAPITAL,DYER AND BUTLER LTD,147083
North East Lincolnshire Council,http://statistics.data.gov.uk/id/local-authority/00FC),Economy And Growth,Housing Highways And Transport,Corporation Rd Bridge Refurb,Cap Land/Build-Build Enh Wrk,Cap Land/Build-Build Enh Wrk,YA102,01/02/2022,709476,3228.6,CAPITAL,HIRST CONSERVATION,108145
North East Lincolnshire Council,http://statistics.data.gov.uk/id/local-authority/00FC),Economy And Growth,Housing Highways And Transport,Corporation Rd Bridge Refurb,Cap Land/Build-Build Enh Wrk,Cap Land/Build-Build Enh Wrk,YA102,17/02/2022,713138,2795,CAPITAL,J MCCANN & CO LTD,100841
North East Lincolnshire Council,http://statistics.data.gov.uk/id/local-authority/00FC),Economy And Growth,Housing Highways And Transport,Corporation Rd Bridge Refurb,Cap Infrastr-Build Enh Wrk,Cap Infrastr-Build Enh Wrk,YC102,08/02/2022,711097,3500,CAPITAL,ENGIE SERVICES LTD,133267
North East Lincolnshire Council,http://statistics.data.gov.uk/id/local-authority/00FC),Economy And Growth,Housing Highways And Transport,Corporation Rd Bridge Refurb,Cap Infrastr-Build Enh Wrk,Cap Infrastr-Build Enh Wrk,YC102,15/02/2022,712034,8000,CAPITAL,ENGIE SERVICES LTD,133267
North East Lincolnshire Council,http://statistics.data.gov.uk/id/local-authority/00FC),Economy And Growth,Housing Highways And Transport,Grimsby-Immingham Ext Cycleway,Cap Infrastr-Build Enh Wrk,Cap Infrastr-Build Enh Wrk,YC102,15/02/2022,712606,450,CAPITAL,J MCCANN & CO LTD,100841
North East Lincolnshire Council,http://statistics.data.gov.uk/id/local-authority/00FC),Resources,Law Governance And Assets,Backlog Maintenance,Cap Land/Build-Build Enh Wrk,Cap Land/Build-Build Enh Wrk,YA102,14/02/2022,692136,690,CAPITAL,RSB FLOORING CONTRACTORS LTD,103570
North East Lincolnshire Council,http://statistics.data.gov.uk/id/local-authority/00FC),Resources,Law Governance And Assets,Backlog Maintenance,Cap Land/Build-Build Enh Wrk,Cap Land/Build-Build Enh Wrk,YA102,01/02/2022,710273,2964.5,CAPITAL,ENGIE SERVICES LTD,133267
North East Lincolnshire Council,http://statistics.data.gov.uk/id/local-authority/00FC),Resources,Law Governance And Assets,Backlog Maintenance,Cap Land/Build-Build Enh Wrk,Cap Land/Build-Build Enh Wrk,YA102,01/02/2022,710269,340,CAPITAL,ENGIE SERVICES LTD,133267
North East Lincolnshire Council,http://statistics.data.gov.uk/id/local-authority/00FC),Resources,Law Governance And Assets,Backlog Maintenance,Cap Land/Build-Build Enh Wrk,Cap Land/Build-Build Enh Wrk,YA102,01/02/2022,710306,2285,CAPITAL,ENGIE SERVICES LTD,133267
North East Lincolnshire Council,http://statistics.data.gov.uk/id/local-authority/00FC),Resources,Law Governance And Assets,Backlog Maintenance,Cap Land/Build-Build Enh Wrk,Cap Land/Build-Build Enh Wrk,YA102,01/02/2022,710305,2329,CAPITAL,ENGIE SERVICES LTD,133267
North East Lincolnshire Council,http://statistics.data.gov.uk/id/local-authority/00FC),Resources,Law Governance And Assets,Backlog Maintenance,Cap Land/Build-Build Enh Wrk,Cap Land/Build-Build Enh Wrk,YA102,01/02/2022,706408,1945,CAPITAL,ENGIE SERVICES LTD,133267
North East Lincolnshire Council,http://statistics.data.gov.uk/id/local-authority/00FC),Resources,Law Governance And Assets,Backlog Maintenance,Cap Land/Build-Build Enh Wrk,Cap Land/Build-Build Enh Wrk,YA102,01/02/2022,706408,674.46,CAPITAL,ENGIE SERVICES LTD,133267
North East Lincolnshire Council,http://statistics.data.gov.uk/id/local-authority/00FC),Resources,Law Governance And Assets,Backlog Maintenance,Cap Land/Build-Build Enh Wrk,Cap Land/Build-Build Enh Wrk,YA102,03/02/2022,710443,15211.62,CAPITAL,ENGIE SERVICES LTD,133267
North East Lincolnshire Council,http://statistics.data.gov.uk/id/local-authority/00FC),Resources,Law Governance And Assets,Backlog Maintenance,Cap Land/Build-Build Enh Wrk,Cap Land/Build-Build Enh Wrk,YA102,14/02/2022,710965,38700,CAPITAL,GRADE 3 LIMITED,101924
North East Lincolnshire Council,http://statistics.data.gov.uk/id/local-authority/00FC),Resources,Law Governance And Assets,Backlog Maintenance,Cap Land/Build-Build Enh Wrk,Cap Land/Build-Build Enh Wrk,YA102,01/02/2022,710272,10834,CAPITAL,ENGIE SERVICES LTD,133267
North East Lincolnshire Council,http://statistics.data.gov.uk/id/local-authority/00FC),Resources,Law Governance And Assets,Backlog Maintenance,Cap Land/Build-Build Enh Wrk,Cap Land/Build-Build Enh Wrk,YA102,01/02/2022,710294,1000,CAPITAL,ENGIE SERVICES LTD,133267
North East Lincolnshire Council,http://statistics.data.gov.uk/id/local-authority/00FC),Resources,Law Governance And Assets,Backlog Maintenance,Cap Land/Build-Build Enh Wrk,Cap Land/Build-Build Enh Wrk,YA102,01/02/2022,710307,11944,CAPITAL,ENGIE SERVICES LTD,133267
North East Lincolnshire Council,http://statistics.data.gov.uk/id/local-authority/00FC),Resources,Law Governance And Assets,Backlog Maintenance,Cap Land/Build-Build Enh Wrk,Cap Land/Build-Build Enh Wrk,YA102,01/02/2022,710354,755,CAPITAL,LINCS ELECTRICAL SERVICES LTD,102044
North East Lincolnshire Council,http://statistics.data.gov.uk/id/local-authority/00FC),Resources,Law Governance And Assets,Backlog Maintenance,Cap Land/Build-Build Enh Wrk,Cap Land/Build-Build Enh Wrk,YA102,04/02/2022,710623,16119.88,CAPITAL,LINCS ELECTRICAL SERVICES LTD,102044
North East Lincolnshire Council,http://statistics.data.gov.uk/id/local-authority/00FC),Resources,Law Governance And Assets,Property Rationalisation Prog,Cap Land/Build-Build Enh Wrk,Cap Land/Build-Build Enh Wrk,YA102,04/02/2022,710622,1450,CAPITAL,LINCS ELECTRICAL SERVICES LTD,102044
North East Lincolnshire Council,http://statistics.data.gov.uk/id/local-authority/00FC),Resources,Law Governance And Assets,Property Rationalisation Prog,Cap Land/Build-Build Enh Wrk,Cap Land/Build-Build Enh Wrk,YA102,14/02/2022,711621,2153.76,CAPITAL,PROFESSIONAL TELECOM INSTALLATIONS LTD,143057
North East Lincolnshire Council,http://statistics.data.gov.uk/id/local-authority/00FC),Resources,Law Governance And Assets,Property Rationalisation Prog,Cap Land/Build-Build Enh Wrk,Cap Land/Build-Build Enh Wrk,YA102,09/02/2022,702035,590,CAPITAL,W R CULLUM,100811
North East Lincolnshire Council,http://statistics.data.gov.uk/id/local-authority/00FC),Resources,Law Governance And Assets,Playing Pitch Reprovision,Cap Land/Build-Build Enh Wrk,Cap Land/Build-Build Enh Wrk,YA102,14/02/2022,708595,695,CAPITAL,INSPIRED ECOLOGY LTD,143701
North East Lincolnshire Council,http://statistics.data.gov.uk/id/local-authority/00FC),Resources,Law Governance And Assets,Playing Pitch Reprovision,Cap Land/Build-Build Enh Wrk,Cap Land/Build-Build Enh Wrk,YA102,01/02/2022,710270,814,CAPITAL,ENGIE SERVICES LTD,133267
North East Lincolnshire Council,http://statistics.data.gov.uk/id/local-authority/00FC),Resources,Law Governance And Assets,Poplar Road Bus Unit Expansion,Cap Land/Build-Prof Fees,Cap Land/Build-Prof Fees,YA103,01/02/2022,710245,1000,CAPITAL,ENGIE SERVICES LTD,133267
North East Lincolnshire Council,http://statistics.data.gov.uk/id/local-authority/00FC),Resources,Law Governance And Assets,Poplar Road Bus Unit Expansion,Cap Land/Build-Prof Fees,Cap Land/Build-Prof Fees,YA103,14/02/2022,709897,3480,CAPITAL,LOCAL TRANSPORT PROJECTS LTD,121248
North East Lincolnshire Council,http://statistics.data.gov.uk/id/local-authority/00FC),Resources,Law Governance And Assets,Business Centre Improvements,Cap Land/Build-Prof Fees,Cap Land/Build-Prof Fees,YA103,01/02/2022,710323,3000,CAPITAL,ENGIE SERVICES LTD,133267
North East Lincolnshire Council,http://statistics.data.gov.uk/id/local-authority/00FC),Resources,Policy Strategy And Resources,Ict Refresh,Cap Land/Build-Build Enh Wrk,Cap Land/Build-Build Enh Wrk,YA102,18/02/2022,708580,3161,CAPITAL,TOTAL COMPUTER NETWORKS LTD,141310
North East Lincolnshire Council,http://statistics.data.gov.uk/id/local-authority/00FC),Resources,Policy Strategy And Resources,Ict Refresh,Cap Land/Build-Build Enh Wrk,Cap Land/Build-Build Enh Wrk,YA102,14/02/2022,711622,2278.1,CAPITAL,PROFESSIONAL TELECOM INSTALLATIONS LTD,143057
North East Lincolnshire Council,http://statistics.data.gov.uk/id/local-authority/00FC),Resources,Policy Strategy And Resources,Ict Refresh,Cap Land/Build-Build Enh Wrk,Cap Land/Build-Build Enh Wrk,YA102,01/02/2022,709821,22351.2,CAPITAL,XMA LIMITED,100699
North East Lincolnshire Council,http://statistics.data.gov.uk/id/local-authority/00FC),Resources,Policy Strategy And Resources,Ict Refresh,Cap Land/Build-Build Enh Wrk,Cap Land/Build-Build Enh Wrk,YA102,02/02/2022,710257,600,CAPITAL,TOTAL COMPUTER NETWORKS LTD,141310
North East Lincolnshire Council,http://statistics.data.gov.uk/id/local-authority/00FC),Resources,Policy Strategy And Resources,Ict Refresh,Cap Land/Build-Build Enh Wrk,Cap Land/Build-Build Enh Wrk,YA102,04/02/2022,710635,285,CAPITAL,TOTAL COMPUTER NETWORKS LTD,141310
North East Lincolnshire Council,http://statistics.data.gov.uk/id/local-authority/00FC),Resources,Policy Strategy And Resources,Ict Refresh,Cap Land/Build-Build Enh Wrk,Cap Land/Build-Build Enh Wrk,YA102,21/02/2022,712332,275,CAPITAL,TOTAL COMPUTER NETWORKS LTD,141310
North East Lincolnshire Council,http://statistics.data.gov.uk/id/local-authority/00FC),Resources,Policy Strategy And Resources,Ict Refresh,Cap Land/Build-Build Enh Wrk,Cap Land/Build-Build Enh Wrk,YA102,24/02/2022,714004,1409.88,CAPITAL,PROFESSIONAL TELECOM INSTALLATIONS LTD,143057
North East Lincolnshire Council,http://statistics.data.gov.uk/id/local-authority/00FC),Resources,Policy Strategy And Resources,System Investment,Cap Veh Plt Eqp-Purchase,Cap Veh Plt Eqp-Purchase,YB101,07/02/2022,711043,746.66,CAPITAL,MHR INTERNATIONAL UK LTD,102633
North East Lincolnshire Council,http://statistics.data.gov.uk/id/local-authority/00FC),Resources,Policy Strategy And Resources,System Investment,Cap Infrastr-Prof Fees,Cap Infrastr-Prof Fees,YC103,15/02/2022,712040,1080,CAPITAL,MHR INTERNATIONAL UK LTD,102633
North East Lincolnshire Council,http://statistics.data.gov.uk/id/local-authority/00FC),Resources,Policy Strategy And Resources,System Investment,Cap Infrastr-Prof Fees,Cap Infrastr-Prof Fees,YC103,15/02/2022,712040,1089.06,CAPITAL,MHR INTERNATIONAL UK LTD,102633
North East Lincolnshire Council,http://statistics.data.gov.uk/id/local-authority/00FC),Environment,Environment,Fleet Replacement Programme,Cap Veh Plt Eqp-Purchase,Cap Veh Plt Eqp-Purchase,YB101,07/02/2022,710632,3600,CAPITAL,MGB,101544
North East Lincolnshire Council,http://statistics.data.gov.uk/id/local-authority/00FC),Environment,Environment,Fleet Replacement Programme,Cap Veh Plt Eqp-Purchase,Cap Veh Plt Eqp-Purchase,YB101,09/02/2022,711235,9920,CAPITAL,MGB,101544
North East Lincolnshire Council,http://statistics.data.gov.uk/id/local-authority/00FC),Environment,Environment,Fleet Replacement Programme,Cap Veh Plt Eqp-Purchase,Cap Veh Plt Eqp-Purchase,YB101,17/02/2022,711985,3600,CAPITAL,MGB,101544
North East Lincolnshire Council,http://statistics.data.gov.uk/id/local-authority/00FC),Environment,Environment,Enhancement Bereavement Serv,Cap Land/Build-Build Enh Wrk,Cap Land/Build-Build Enh Wrk,YA102,11/02/2022,711956,25566.7,CAPITAL,TOPCON BUILDING LTD,144162
North East Lincolnshire Council,http://statistics.data.gov.uk/id/local-authority/00FC),Environment,Environment,Enhancement Bereavement Serv,Cap Land/Build-Build Enh Wrk,Cap Land/Build-Build Enh Wrk,YA102,09/02/2022,709676,940,CAPITAL,JAMES COLES & SONS LTD,100758
North East Lincolnshire Council,http://statistics.data.gov.uk/id/local-authority/00FC),Environment,Environment,Enhancement Bereavement Serv,Cap Infrastr-Build Enh Wrk,Cap Infrastr-Build Enh Wrk,YC102,28/02/2022,714285,125407.32,CAPITAL,SPECIALIST SURFACING LIMITED,100579
North East Lincolnshire Council,http://statistics.data.gov.uk/id/local-authority/00FC),Environment,Environment,Enhancement Bereavement Serv,Cap Land/Build-Build Enh Wrk,Cap Land/Build-Build Enh Wrk,YA102,14/02/2022,711630,1060,CAPITAL,PRODAR SURVEYS LTD,103159
North East Lincolnshire Council,http://statistics.data.gov.uk/id/local-authority/00FC),Environment,Environment,Depot Rationalisation,Cap Land/Build-Purchase,Cap Land/Build-Purchase,YA101,10/02/2022,710804,909.6,CAPITAL,CLEVELAND CONTAINERS LTD,149901
North East Lincolnshire Council,http://statistics.data.gov.uk/id/local-authority/00FC),Environment,Environment,Depot Rationalisation,Cap Land/Build-Purchase,Cap Land/Build-Purchase,YA101,23/02/2022,711955,19166.64,CAPITAL,F R TOWNSEND & CO LTD,104217
North East Lincolnshire Council,http://statistics.data.gov.uk/id/local-authority/00FC),Environment,Environment,Depot Rationalisation,Cap Land/Build-Purchase,Cap Land/Build-Purchase,YA101,22/02/2022,712023,1480,CAPITAL,DELTA-SIMONS ENVIRONMENTAL CONSULTANTS LTD,122455
North East Lincolnshire Council,http://statistics.data.gov.uk/id/local-authority/00FC),Environment,Environment,Scartho Cem Lodge/Waiting Rm,Cap Land/Build-Build Enh Wrk,Cap Land/Build-Build Enh Wrk,YA102,03/02/2022,710428,2000,CAPITAL,ENGIE SERVICES LTD,133267
North East Lincolnshire Council,http://statistics.data.gov.uk/id/local-authority/00FC),Environment,Environment,Scartho Cem Lodge/Waiting Rm,Cap Land/Build-Build Enh Wrk,Cap Land/Build-Build Enh Wrk,YA102,23/02/2022,713890,4454.12,CAPITAL,CRAFTSMAN RESTORATION LTD,147087
North East Lincolnshire Council,http://statistics.data.gov.uk/id/local-authority/00FC),Environment,Environment,Resort Management,Cap Land/Build-Build Enh Wrk,Cap Land/Build-Build Enh Wrk,YA102,09/02/2022,709819,556.88,CAPITAL,MOBILE MINI UK LTD,105081
North East Lincolnshire Council,http://statistics.data.gov.uk/id/local-authority/00FC),Environment,Environment,Resort Management,Cap Infrastr-Purchase,Cap Infrastr-Purchase,YC101,03/02/2022,710481,2520,CAPITAL,EDEN TELECOM LTD,135601
North East Lincolnshire Council,http://statistics.data.gov.uk/id/local-authority/00FC),Environment,Environment,Public Sector Decarbonisation,Cap Land/Build-Build Enh Wrk,Cap Land/Build-Build Enh Wrk,YA102,15/02/2022,712336,41514.2,CAPITAL,U ENERGY (YORKSHIRE) LTD,149597
North East Lincolnshire Council,http://statistics.data.gov.uk/id/local-authority/00FC),Environment,Environment,Regulatory Serv Mgt System,Cap Veh Plt Eqp-Purchase,Cap Veh Plt Eqp-Purchase,YB101,08/02/2022,709340,11954.97,CAPITAL,ARCUS GLOBAL LIMITED,111799
North East Lincolnshire Council,http://statistics.data.gov.uk/id/local-authority/00FC),Environment,Environment,Regulatory Serv Mgt System,Cap Veh Plt Eqp-Purchase,Cap Veh Plt Eqp-Purchase,YB101,08/02/2022,709341,4219.4,CAPITAL,ARCUS GLOBAL LIMITED,111799
North East Lincolnshire Council,http://statistics.data.gov.uk/id/local-authority/00FC),Adult Services,Adult Services,Hps-Disabled Fac. Grants,Cap Grants To O/Side Sources,Cap Grants To O/Side Sources,YJ101,15/02/2022,712044,17333.42,CAPITAL,ENGIE SERVICES LTD,133267
North East Lincolnshire Council,http://statistics.data.gov.uk/id/local-authority/00FC),Adult Services,Adult Services,Hps-Disabled Fac. Grants,Cap Grants To O/Side Sources,Cap Grants To O/Side Sources,YJ101,03/02/2022,710475,9783.38,CAPITAL,HOBSON & PORTER,101010
North East Lincolnshire Council,http://statistics.data.gov.uk/id/local-authority/00FC),Adult Services,Adult Services,Hps-Disabled Fac. Grants,Cap Grants To O/Side Sources,Cap Grants To O/Side Sources,YJ101,24/02/2022,714057,8304.99,CAPITAL,R G CARTER LINCOLN LTD,146557
North East Lincolnshire Council,http://statistics.data.gov.uk/id/local-authority/00FC),Adult Services,Adult Services,Hps-Disabled Fac. Grants,Cap Grants To O/Side Sources,Cap Grants To O/Side Sources,YJ101,02/02/2022,710357,1482.39,CAPITAL,R G CARTER LINCOLN LTD,146557
North East Lincolnshire Council,http://statistics.data.gov.uk/id/local-authority/00FC),Adult Services,Adult Services,Hps-Disabled Fac. Grants,Cap Grants To O/Side Sources,Cap Grants To O/Side Sources,YJ101,02/02/2022,710375,3595,CAPITAL,OBAM LIFT SERVICES LTD,112666
North East Lincolnshire Council,http://statistics.data.gov.uk/id/local-authority/00FC),Adult Services,Adult Services,Hps-Disabled Fac. Grants,Cap Grants To O/Side Sources,Cap Grants To O/Side Sources,YJ101,01/02/2022,710254,3857,CAPITAL,DOLPHIN MOBILITY EAST MIDLANDS LTD,101317
North East Lincolnshire Council,http://statistics.data.gov.uk/id/local-authority/00FC),Adult Services,Adult Services,Hps-Disabled Fac. Grants,Cap Grants To O/Side Sources,Cap Grants To O/Side Sources,YJ101,01/02/2022,710352,5301,CAPITAL,OBAM LIFT SERVICES LTD,112666
North East Lincolnshire Council,http://statistics.data.gov.uk/id/local-authority/00FC),Adult Services,Adult Services,Hps-Disabled Fac. Grants,Cap Grants To O/Side Sources,Cap Grants To O/Side Sources,YJ101,03/02/2022,710353,1701.7,CAPITAL,OBAM LIFT SERVICES LTD,112666
North East Lincolnshire Council,http://statistics.data.gov.uk/id/local-authority/00FC),Adult Services,Adult Services,Hps-Disabled Fac. Grants,Cap Grants To O/Side Sources,Cap Grants To O/Side Sources,YJ101,01/02/2022,710253,3960,CAPITAL,OBAM LIFT SERVICES LTD,112666
North East Lincolnshire Council,http://statistics.data.gov.uk/id/local-authority/00FC),Adult Services,Adult Services,Hps-Disabled Fac. Grants,Cap Grants To O/Side Sources,Cap Grants To O/Side Sources,YJ101,11/02/2022,711954,10346.65,CAPITAL,R G CARTER LINCOLN LTD,146557
North East Lincolnshire Council,http://statistics.data.gov.uk/id/local-authority/00FC),Adult Services,Adult Services,Hps-Disabled Fac. Grants,Cap Grants To O/Side Sources,Cap Grants To O/Side Sources,YJ101,21/02/2022,712266,11324.09,CAPITAL,VIC HANSEN BUILDING & JOINERY LTD,103981
North East Lincolnshire Council,http://statistics.data.gov.uk/id/local-authority/00FC),Adult Services,Adult Services,Hps-Disabled Fac. Grants,Cap Grants To O/Side Sources,Cap Grants To O/Side Sources,YJ101,14/02/2022,711958,1620,CAPITAL,NEWGLAZE,100642
North East Lincolnshire Council,http://statistics.data.gov.uk/id/local-authority/00FC),Adult Services,Adult Services,Hps-Disabled Fac. Grants,Cap Grants To O/Side Sources,Cap Grants To O/Side Sources,YJ101,11/02/2022,711742,8813.97,CAPITAL,TSPRO LTD,146603
North East Lincolnshire Council,http://statistics.data.gov.uk/id/local-authority/00FC),Adult Services,Adult Services,Hps-Disabled Fac. Grants,Cap Grants To O/Side Sources,Cap Grants To O/Side Sources,YJ101,08/02/2022,711087,7278.05,CAPITAL,VIC HANSEN BUILDING & JOINERY LTD,103981
North East Lincolnshire Council,http://statistics.data.gov.uk/id/local-authority/00FC),Adult Services,Adult Services,Hps-Disabled Fac. Grants,Cap Grants To O/Side Sources,Cap Grants To O/Side Sources,YJ101,07/02/2022,711085,5500,CAPITAL,TSPRO LTD,146603
North East Lincolnshire Council,http://statistics.data.gov.uk/id/local-authority/00FC),Adult Services,Adult Services,Hps-Disabled Fac. Grants,Cap Grants To O/Side Sources,Cap Grants To O/Side Sources,YJ101,02/02/2022,710255,16152.5,CAPITAL,JC POMFRET CONSTRUCTION LTD,136453
North East Lincolnshire Council,http://statistics.data.gov.uk/id/local-authority/00FC),Adult Services,Adult Services,Hps-Disabled Fac. Grants,Cap Grants To O/Side Sources,Cap Grants To O/Side Sources,YJ101,01/02/2022,710256,2963.01,CAPITAL,DOLPHIN MOBILITY EAST MIDLANDS LTD,101317
North East Lincolnshire Council,http://statistics.data.gov.uk/id/local-authority/00FC),Adult Services,Adult Services,Hps-Disabled Fac. Grants,Cap Grants To O/Side Sources,Cap Grants To O/Side Sources,YJ101,23/02/2022,713893,2726.72,CAPITAL,DOLPHIN MOBILITY EAST MIDLANDS LTD,101317
North East Lincolnshire Council,http://statistics.data.gov.uk/id/local-authority/00FC),Adult Services,Adult Services,Hps-Disabled Fac. Grants,Cap Grants To O/Side Sources,Cap Grants To O/Side Sources,YJ101,16/02/2022,712025,7207.47,CAPITAL,R G CARTER LINCOLN LTD,146557
North East Lincolnshire Council,http://statistics.data.gov.uk/id/local-authority/00FC),Adult Services,Adult Services,Hps-Disabled Fac. Grants,Cap Grants To O/Side Sources,Cap Grants To O/Side Sources,YJ101,25/02/2022,714055,10214.02,CAPITAL,HOBSON & PORTER,101010
North East Lincolnshire Council,http://statistics.data.gov.uk/id/local-authority/00FC),Adult Services,Adult Services,Hps-Disabled Fac. Grants,Cap Grants To O/Side Sources,Cap Grants To O/Side Sources,YJ101,28/02/2022,714308,9589.87,CAPITAL,TSPRO LTD,146603
North East Lincolnshire Council,http://statistics.data.gov.uk/id/local-authority/00FC),Adult Services,Adult Services,Hps-Disabled Fac. Grants,Cap Grants To O/Side Sources,Cap Grants To O/Side Sources,YJ101,02/02/2022,710243,11375.66,CAPITAL,ASKERTON HOMES LTD,145694
North East Lincolnshire Council,http://statistics.data.gov.uk/id/local-authority/00FC),Adult Services,Adult Services,Hps-Disabled Fac. Grants,Cap Grants To O/Side Sources,Cap Grants To O/Side Sources,YJ101,28/02/2022,714325,2247,CAPITAL,OBAM LIFT SERVICES LTD,112666
North East Lincolnshire Council,http://statistics.data.gov.uk/id/local-authority/00FC),Adult Services,Adult Services,Hps-Disabled Fac. Grants,Cap Grants To O/Side Sources,Cap Grants To O/Side Sources,YJ101,17/02/2022,712687,908.67,CAPITAL,DOLPHIN MOBILITY EAST MIDLANDS LTD,101317
North East Lincolnshire Council,http://statistics.data.gov.uk/id/local-authority/00FC),Adult Services,Adult Services,Hps-Disabled Fac. Grants,Cap Grants To O/Side Sources,Cap Grants To O/Side Sources,YJ101,14/02/2022,712009,1832,CAPITAL,OBAM LIFT SERVICES LTD,112666
North East Lincolnshire Council,http://statistics.data.gov.uk/id/local-authority/00FC),Adult Services,Adult Services,Hps-Disabled Fac. Grants,Cap Grants To O/Side Sources,Cap Grants To O/Side Sources,YJ101,01/02/2022,709737,7386.11,CAPITAL,ASKERTON HOMES LTD,145694
North East Lincolnshire Council,http://statistics.data.gov.uk/id/local-authority/00FC),Adult Services,Adult Services,Hps-Disabled Fac. Grants,Cap Grants To O/Side Sources,Cap Grants To O/Side Sources,YJ101,17/02/2022,712703,16832.7,CAPITAL,ABLE 4 ENTERPRISE LTD,120159
North East Lincolnshire Council,http://statistics.data.gov.uk/id/local-authority/00FC),Adult Services,Adult Services,Hps-Disabled Fac. Grants,Cap Veh Plt Eqp-Purchase,Cap Veh Plt Eqp-Purchase,YB101,08/02/2022,711156,763.76,CAPITAL,NOTTINGHAM REHAB LIMITED,101715
North East Lincolnshire Council,http://statistics.data.gov.uk/id/local-authority/00FC),Adult Services,Adult Services,Hps-Disabled Fac. Grants,Cap Veh Plt Eqp-Purchase,Cap Veh Plt Eqp-Purchase,YB101,14/02/2022,711623,753.2,CAPITAL,NOTTINGHAM REHAB LIMITED,101715
North East Lincolnshire Council,http://statistics.data.gov.uk/id/local-authority/00FC),Adult Services,Adult Services,Hps-Disabled Fac. Grants,Cap Veh Plt Eqp-Purchase,Cap Veh Plt Eqp-Purchase,YB101,11/02/2022,704938,367,CAPITAL,NOTTINGHAM REHAB LIMITED,101715
North East Lincolnshire Council,http://statistics.data.gov.uk/id/local-authority/00FC),Adult Services,Adult Services,Hps-Disabled Fac. Grants,Cap Veh Plt Eqp-Purchase,Cap Veh Plt Eqp-Purchase,YB101,10/02/2022,704396,1600,CAPITAL,NOTTINGHAM REHAB LIMITED,101715
North East Lincolnshire Council,http://statistics.data.gov.uk/id/local-authority/00FC),Childrens Services,Education And Inclusion,Education Transport,Contract Hire-Operating Leases,Vehicles - Contract Hire,JC101,04/02/2022,710629,1550,REVENUE,AA RADIO CARS LTD,101222
North East Lincolnshire Council,http://statistics.data.gov.uk/id/local-authority/00FC),Childrens Services,Education And Inclusion,Education Transport,Contract Hire-Operating Leases,Vehicles - Contract Hire,JC101,07/02/2022,711002,624,REVENUE,LINKS TAXIS,100546
North East Lincolnshire Council,http://statistics.data.gov.uk/id/local-authority/00FC),Childrens Services,Education And Inclusion,Education Transport,Contract Hire-Operating Leases,Vehicles - Contract Hire,JC101,21/02/2022,713250,12803.7,REVENUE,LINKS TAXIS,100546
North East Lincolnshire Council,http://statistics.data.gov.uk/id/local-authority/00FC),Childrens Services,Education And Inclusion,Education Transport,Contract Hire-Operating Leases,Vehicles - Contract Hire,JC101,07/02/2022,710974,926.25,REVENUE,SMT (LINCS) ENTERPRISES LTD,141297
North East Lincolnshire Council,http://statistics.data.gov.uk/id/local-authority/00FC),Childrens Services,Education And Inclusion,Education Transport,Contract Hire-Operating Leases,Vehicles - Contract Hire,JC101,15/02/2022,712173,541.5,REVENUE,LINKS TAXIS,100546
North East Lincolnshire Council,http://statistics.data.gov.uk/id/local-authority/00FC),Childrens Services,Education And Inclusion,Education Transport,Contract Hire-Operating Leases,Vehicles - Contract Hire,JC101,07/02/2022,711011,429,REVENUE,LINKS TAXIS,100546
North East Lincolnshire Council,http://statistics.data.gov.uk/id/local-authority/00FC),Childrens Services,Education And Inclusion,Education Transport,Contract Hire-Operating Leases,Vehicles - Contract Hire,JC101,21/02/2022,713250,989,REVENUE,LINKS TAXIS,100546
North East Lincolnshire Council,http://statistics.data.gov.uk/id/local-authority/00FC),Childrens Services,Education And Inclusion,Education Transport,Contract Hire-Operating Leases,Vehicles - Contract Hire,JC101,11/02/2022,711943,1260,REVENUE,SMT (LINCS) ENTERPRISES LTD,141297
North East Lincolnshire Council,http://statistics.data.gov.uk/id/local-authority/00FC),Childrens Services,Education And Inclusion,Education Transport,Contract Hire-Operating Leases,Vehicles - Contract Hire,JC101,04/02/2022,710628,832,REVENUE,AA RADIO CARS LTD,101222
North East Lincolnshire Council,http://statistics.data.gov.uk/id/local-authority/00FC),Childrens Services,Education And Inclusion,Education Transport,Contract Hire-Operating Leases,Vehicles - Contract Hire,JC101,07/02/2022,711008,619.25,REVENUE,LINKS TAXIS,100546
North East Lincolnshire Council,http://statistics.data.gov.uk/id/local-authority/00FC),Childrens Services,Education And Inclusion,Education Transport,Contract Hire-Operating Leases,Vehicles - Contract Hire,JC101,07/02/2022,711010,271,REVENUE,LINKS TAXIS,100546
North East Lincolnshire Council,http://statistics.data.gov.uk/id/local-authority/00FC),Childrens Services,Education And Inclusion,Education Transport,Contract Hire-Operating Leases,Vehicles - Contract Hire,JC101,21/02/2022,713368,1235,REVENUE,SMT (LINCS) ENTERPRISES LTD,141297
North East Lincolnshire Council,http://statistics.data.gov.uk/id/local-authority/00FC),Childrens Services,Education And Inclusion,Education Transport,Contract Hire-Operating Leases,Vehicles - Contract Hire,JC101,21/02/2022,713293,855,REVENUE,SMT (LINCS) ENTERPRISES LTD,141297
North East Lincolnshire Council,http://statistics.data.gov.uk/id/local-authority/00FC),Childrens Services,Education And Inclusion,Education Transport,Contract Hire-Operating Leases,Vehicles - Contract Hire,JC101,07/02/2022,710972,292.5,REVENUE,SMT (LINCS) ENTERPRISES LTD,141297
North East Lincolnshire Council,http://statistics.data.gov.uk/id/local-authority/00FC),Childrens Services,Education And Inclusion,Education Transport,Contract Hire-Operating Leases,Vehicles - Contract Hire,JC101,11/02/2022,711981,260,REVENUE,SMT (LINCS) ENTERPRISES LTD,141297
North East Lincolnshire Council,http://statistics.data.gov.uk/id/local-authority/00FC),Childrens Services,Education And Inclusion,Education Transport,Contract Hire-Operating Leases,Vehicles - Contract Hire,JC101,21/02/2022,713250,1363.4,REVENUE,LINKS TAXIS,100546
North East Lincolnshire Council,http://statistics.data.gov.uk/id/local-authority/00FC),Childrens Services,Education And Inclusion,Education Transport,Private Contractors,Concessionary Fares,PH104,15/02/2022,712175,1459,REVENUE,STAGECOACH SERVICES,101404
North East Lincolnshire Council,http://statistics.data.gov.uk/id/local-authority/00FC),Childrens Services,Education And Inclusion,Education Transport,Contract Hire-Operating Leases,Vehicles - Contract Hire,JC101,07/02/2022,711022,1368,REVENUE,LINKS TAXIS,100546
North East Lincolnshire Council,http://statistics.data.gov.uk/id/local-authority/00FC),Childrens Services,Education And Inclusion,Education Transport,Contract Hire-Operating Leases,Vehicles - Contract Hire,JC101,07/02/2022,711018,1178,REVENUE,LINKS TAXIS,100546
North East Lincolnshire Council,http://statistics.data.gov.uk/id/local-authority/00FC),Childrens Services,Education And Inclusion,Education Transport,Contract Hire-Operating Leases,Vehicles - Contract Hire,JC101,24/02/2022,714205,1235,REVENUE,MINICABS CLEETHORPES (LINCS) LTD,102124
North East Lincolnshire Council,http://statistics.data.gov.uk/id/local-authority/00FC),Childrens Services,Education And Inclusion,Education Transport,Contract Hire-Operating Leases,Vehicles - Contract Hire,JC101,01/02/2022,709800,2062.8,REVENUE,GRIMSBY MINIBUSES LTD,121524
North East Lincolnshire Council,http://statistics.data.gov.uk/id/local-authority/00FC),Childrens Services,Education And Inclusion,Education Transport,Contract Hire-Operating Leases,Vehicles - Contract Hire,JC101,01/02/2022,709815,2996,REVENUE,GRIMSBY MINIBUSES LTD,121524
North East Lincolnshire Council,http://statistics.data.gov.uk/id/local-authority/00FC),Childrens Services,Education And Inclusion,Education Transport,Contract Hire-Operating Leases,Vehicles - Contract Hire,JC101,07/02/2022,711020,1283,REVENUE,LINKS TAXIS,100546
North East Lincolnshire Council,http://statistics.data.gov.uk/id/local-authority/00FC),Childrens Services,Education And Inclusion,Education Transport,Contract Hire-Operating Leases,Vehicles - Contract Hire,JC101,21/02/2022,713250,1017,REVENUE,LINKS TAXIS,100546
North East Lincolnshire Council,http://statistics.data.gov.uk/id/local-authority/00FC),Childrens Services,Education And Inclusion,Education Transport,Private Contractors,Concessionary Fares,PH104,15/02/2022,712175,1408,REVENUE,STAGECOACH SERVICES,101404
North East Lincolnshire Council,http://statistics.data.gov.uk/id/local-authority/00FC),Childrens Services,Education And Inclusion,Education Transport,Contract Hire-Operating Leases,Vehicles - Contract Hire,JC101,04/02/2022,710721,2502,REVENUE,AMVALE MEDICAL TRANSPORT LTD,130777
North East Lincolnshire Council,http://statistics.data.gov.uk/id/local-authority/00FC),Childrens Services,Education And Inclusion,Education Transport,Contract Hire-Operating Leases,Vehicles - Contract Hire,JC101,23/02/2022,713812,2304,REVENUE,THE BUS RUN,101522
North East Lincolnshire Council,http://statistics.data.gov.uk/id/local-authority/00FC),Childrens Services,Education And Inclusion,Education Transport,Contract Hire-Operating Leases,Vehicles - Contract Hire,JC101,01/02/2022,709803,2188.8,REVENUE,GRIMSBY MINIBUSES LTD,121524
North East Lincolnshire Council,http://statistics.data.gov.uk/id/local-authority/00FC),Childrens Services,Education And Inclusion,Education Transport,Contract Hire-Operating Leases,Vehicles - Contract Hire,JC101,01/02/2022,709801,2534.4,REVENUE,GRIMSBY MINIBUSES LTD,121524
North East Lincolnshire Council,http://statistics.data.gov.uk/id/local-authority/00FC),Childrens Services,Education And Inclusion,Education Transport,Contract Hire-Operating Leases,Vehicles - Contract Hire,JC101,23/02/2022,713742,1926,REVENUE,HANSONS AIRPORT EXPRESS,111879
North East Lincolnshire Council,http://statistics.data.gov.uk/id/local-authority/00FC),Childrens Services,Education And Inclusion,Education Transport,Contract Hire-Operating Leases,Vehicles - Contract Hire,JC101,04/02/2022,710720,2484,REVENUE,AMVALE MEDICAL TRANSPORT LTD,130777
North East Lincolnshire Council,http://statistics.data.gov.uk/id/local-authority/00FC),Childrens Services,Education And Inclusion,Education Transport,Contract Hire-Operating Leases,Vehicles - Contract Hire,JC101,04/02/2022,710724,2451,REVENUE,AMVALE MEDICAL TRANSPORT LTD,130777
North East Lincolnshire Council,http://statistics.data.gov.uk/id/local-authority/00FC),Childrens Services,Education And Inclusion,Education Transport,Contract Hire-Operating Leases,Vehicles - Contract Hire,JC101,04/02/2022,710719,2572,REVENUE,AMVALE MEDICAL TRANSPORT LTD,130777
North East Lincolnshire Council,http://statistics.data.gov.uk/id/local-authority/00FC),Childrens Services,Education And Inclusion,Education Transport,Contract Hire-Operating Leases,Vehicles - Contract Hire,JC101,07/02/2022,710911,1235,REVENUE,SMT (LINCS) ENTERPRISES LTD,141297
North East Lincolnshire Council,http://statistics.data.gov.uk/id/local-authority/00FC),Childrens Services,Education And Inclusion,Education Transport,Contract Hire-Operating Leases,Vehicles - Contract Hire,JC101,24/02/2022,714206,2316,REVENUE,MINICABS CLEETHORPES (LINCS) LTD,102124
North East Lincolnshire Council,http://statistics.data.gov.uk/id/local-authority/00FC),Childrens Services,Education And Inclusion,Education Transport,Contract Hire-Operating Leases,Vehicles - Contract Hire,JC101,14/02/2022,711748,1200,REVENUE,SMT (LINCS) ENTERPRISES LTD,141297
North East Lincolnshire Council,http://statistics.data.gov.uk/id/local-authority/00FC),Childrens Services,Education And Inclusion,Education Transport,Contract Hire-Operating Leases,Vehicles - Contract Hire,JC101,15/02/2022,712243,1800,REVENUE,MINICABS CLEETHORPES (LINCS) LTD,102124
North East Lincolnshire Council,http://statistics.data.gov.uk/id/local-authority/00FC),Childrens Services,Education And Inclusion,Education Transport,Contract Hire-Operating Leases,Vehicles - Contract Hire,JC101,11/02/2022,711980,1482,REVENUE,SMT (LINCS) ENTERPRISES LTD,141297
North East Lincolnshire Council,http://statistics.data.gov.uk/id/local-authority/00FC),Childrens Services,Education And Inclusion,Education Transport,Contract Hire-Operating Leases,Vehicles - Contract Hire,JC101,07/02/2022,711021,1036,REVENUE,LINKS TAXIS,100546
North East Lincolnshire Council,http://statistics.data.gov.uk/id/local-authority/00FC),Childrens Services,Education And Inclusion,Education Transport,Contract Hire-Operating Leases,Vehicles - Contract Hire,JC101,15/02/2022,712242,1170,REVENUE,MINICABS CLEETHORPES (LINCS) LTD,102124
North East Lincolnshire Council,http://statistics.data.gov.uk/id/local-authority/00FC),Childrens Services,Education And Inclusion,Education Transport,Contract Hire-Operating Leases,Vehicles - Contract Hire,JC101,07/02/2022,711009,1113,REVENUE,LINKS TAXIS,100546
North East Lincolnshire Council,http://statistics.data.gov.uk/id/local-authority/00FC),Childrens Services,Education And Inclusion,Education Transport,Contract Hire-Operating Leases,Vehicles - Contract Hire,JC101,04/02/2022,710613,1062,REVENUE,AA RADIO CARS LTD,101222
North East Lincolnshire Council,http://statistics.data.gov.uk/id/local-authority/00FC),Childrens Services,Education And Inclusion,Education Transport,Contract Hire-Operating Leases,Vehicles - Contract Hire,JC101,15/02/2022,712244,1854.5,REVENUE,MINICABS CLEETHORPES (LINCS) LTD,102124
North East Lincolnshire Council,http://statistics.data.gov.uk/id/local-authority/00FC),Childrens Services,Education And Inclusion,Education Transport,Contract Hire-Operating Leases,Vehicles - Contract Hire,JC101,15/02/2022,712245,2026,REVENUE,MINICABS CLEETHORPES (LINCS) LTD,102124
North East Lincolnshire Council,http://statistics.data.gov.uk/id/local-authority/00FC),Childrens Services,Education And Inclusion,Education Transport,Contract Hire-Operating Leases,Vehicles - Contract Hire,JC101,07/02/2022,710963,1330,REVENUE,SMT (LINCS) ENTERPRISES LTD,141297
North East Lincolnshire Council,http://statistics.data.gov.uk/id/local-authority/00FC),Childrens Services,Education And Inclusion,Education Transport,Contract Hire-Operating Leases,Vehicles - Contract Hire,JC101,11/02/2022,711943,1260,REVENUE,SMT (LINCS) ENTERPRISES LTD,141297
North East Lincolnshire Council,http://statistics.data.gov.uk/id/local-authority/00FC),Childrens Services,Education And Inclusion,Education Transport,Contract Hire-Operating Leases,Vehicles - Contract Hire,JC101,04/02/2022,710626,1560,REVENUE,AA RADIO CARS LTD,101222
North East Lincolnshire Council,http://statistics.data.gov.uk/id/local-authority/00FC),Childrens Services,Education And Inclusion,Education Transport,Contract Hire-Operating Leases,Vehicles - Contract Hire,JC101,07/02/2022,710916,1567.5,REVENUE,SMT (LINCS) ENTERPRISES LTD,141297
North East Lincolnshire Council,http://statistics.data.gov.uk/id/local-authority/00FC),Childrens Services,Education And Inclusion,Education Transport,Contract Hire-Operating Leases,Vehicles - Contract Hire,JC101,14/02/2022,710987,2396.8,REVENUE,GRIMSBY MINIBUSES LTD,121524
North East Lincolnshire Council,http://statistics.data.gov.uk/id/local-authority/00FC),Childrens Services,Education And Inclusion,Education Transport,Contract Hire-Operating Leases,Vehicles - Contract Hire,JC101,07/02/2022,710914,1540,REVENUE,SMT (LINCS) ENTERPRISES LTD,141297
North East Lincolnshire Council,http://statistics.data.gov.uk/id/local-authority/00FC),Childrens Services,Education And Inclusion,Education Transport,Contract Hire-Operating Leases,Vehicles - Contract Hire,JC101,14/02/2022,712011,2071,REVENUE,DRS TAXI SERVICE,141083
North East Lincolnshire Council,http://statistics.data.gov.uk/id/local-authority/00FC),Childrens Services,Education And Inclusion,Education Transport,Contract Hire-Operating Leases,Vehicles - Contract Hire,JC101,24/02/2022,714204,1330,REVENUE,MINICABS CLEETHORPES (LINCS) LTD,102124
North East Lincolnshire Council,http://statistics.data.gov.uk/id/local-authority/00FC),Childrens Services,Education And Inclusion,Education Transport,Contract Hire-Operating Leases,Vehicles - Contract Hire,JC101,11/02/2022,711982,2502,REVENUE,SMT (LINCS) ENTERPRISES LTD,141297
North East Lincolnshire Council,http://statistics.data.gov.uk/id/local-authority/00FC),Childrens Services,Education And Inclusion,Education Transport,Contract Hire-Operating Leases,Vehicles - Contract Hire,JC101,07/02/2022,710988,903,REVENUE,LINKS TAXIS,100546
North East Lincolnshire Council,http://statistics.data.gov.uk/id/local-authority/00FC),Childrens Services,Education And Inclusion,Education Transport,Contract Hire-Operating Leases,Vehicles - Contract Hire,JC101,07/02/2022,710857,784,REVENUE,LINKS TAXIS,100546
North East Lincolnshire Council,http://statistics.data.gov.uk/id/local-authority/00FC),Childrens Services,Education And Inclusion,Education Transport,Contract Hire-Operating Leases,Vehicles - Contract Hire,JC101,07/02/2022,710974,926.25,REVENUE,SMT (LINCS) ENTERPRISES LTD,141297
North East Lincolnshire Council,http://statistics.data.gov.uk/id/local-authority/00FC),Childrens Services,Education And Inclusion,Education Transport,Contract Hire-Operating Leases,Vehicles - Contract Hire,JC101,14/02/2022,712012,2760,REVENUE,DRS TAXI SERVICE,141083
North East Lincolnshire Council,http://statistics.data.gov.uk/id/local-authority/00FC),Childrens Services,Education And Inclusion,Education Transport,Contract Hire-Operating Leases,Vehicles - Contract Hire,JC101,07/02/2022,710989,1940,REVENUE,LINKS TAXIS,100546
North East Lincolnshire Council,http://statistics.data.gov.uk/id/local-authority/00FC),Childrens Services,Education And Inclusion,Education Transport,Contract Hire-Operating Leases,Vehicles - Contract Hire,JC101,07/02/2022,710973,1050,REVENUE,SMT (LINCS) ENTERPRISES LTD,141297
North East Lincolnshire Council,http://statistics.data.gov.uk/id/local-authority/00FC),Childrens Services,Education And Inclusion,Education Transport,Contract Hire-Operating Leases,Vehicles - Contract Hire,JC101,07/02/2022,710971,1125,REVENUE,SMT (LINCS) ENTERPRISES LTD,141297
North East Lincolnshire Council,http://statistics.data.gov.uk/id/local-authority/00FC),Childrens Services,Education And Inclusion,Education Transport,Contract Hire-Operating Leases,Vehicles - Contract Hire,JC101,07/02/2022,711008,619.25,REVENUE,LINKS TAXIS,100546
North East Lincolnshire Council,http://statistics.data.gov.uk/id/local-authority/00FC),Childrens Services,Education And Inclusion,Education Transport,Contract Hire-Operating Leases,Vehicles - Contract Hire,JC101,07/02/2022,710909,1200,REVENUE,SMT (LINCS) ENTERPRISES LTD,141297
North East Lincolnshire Council,http://statistics.data.gov.uk/id/local-authority/00FC),Childrens Services,Education And Inclusion,Education Transport,Contract Hire-Operating Leases,Vehicles - Contract Hire,JC101,01/02/2022,709804,1858.2,REVENUE,GRIMSBY MINIBUSES LTD,121524
North East Lincolnshire Council,http://statistics.data.gov.uk/id/local-authority/00FC),Childrens Services,Education And Inclusion,Education Transport,Contract Hire-Operating Leases,Vehicles - Contract Hire,JC101,23/02/2022,713889,2405,REVENUE,SMT (LINCS) ENTERPRISES LTD,141297
North East Lincolnshire Council,http://statistics.data.gov.uk/id/local-authority/00FC),Childrens Services,Education And Inclusion,Education Transport,Contract Hire-Operating Leases,Vehicles - Contract Hire,JC101,23/02/2022,713913,730.35,REVENUE,SMT (LINCS) ENTERPRISES LTD,141297
North East Lincolnshire Council,http://statistics.data.gov.uk/id/local-authority/00FC),Childrens Services,Education And Inclusion,Education Transport,Contract Hire-Operating Leases,Vehicles - Contract Hire,JC101,07/02/2022,710920,912,REVENUE,SMT (LINCS) ENTERPRISES LTD,141297
North East Lincolnshire Council,http://statistics.data.gov.uk/id/local-authority/00FC),Childrens Services,Education And Inclusion,Education Transport,Contract Hire-Operating Leases,Vehicles - Contract Hire,JC101,07/02/2022,710970,1570,REVENUE,SMT (LINCS) ENTERPRISES LTD,141297
North East Lincolnshire Council,http://statistics.data.gov.uk/id/local-authority/00FC),Childrens Services,Education And Inclusion,Education Transport,Contract Hire-Operating Leases,Vehicles - Contract Hire,JC101,07/02/2022,711006,1800,REVENUE,LINKS TAXIS,100546
North East Lincolnshire Council,http://statistics.data.gov.uk/id/local-authority/00FC),Childrens Services,Education And Inclusion,Education Transport,Contract Hire-Operating Leases,Vehicles - Contract Hire,JC101,04/02/2022,710725,6000,REVENUE,AMVALE MEDICAL TRANSPORT LTD,130777
North East Lincolnshire Council,http://statistics.data.gov.uk/id/local-authority/00FC),Childrens Services,Education And Inclusion,Education Transport,Contract Hire-Operating Leases,Vehicles - Contract Hire,JC101,04/02/2022,710723,4123,REVENUE,AMVALE MEDICAL TRANSPORT LTD,130777
North East Lincolnshire Council,http://statistics.data.gov.uk/id/local-authority/00FC),Childrens Services,Education And Inclusion,Education Transport,Contract Hire-Operating Leases,Vehicles - Contract Hire,JC101,17/02/2022,712649,820,REVENUE,AMVALE LIMITED,101030
North East Lincolnshire Council,http://statistics.data.gov.uk/id/local-authority/00FC),Childrens Services,Education And Inclusion,Education Transport,Contract Hire-Operating Leases,Vehicles - Contract Hire,JC101,17/02/2022,712650,820,REVENUE,AMVALE LIMITED,101030
North East Lincolnshire Council,http://statistics.data.gov.uk/id/local-authority/00FC),Childrens Services,Education And Inclusion,Education Transport,Contract Hire-Operating Leases,Vehicles - Contract Hire,JC101,17/02/2022,712651,820,REVENUE,AMVALE LIMITED,101030
North East Lincolnshire Council,http://statistics.data.gov.uk/id/local-authority/00FC),Childrens Services,Education And Inclusion,Education Transport,Contract Hire-Operating Leases,Vehicles - Contract Hire,JC101,07/02/2022,710918,912,REVENUE,SMT (LINCS) ENTERPRISES LTD,141297
North East Lincolnshire Council,http://statistics.data.gov.uk/id/local-authority/00FC),Childrens Services,Education And Inclusion,Education Transport,Contract Hire-Operating Leases,Vehicles - Contract Hire,JC101,07/02/2022,710915,648,REVENUE,SMT (LINCS) ENTERPRISES LTD,141297
North East Lincolnshire Council,http://statistics.data.gov.uk/id/local-authority/00FC),Childrens Services,Education And Inclusion,Education Transport,Contract Hire-Operating Leases,Vehicles - Contract Hire,JC101,07/02/2022,710967,864,REVENUE,SMT (LINCS) ENTERPRISES LTD,141297
North East Lincolnshire Council,http://statistics.data.gov.uk/id/local-authority/00FC),Childrens Services,Education And Inclusion,Education Transport,Contract Hire-Operating Leases,Vehicles - Contract Hire,JC101,04/02/2022,710614,792,REVENUE,AA RADIO CARS LTD,101222
North East Lincolnshire Council,http://statistics.data.gov.uk/id/local-authority/00FC),Childrens Services,Education And Inclusion,Education Transport,Contract Hire-Operating Leases,Vehicles - Contract Hire,JC101,04/02/2022,710612,595,REVENUE,AA RADIO CARS LTD,101222
North East Lincolnshire Council,http://statistics.data.gov.uk/id/local-authority/00FC),Childrens Services,Education And Inclusion,Education Transport,Contract Hire-Operating Leases,Vehicles - Contract Hire,JC101,07/02/2022,710962,630,REVENUE,SMT (LINCS) ENTERPRISES LTD,141297
North East Lincolnshire Council,http://statistics.data.gov.uk/id/local-authority/00FC),Childrens Services,Education And Inclusion,Education Transport,Contract Hire-Operating Leases,Vehicles - Contract Hire,JC101,07/02/2022,711010,542,REVENUE,LINKS TAXIS,100546
North East Lincolnshire Council,http://statistics.data.gov.uk/id/local-authority/00FC),Childrens Services,Education And Inclusion,Education Transport,Contract Hire-Operating Leases,Vehicles - Contract Hire,JC101,07/02/2022,710968,1170,REVENUE,SMT (LINCS) ENTERPRISES LTD,141297
North East Lincolnshire Council,http://statistics.data.gov.uk/id/local-authority/00FC),Childrens Services,Education And Inclusion,Education Transport,Contract Hire-Operating Leases,Vehicles - Contract Hire,JC101,15/02/2022,712173,541.5,REVENUE,LINKS TAXIS,100546
North East Lincolnshire Council,http://statistics.data.gov.uk/id/local-authority/00FC),Childrens Services,Education And Inclusion,Education Transport,Contract Hire-Operating Leases,Vehicles - Contract Hire,JC101,21/02/2022,713368,1235,REVENUE,SMT (LINCS) ENTERPRISES LTD,141297
North East Lincolnshire Council,http://statistics.data.gov.uk/id/local-authority/00FC),Childrens Services,Education And Inclusion,Education Transport,Contract Hire-Operating Leases,Vehicles - Contract Hire,JC101,14/02/2022,711749,780,REVENUE,SMT (LINCS) ENTERPRISES LTD,141297
North East Lincolnshire Council,http://statistics.data.gov.uk/id/local-authority/00FC),Childrens Services,Education And Inclusion,Education Transport,Contract Hire-Operating Leases,Vehicles - Contract Hire,JC101,04/02/2022,710627,832,REVENUE,AA RADIO CARS LTD,101222
North East Lincolnshire Council,http://statistics.data.gov.uk/id/local-authority/00FC),Childrens Services,Education And Inclusion,Education Transport,Contract Hire-Operating Leases,Vehicles - Contract Hire,JC101,07/02/2022,710913,760,REVENUE,SMT (LINCS) ENTERPRISES LTD,141297
North East Lincolnshire Council,http://statistics.data.gov.uk/id/local-authority/00FC),Childrens Services,Education And Inclusion,Education Transport,Contract Hire-Operating Leases,Vehicles - Contract Hire,JC101,07/02/2022,710966,720,REVENUE,SMT (LINCS) ENTERPRISES LTD,141297
North East Lincolnshire Council,http://statistics.data.gov.uk/id/local-authority/00FC),Childrens Services,Education And Inclusion,Education Transport,Contract Hire-Operating Leases,Vehicles - Contract Hire,JC101,07/02/2022,711011,429,REVENUE,LINKS TAXIS,100546
North East Lincolnshire Council,http://statistics.data.gov.uk/id/local-authority/00FC),Childrens Services,Education And Inclusion,Education Transport,Contract Hire-Operating Leases,Vehicles - Contract Hire,JC101,07/02/2022,710917,810,REVENUE,SMT (LINCS) ENTERPRISES LTD,141297
North East Lincolnshire Council,http://statistics.data.gov.uk/id/local-authority/00FC),Childrens Services,Education And Inclusion,Education Transport,Contract Hire-Operating Leases,Vehicles - Contract Hire,JC101,07/02/2022,710990,540.5,REVENUE,LINKS TAXIS,100546
North East Lincolnshire Council,http://statistics.data.gov.uk/id/local-authority/00FC),Childrens Services,Education And Inclusion,Education Transport,Contract Hire-Operating Leases,Vehicles - Contract Hire,JC101,07/02/2022,711013,580,REVENUE,LINKS TAXIS,100546
North East Lincolnshire Council,http://statistics.data.gov.uk/id/local-authority/00FC),Childrens Services,Education And Inclusion,Education Transport,Contract Hire-Operating Leases,Vehicles - Contract Hire,JC101,07/02/2022,711016,1296,REVENUE,LINKS TAXIS,100546
North East Lincolnshire Council,http://statistics.data.gov.uk/id/local-authority/00FC),Childrens Services,Education And Inclusion,Education Transport,Contract Hire-Operating Leases,Vehicles - Contract Hire,JC101,01/02/2022,709921,495,REVENUE,HANSONS AIRPORT EXPRESS,111879
North East Lincolnshire Council,http://statistics.data.gov.uk/id/local-authority/00FC),Childrens Services,Education And Inclusion,Education Transport,Contract Hire-Operating Leases,Vehicles - Contract Hire,JC101,07/02/2022,710910,760,REVENUE,SMT (LINCS) ENTERPRISES LTD,141297
North East Lincolnshire Council,http://statistics.data.gov.uk/id/local-authority/00FC),Childrens Services,Education And Inclusion,Education Transport,Contract Hire-Operating Leases,Vehicles - Contract Hire,JC101,14/02/2022,711750,650,REVENUE,SMT (LINCS) ENTERPRISES LTD,141297
North East Lincolnshire Council,http://statistics.data.gov.uk/id/local-authority/00FC),Childrens Services,Education And Inclusion,Education Transport,Contract Hire-Operating Leases,Vehicles - Contract Hire,JC101,22/02/2022,713274,855,REVENUE,SMT (LINCS) ENTERPRISES LTD,141297
North East Lincolnshire Council,http://statistics.data.gov.uk/id/local-authority/00FC),Childrens Services,Education And Inclusion,Education Transport,Contract Hire-Operating Leases,Vehicles - Contract Hire,JC101,07/02/2022,710912,1620,REVENUE,SMT (LINCS) ENTERPRISES LTD,141297
North East Lincolnshire Council,http://statistics.data.gov.uk/id/local-authority/00FC),Childrens Services,Education And Inclusion,Education Transport,Contract Hire-Operating Leases,Vehicles - Contract Hire,JC101,11/02/2022,711986,1710,REVENUE,SMT (LINCS) ENTERPRISES LTD,141297
North East Lincolnshire Council,http://statistics.data.gov.uk/id/local-authority/00FC),Childrens Services,Education And Inclusion,Education Transport,Contract Hire-Operating Leases,Vehicles - Contract Hire,JC101,07/02/2022,711017,1381,REVENUE,LINKS TAXIS,100546
North East Lincolnshire Council,http://statistics.data.gov.uk/id/local-authority/00FC),Childrens Services,Education And Inclusion,Education Transport,Contract Hire-Operating Leases,Vehicles - Contract Hire,JC101,04/02/2022,710722,1782,REVENUE,AMVALE MEDICAL TRANSPORT LTD,130777
North East Lincolnshire Council,http://statistics.data.gov.uk/id/local-authority/00FC),Childrens Services,Education And Inclusion,Education Transport,Contract Hire-Operating Leases,Vehicles - Contract Hire,JC101,07/02/2022,710995,740,REVENUE,LINKS TAXIS,100546
North East Lincolnshire Council,http://statistics.data.gov.uk/id/local-authority/00FC),Childrens Services,Education And Inclusion,Education Transport,Contract Hire-Operating Leases,Vehicles - Contract Hire,JC101,07/02/2022,710991,740,REVENUE,LINKS TAXIS,100546
North East Lincolnshire Council,http://statistics.data.gov.uk/id/local-authority/00FC),Childrens Services,Education And Inclusion,Education Transport,Contract Hire-Operating Leases,Vehicles - Contract Hire,JC101,04/02/2022,710611,952,REVENUE,AA RADIO CARS LTD,101222
North East Lincolnshire Council,http://statistics.data.gov.uk/id/local-authority/00FC),Childrens Services,Education And Inclusion,Education Transport,Contract Hire-Operating Leases,Vehicles - Contract Hire,JC101,07/02/2022,711015,527,REVENUE,LINKS TAXIS,100546
North East Lincolnshire Council,http://statistics.data.gov.uk/id/local-authority/00FC),Childrens Services,Education And Inclusion,Education Transport,Contract Hire-Operating Leases,Vehicles - Contract Hire,JC101,15/02/2022,712169,1358,REVENUE,LINKS TAXIS,100546
North East Lincolnshire Council,http://statistics.data.gov.uk/id/local-authority/00FC),Childrens Services,Education And Inclusion,Education Transport,Contract Hire-Operating Leases,Vehicles - Contract Hire,JC101,07/02/2022,710992,846,REVENUE,LINKS TAXIS,100546
North East Lincolnshire Council,http://statistics.data.gov.uk/id/local-authority/00FC),Childrens Services,Education And Inclusion,Education Transport,Contract Hire-Operating Leases,Vehicles - Contract Hire,JC101,07/02/2022,711005,893,REVENUE,LINKS TAXIS,100546
North East Lincolnshire Council,http://statistics.data.gov.uk/id/local-authority/00FC),Childrens Services,Education And Inclusion,Education Transport,Contract Hire-Operating Leases,Vehicles - Contract Hire,JC101,04/02/2022,710630,1035,REVENUE,AA RADIO CARS LTD,101222
North East Lincolnshire Council,http://statistics.data.gov.uk/id/local-authority/00FC),Childrens Services,Education And Inclusion,Education Transport,Contract Hire-Operating Leases,Vehicles - Contract Hire,JC101,01/02/2022,709876,2322,REVENUE,AMVALE LIMITED,101030
North East Lincolnshire Council,http://statistics.data.gov.uk/id/local-authority/00FC),Childrens Services,Education And Inclusion,Education Transport,Contract Hire-Operating Leases,Vehicles - Contract Hire,JC101,01/02/2022,709874,2502,REVENUE,AMVALE LIMITED,101030
North East Lincolnshire Council,http://statistics.data.gov.uk/id/local-authority/00FC),Childrens Services,Education And Inclusion,Education Transport,Contract Hire-Operating Leases,Vehicles - Contract Hire,JC101,01/02/2022,709873,2622,REVENUE,AMVALE LIMITED,101030
North East Lincolnshire Council,http://statistics.data.gov.uk/id/local-authority/00FC),Childrens Services,Education And Inclusion,Education Transport,Contract Hire-Operating Leases,Vehicles - Contract Hire,JC101,07/02/2022,711023,1045,REVENUE,LINKS TAXIS,100546
North East Lincolnshire Council,http://statistics.data.gov.uk/id/local-authority/00FC),Childrens Services,Education And Inclusion,Education Transport,Contract Hire-Operating Leases,Vehicles - Contract Hire,JC101,21/02/2022,713363,630,REVENUE,SMT (LINCS) ENTERPRISES LTD,141297
North East Lincolnshire Council,http://statistics.data.gov.uk/id/local-authority/00FC),Childrens Services,Education And Inclusion,Education Transport,Contract Hire-Operating Leases,Vehicles - Contract Hire,JC101,07/02/2022,710969,1750,REVENUE,SMT (LINCS) ENTERPRISES LTD,141297
North East Lincolnshire Council,http://statistics.data.gov.uk/id/local-authority/00FC),Childrens Services,Education And Inclusion,Education Transport,Contract Hire-Operating Leases,Vehicles - Contract Hire,JC101,07/02/2022,711004,756,REVENUE,LINKS TAXIS,100546
North East Lincolnshire Council,http://statistics.data.gov.uk/id/local-authority/00FC),Childrens Services,Education And Inclusion,Education Transport,Contract Hire-Operating Leases,Vehicles - Contract Hire,JC101,21/02/2022,713250,3827,REVENUE,LINKS TAXIS,100546
North East Lincolnshire Council,http://statistics.data.gov.uk/id/local-authority/00FC),Childrens Services,Education And Inclusion,Education Transport,Contract Hire-Operating Leases,Vehicles - Contract Hire,JC101,21/02/2022,713296,2325,REVENUE,LINCOLNSHIRE COUNTY COUNCIL,100389
North East Lincolnshire Council,http://statistics.data.gov.uk/id/local-authority/00FC),Childrens Services,Education And Inclusion,Education Transport,Contract Hire-Operating Leases,Vehicles - Contract Hire,JC101,24/02/2022,714230,4495.75,REVENUE,HUMBERSTON PARK SPECIAL SCHOOL,107911
North East Lincolnshire Council,http://statistics.data.gov.uk/id/local-authority/00FC),Childrens Services,Education And Inclusion,Education Transport,Contributions To Provisions,Contributions - Other,LK103,15/02/2022,1006243,311.97,REVENUE,REDACTED PERSONAL INFORMATION,REDACTED PERSONAL INFORMATION
North East Lincolnshire Council,http://statistics.data.gov.uk/id/local-authority/00FC),Childrens Services,Education And Inclusion,Employability & Skiills,Equip / Furniture / Materials,Equipment - Hire,LA102,03/02/2022,710432,1600,REVENUE,LINCS INSPIRE LTD,120610
North East Lincolnshire Council,http://statistics.data.gov.uk/id/local-authority/00FC),Childrens Services,Education And Inclusion,Employability & Skiills,Equip / Furniture / Materials,Equipment - Hire,LA102,14/02/2022,711799,2600,REVENUE,LINCS INSPIRE VENUES & ENTERPRISES LTD,149998
North East Lincolnshire Council,http://statistics.data.gov.uk/id/local-authority/00FC),Childrens Services,Education And Inclusion,Sen/Inclusion,Miscellaneous Expenses,Contingency Reserve,LL123,22/02/2022,713489,8700,REVENUE,THE CAMBRIDGE PARK ACADEMY,107472
North East Lincolnshire Council,http://statistics.data.gov.uk/id/local-authority/00FC),Childrens Services,Education And Inclusion,Sen/Inclusion,Miscellaneous Expenses,Other Expenses General,LL119,21/02/2022,713421,1170,REVENUE,MOTORVATION TRAINING LTD,138704
North East Lincolnshire Council,http://statistics.data.gov.uk/id/local-authority/00FC),Childrens Services,Education And Inclusion,Sen/Inclusion,Miscellaneous Expenses,Other Expenses General,LL119,22/02/2022,713422,715,REVENUE,MOTORVATION TRAINING LTD,138704
North East Lincolnshire Council,http://statistics.data.gov.uk/id/local-authority/00FC),Childrens Services,Education And Inclusion,Sen/Inclusion,Miscellaneous Expenses,Other Expenses General,LL119,10/02/2022,711695,975,REVENUE,MOTORVATION TRAINING LTD,138704
North East Lincolnshire Council,http://statistics.data.gov.uk/id/local-authority/00FC),Childrens Services,Education And Inclusion,Sen/Inclusion,Equip / Furniture / Materials,Teaching Materials,LA117,01/02/2022,710345,420,REVENUE,ANN ARBOR PUBLISHERS LTD,105547
North East Lincolnshire Council,http://statistics.data.gov.uk/id/local-authority/00FC),Childrens Services,Education And Inclusion,Sen/Inclusion,Equip / Furniture / Materials,Teaching Materials,LA117,21/02/2022,713238,273,REVENUE,PEARSON EDUCATION,101979
North East Lincolnshire Council,http://statistics.data.gov.uk/id/local-authority/00FC),Childrens Services,Education And Inclusion,Sen/Inclusion,Equip / Furniture / Materials,Teaching Materials,LA117,21/02/2022,713264,260,REVENUE,ANN ARBOR PUBLISHERS LTD,105547
North East Lincolnshire Council,http://statistics.data.gov.uk/id/local-authority/00FC),Childrens Services,Education And Inclusion,Sen/Inclusion,Equip / Furniture / Materials,Teaching Materials,LA117,21/02/2022,713264,260,REVENUE,ANN ARBOR PUBLISHERS LTD,105547
North East Lincolnshire Council,http://statistics.data.gov.uk/id/local-authority/00FC),Childrens Services,Education And Inclusion,Sen/Inclusion,Communications And Computing,Computer S/Ware - Purchases,LF101,15/02/2022,712335,357.2,REVENUE,TRUSTMARQUE SOLUTIONS LTD,101275
North East Lincolnshire Council,http://statistics.data.gov.uk/id/local-authority/00FC),Childrens Services,Education And Inclusion,Sen/Inclusion,Direct Employee Expenses,Pay Teachers Supply Cover,EA106,08/02/2022,711076,476,REVENUE,REED SPECIALIST RECRUITMENT LTD,142253
North East Lincolnshire Council,http://statistics.data.gov.uk/id/local-authority/00FC),Childrens Services,Education And Inclusion,Sen/Inclusion,Direct Employee Expenses,Pay Teachers Supply Cover,EA106,22/02/2022,713429,476,REVENUE,REED SPECIALIST RECRUITMENT LTD,142253
North East Lincolnshire Council,http://statistics.data.gov.uk/id/local-authority/00FC),Childrens Services,Education And Inclusion,Sen/Inclusion,Other Local Authorities,Third Pp - Other Local Auth,PC101,14/02/2022,711807,2625.6,REVENUE,REDACTED PERSONAL INFORMATION,REDACTED PERSONAL INFORMATION
North East Lincolnshire Council,http://statistics.data.gov.uk/id/local-authority/00FC),Childrens Services,Education And Inclusion,Sen/Inclusion,Other Local Authorities,Third Pp - Other Local Auth,PC101,14/02/2022,711809,4157.2,REVENUE,REDACTED PERSONAL INFORMATION,REDACTED PERSONAL INFORMATION
North East Lincolnshire Council,http://statistics.data.gov.uk/id/local-authority/00FC),Childrens Services,Education And Inclusion,Sen/Inclusion,Other Local Authorities,Third Pp - Other Local Auth,PC101,04/02/2022,710815,19057.22,REVENUE,REDACTED PERSONAL INFORMATION,REDACTED PERSONAL INFORMATION
North East Lincolnshire Council,http://statistics.data.gov.uk/id/local-authority/00FC),Childrens Services,Education And Inclusion,Sen/Inclusion,Other Local Authorities,Third Pp - Other Local Auth,PC101,04/02/2022,710816,1306.54,REVENUE,REDACTED PERSONAL INFORMATION,REDACTED PERSONAL INFORMATION
North East Lincolnshire Council,http://statistics.data.gov.uk/id/local-authority/00FC),Childrens Services,Education And Inclusion,Sen/Inclusion,Private Contractors,Third Party Prov - Private,PH101,01/02/2022,709911,7173.91,REVENUE,REDACTED PERSONAL INFORMATION,REDACTED PERSONAL INFORMATION
North East Lincolnshire Council,http://statistics.data.gov.uk/id/local-authority/00FC),Childrens Services,Education And Inclusion,Sen/Inclusion,Private Contractors,Third Party Prov - Private,PH101,15/02/2022,712147,7173.91,REVENUE,REDACTED PERSONAL INFORMATION,REDACTED PERSONAL INFORMATION
North East Lincolnshire Council,http://statistics.data.gov.uk/id/local-authority/00FC),Childrens Services,Education And Inclusion,Sen/Inclusion,Private Contractors,Third Party Prov - Private,PH101,01/02/2022,709914,4961.35,REVENUE,REDACTED PERSONAL INFORMATION,REDACTED PERSONAL INFORMATION
North East Lincolnshire Council,http://statistics.data.gov.uk/id/local-authority/00FC),Childrens Services,Education And Inclusion,Sen/Inclusion,Private Contractors,Third Party Prov - Private,PH101,15/02/2022,712089,4961.33,REVENUE,REDACTED PERSONAL INFORMATION,REDACTED PERSONAL INFORMATION
North East Lincolnshire Council,http://statistics.data.gov.uk/id/local-authority/00FC),Childrens Services,Education And Inclusion,Sen/Inclusion,Miscellaneous Expenses,Contingency Reserve,LL123,22/02/2022,713497,1417,REVENUE,PHOENIX PARK ACADEMY,126685
North East Lincolnshire Council,http://statistics.data.gov.uk/id/local-authority/00FC),Childrens Services,Education And Inclusion,Sen/Inclusion,Miscellaneous Expenses,Contingency Reserve,LL123,22/02/2022,713499,17000,REVENUE,PHOENIX PARK ACADEMY,126685
North East Lincolnshire Council,http://statistics.data.gov.uk/id/local-authority/00FC),Childrens Services,Education And Inclusion,Sen/Inclusion,Miscellaneous Expenses,Contingency Reserve,LL123,22/02/2022,713498,48167,REVENUE,PHOENIX PARK ACADEMY,126685
North East Lincolnshire Council,http://statistics.data.gov.uk/id/local-authority/00FC),Childrens Services,Education And Inclusion,Sen/Inclusion,Miscellaneous Expenses,Contingency Reserve,LL123,22/02/2022,713500,28333,REVENUE,SEVENHILLS ACADEMY,128660
North East Lincolnshire Council,http://statistics.data.gov.uk/id/local-authority/00FC),Childrens Services,Education And Inclusion,Sen/Inclusion,Miscellaneous Expenses,Contingency Reserve,LL123,22/02/2022,713501,28333,REVENUE,SEVENHILLS ACADEMY,128660
North East Lincolnshire Council,http://statistics.data.gov.uk/id/local-authority/00FC),Childrens Services,Education And Inclusion,Sen/Inclusion,Contributions To Provisions,Contributions - Other,LK103,22/02/2022,713490,1700,REVENUE,THE CAMBRIDGE PARK ACADEMY,107472
North East Lincolnshire Council,http://statistics.data.gov.uk/id/local-authority/00FC),Childrens Services,Education And Inclusion,Sen/Inclusion,Contributions To Provisions,Contributions - Third Sector,LK102,22/02/2022,1009103,1531,REVENUE,REDACTED PERSONAL INFORMATION,REDACTED PERSONAL INFORMATION
North East Lincolnshire Council,http://statistics.data.gov.uk/id/local-authority/00FC),Childrens Services,Education And Inclusion,Sen/Inclusion,Contributions To Provisions,Contributions - Third Sector,LK102,23/02/2022,695661,3478,REVENUE,ETAC LIMITED,101710
North East Lincolnshire Council,http://statistics.data.gov.uk/id/local-authority/00FC),Childrens Services,Education And Inclusion,Sen/Inclusion,Contributions To Provisions,Contributions - Third Sector,LK102,01/02/2022,710301,1900,REVENUE,GISELA AGYEMAN,150586
North East Lincolnshire Council,http://statistics.data.gov.uk/id/local-authority/00FC),Childrens Services,Education And Inclusion,Sen/Inclusion,Contributions To Provisions,Contributions - Third Sector,LK102,04/02/2022,710811,880.5,REVENUE,COMMUNITY ACCORD,106613
North East Lincolnshire Council,http://statistics.data.gov.uk/id/local-authority/00FC),Childrens Services,Education And Inclusion,Sen/Inclusion,Contributions To Provisions,Contributions - Third Sector,LK102,04/02/2022,710809,801.9,REVENUE,CAMPDEN KIDS LTD,132975
North East Lincolnshire Council,http://statistics.data.gov.uk/id/local-authority/00FC),Childrens Services,Education And Inclusion,Sen/Inclusion,Contributions To Provisions,Contributions - Third Sector,LK102,01/02/2022,710348,1000,REVENUE,CLIMB 4 LTD,129154
North East Lincolnshire Council,http://statistics.data.gov.uk/id/local-authority/00FC),Childrens Services,Education And Inclusion,Sen/Inclusion,Contributions To Provisions,Contributions - Third Sector,LK102,07/02/2022,710900,6604,REVENUE,FOR UNDER FIVES CENTRAL CHILDRENS CENTRE,147934
North East Lincolnshire Council,http://statistics.data.gov.uk/id/local-authority/00FC),Childrens Services,Education And Inclusion,Sen/Inclusion,Contributions To Provisions,Contributions - Third Sector,LK102,14/02/2022,712086,2093.08,REVENUE,AK PAYROLL SERVICES LTD,145107
North East Lincolnshire Council,http://statistics.data.gov.uk/id/local-authority/00FC),Childrens Services,Education And Inclusion,Sen/Inclusion,Contributions To Provisions,Contributions - Third Sector,LK102,15/02/2022,712126,1365,REVENUE,TARGETED PROVISION LTD,146662
North East Lincolnshire Council,http://statistics.data.gov.uk/id/local-authority/00FC),Childrens Services,Education And Inclusion,Sen/Inclusion,Contributions To Provisions,Contributions - Third Sector,LK102,14/02/2022,712118,1155,REVENUE,TARGETED PROVISION LTD,146662
North East Lincolnshire Council,http://statistics.data.gov.uk/id/local-authority/00FC),Childrens Services,Education And Inclusion,Sen/Inclusion,Contributions To Provisions,Contributions - Third Sector,LK102,14/02/2022,712122,440,REVENUE,TARGETED PROVISION LTD,146662
North East Lincolnshire Council,http://statistics.data.gov.uk/id/local-authority/00FC),Childrens Services,Education And Inclusion,Sen/Inclusion,Contributions To Provisions,Contributions - Third Sector,LK102,15/02/2022,712123,880,REVENUE,TARGETED PROVISION LTD,146662
North East Lincolnshire Council,http://statistics.data.gov.uk/id/local-authority/00FC),Childrens Services,Education And Inclusion,Sen/Inclusion,Contributions To Provisions,Contributions - Third Sector,LK102,14/02/2022,712117,1300,REVENUE,TARGETED PROVISION LTD,146662
North East Lincolnshire Council,http://statistics.data.gov.uk/id/local-authority/00FC),Childrens Services,Education And Inclusion,Sen/Inclusion,Contributions To Provisions,Contributions - Third Sector,LK102,14/02/2022,712125,1170,REVENUE,TARGETED PROVISION LTD,146662
North East Lincolnshire Council,http://statistics.data.gov.uk/id/local-authority/00FC),Childrens Services,Education And Inclusion,Sen/Inclusion,Contributions To Provisions,Contributions - Third Sector,LK102,14/02/2022,712124,2160,REVENUE,TARGETED PROVISION LTD,146662
North East Lincolnshire Council,http://statistics.data.gov.uk/id/local-authority/00FC),Childrens Services,Education And Inclusion,Sen/Inclusion,Miscellaneous Expenses,Contingency Reserve,LL123,22/02/2022,713491,155534,REVENUE,THE CAMBRIDGE PARK ACADEMY,107472
North East Lincolnshire Council,http://statistics.data.gov.uk/id/local-authority/00FC),Childrens Services,Education And Inclusion,Sen/Inclusion,Miscellaneous Expenses,Contingency Reserve,LL123,22/02/2022,713488,9817,REVENUE,THE CAMBRIDGE PARK ACADEMY,107472
North East Lincolnshire Council,http://statistics.data.gov.uk/id/local-authority/00FC),Childrens Services,Education And Inclusion,Sen/Inclusion,Miscellaneous Expenses,Contingency Reserve,LL123,22/02/2022,713492,9817,REVENUE,HUMBERSTON PARK SPECIAL SCHOOL,107911
North East Lincolnshire Council,http://statistics.data.gov.uk/id/local-authority/00FC),Childrens Services,Education And Inclusion,Sen/Inclusion,Miscellaneous Expenses,Contingency Reserve,LL123,22/02/2022,713493,122718,REVENUE,HUMBERSTON PARK SPECIAL SCHOOL,107911
North East Lincolnshire Council,http://statistics.data.gov.uk/id/local-authority/00FC),Childrens Services,Education And Inclusion,Sen/Inclusion,Miscellaneous Expenses,Other Expenses General,LL119,22/02/2022,713495,6000,REVENUE,EASTFIELD PRIMARY ACADEMY,121907
North East Lincolnshire Council,http://statistics.data.gov.uk/id/local-authority/00FC),Childrens Services,Education And Inclusion,Sen/Inclusion,Miscellaneous Expenses,Other Expenses General,LL119,22/02/2022,713496,1958,REVENUE,EASTFIELD PRIMARY ACADEMY,121907
North East Lincolnshire Council,http://statistics.data.gov.uk/id/local-authority/00FC),Childrens Services,Education And Inclusion,Sen/Inclusion,Miscellaneous Expenses,Other Expenses General,LL119,22/02/2022,713494,9000,REVENUE,EASTFIELD PRIMARY ACADEMY,121907
North East Lincolnshire Council,http://statistics.data.gov.uk/id/local-authority/00FC),Childrens Services,Education And Inclusion,Sen/Inclusion,Contributions To Provisions,Contributions - Other,LK103,21/02/2022,712331,380,REVENUE,SMIRTHWAITE LIMITED,111970
North East Lincolnshire Council,http://statistics.data.gov.uk/id/local-authority/00FC),Childrens Services,Education And Inclusion,Sen/Inclusion,Contributions To Provisions,Contributions - Third Sector,LK102,01/02/2022,709646,750,REVENUE,LISLE MARSDEN CHILDCARE LIMITED,110493
North East Lincolnshire Council,http://statistics.data.gov.uk/id/local-authority/00FC),Childrens Services,Education And Inclusion,Sen/Inclusion,Other Local Authorities,Third Pp - Other Local Auth,PC101,09/02/2022,711614,-3415.5,REVENUE,REDACTED PERSONAL INFORMATION,REDACTED PERSONAL INFORMATION
North East Lincolnshire Council,http://statistics.data.gov.uk/id/local-authority/00FC),Childrens Services,Education And Inclusion,Sen/Inclusion,Other Local Authorities,Third Pp - Other Local Auth,PC101,10/02/2022,711699,242896.57,REVENUE,REDACTED PERSONAL INFORMATION,REDACTED PERSONAL INFORMATION
North East Lincolnshire Council,http://statistics.data.gov.uk/id/local-authority/00FC),Childrens Services,Education And Inclusion,Sen/Inclusion,Other Local Authorities,Third Pp - Other Local Auth,PC101,01/02/2022,709906,2888.6,REVENUE,REDACTED PERSONAL INFORMATION,REDACTED PERSONAL INFORMATION
North East Lincolnshire Council,http://statistics.data.gov.uk/id/local-authority/00FC),Childrens Services,Education And Inclusion,Sen/Inclusion,Other Local Authorities,Third Pp - Other Local Auth,PC101,15/02/2022,712106,1333.2,REVENUE,REDACTED PERSONAL INFORMATION,REDACTED PERSONAL INFORMATION
North East Lincolnshire Council,http://statistics.data.gov.uk/id/local-authority/00FC),Childrens Services,Education And Inclusion,Sen/Inclusion,Other Local Authorities,Third Pp - Other Local Auth,PC101,01/02/2022,709910,3415.5,REVENUE,REDACTED PERSONAL INFORMATION,REDACTED PERSONAL INFORMATION
North East Lincolnshire Council,http://statistics.data.gov.uk/id/local-authority/00FC),Childrens Services,Education And Inclusion,Sen/Inclusion,Other Local Authorities,Third Pp - Other Local Auth,PC101,04/02/2022,710771,20904,REVENUE,REDACTED PERSONAL INFORMATION,REDACTED PERSONAL INFORMATION
North East Lincolnshire Council,http://statistics.data.gov.uk/id/local-authority/00FC),Childrens Services,Education And Inclusion,Sen/Inclusion,Other Local Authorities,Third Pp - Other Local Auth,PC101,04/02/2022,710776,20904,REVENUE,REDACTED PERSONAL INFORMATION,REDACTED PERSONAL INFORMATION
North East Lincolnshire Council,http://statistics.data.gov.uk/id/local-authority/00FC),Childrens Services,Education And Inclusion,Sen/Inclusion,Other Local Authorities,Third Pp - Other Local Auth,PC101,15/02/2022,712102,8998.51,REVENUE,REDACTED PERSONAL INFORMATION,REDACTED PERSONAL INFORMATION
North East Lincolnshire Council,http://statistics.data.gov.uk/id/local-authority/00FC),Childrens Services,Education And Inclusion,Sen/Inclusion,Other Local Authorities,Third Pp - Other Local Auth,PC101,10/02/2022,710358,11751.06,REVENUE,REDACTED PERSONAL INFORMATION,REDACTED PERSONAL INFORMATION
North East Lincolnshire Council,http://statistics.data.gov.uk/id/local-authority/00FC),Childrens Services,Education And Inclusion,Sen/Inclusion,Other Local Authorities,Third Pp - Other Local Auth,PC101,01/02/2022,709899,22454.1,REVENUE,REDACTED PERSONAL INFORMATION,REDACTED PERSONAL INFORMATION
North East Lincolnshire Council,http://statistics.data.gov.uk/id/local-authority/00FC),Childrens Services,Education And Inclusion,Sen/Inclusion,Other Local Authorities,Third Pp - Other Local Auth,PC101,17/02/2022,712707,33676.74,REVENUE,REDACTED PERSONAL INFORMATION,REDACTED PERSONAL INFORMATION
North East Lincolnshire Council,http://statistics.data.gov.uk/id/local-authority/00FC),Childrens Services,Education And Inclusion,Sen/Inclusion,Other Local Authorities,Third Pp - Other Local Auth,PC101,15/02/2022,712093,8833.51,REVENUE,REDACTED PERSONAL INFORMATION,REDACTED PERSONAL INFORMATION
North East Lincolnshire Council,http://statistics.data.gov.uk/id/local-authority/00FC),Childrens Services,Education And Inclusion,Sen/Inclusion,Other Local Authorities,Third Pp - Other Local Auth,PC101,15/02/2022,712094,3166.73,REVENUE,REDACTED PERSONAL INFORMATION,REDACTED PERSONAL INFORMATION
North East Lincolnshire Council,http://statistics.data.gov.uk/id/local-authority/00FC),Childrens Services,Education And Inclusion,Sen/Inclusion,Other Local Authorities,Third Pp - Other Local Auth,PC101,15/02/2022,712095,4116.73,REVENUE,REDACTED PERSONAL INFORMATION,REDACTED PERSONAL INFORMATION
North East Lincolnshire Council,http://statistics.data.gov.uk/id/local-authority/00FC),Childrens Services,Education And Inclusion,Sen/Inclusion,Other Local Authorities,Third Pp - Other Local Auth,PC101,15/02/2022,712096,3736.73,REVENUE,REDACTED PERSONAL INFORMATION,REDACTED PERSONAL INFORMATION
North East Lincolnshire Council,http://statistics.data.gov.uk/id/local-authority/00FC),Childrens Services,Education And Inclusion,Sen/Inclusion,Other Local Authorities,Third Pp - Other Local Auth,PC101,15/02/2022,712097,3736.73,REVENUE,REDACTED PERSONAL INFORMATION,REDACTED PERSONAL INFORMATION
North East Lincolnshire Council,http://statistics.data.gov.uk/id/local-authority/00FC),Childrens Services,Education And Inclusion,Sen/Inclusion,Other Local Authorities,Third Pp - Other Local Auth,PC101,04/02/2022,710711,29787,REVENUE,REDACTED PERSONAL INFORMATION,REDACTED PERSONAL INFORMATION
North East Lincolnshire Council,http://statistics.data.gov.uk/id/local-authority/00FC),Childrens Services,Education And Inclusion,Sen/Inclusion,Other Local Authorities,Third Pp - Other Local Auth,PC101,07/02/2022,710884,4725,REVENUE,REDACTED PERSONAL INFORMATION,REDACTED PERSONAL INFORMATION
North East Lincolnshire Council,http://statistics.data.gov.uk/id/local-authority/00FC),Childrens Services,Education And Inclusion,Sen/Inclusion,Other Local Authorities,Third Pp - Other Local Auth,PC101,07/02/2022,710878,4725,REVENUE,REDACTED PERSONAL INFORMATION,REDACTED PERSONAL INFORMATION
North East Lincolnshire Council,http://statistics.data.gov.uk/id/local-authority/00FC),Childrens Services,Education And Inclusion,Sen/Inclusion,Other Local Authorities,Third Pp - Other Local Auth,PC101,07/02/2022,710879,4725,REVENUE,REDACTED PERSONAL INFORMATION,REDACTED PERSONAL INFORMATION
North East Lincolnshire Council,http://statistics.data.gov.uk/id/local-authority/00FC),Childrens Services,Education And Inclusion,Sen/Inclusion,Other Local Authorities,Third Pp - Other Local Auth,PC101,07/02/2022,710880,2925,REVENUE,REDACTED PERSONAL INFORMATION,REDACTED PERSONAL INFORMATION
North East Lincolnshire Council,http://statistics.data.gov.uk/id/local-authority/00FC),Childrens Services,Education And Inclusion,Sen/Inclusion,Other Local Authorities,Third Pp - Other Local Auth,PC101,07/02/2022,710882,4725,REVENUE,REDACTED PERSONAL INFORMATION,REDACTED PERSONAL INFORMATION
North East Lincolnshire Council,http://statistics.data.gov.uk/id/local-authority/00FC),Childrens Services,Education And Inclusion,Sen/Inclusion,Other Local Authorities,Third Pp - Other Local Auth,PC101,07/02/2022,710883,4725,REVENUE,REDACTED PERSONAL INFORMATION,REDACTED PERSONAL INFORMATION
North East Lincolnshire Council,http://statistics.data.gov.uk/id/local-authority/00FC),Childrens Services,Education And Inclusion,Sen/Inclusion,Other Local Authorities,Third Pp - Other Local Auth,PC101,07/02/2022,710885,1800,REVENUE,REDACTED PERSONAL INFORMATION,REDACTED PERSONAL INFORMATION
North East Lincolnshire Council,http://statistics.data.gov.uk/id/local-authority/00FC),Childrens Services,Education And Inclusion,Sen/Inclusion,Other Local Authorities,Third Pp - Other Local Auth,PC101,07/02/2022,710886,2925,REVENUE,REDACTED PERSONAL INFORMATION,REDACTED PERSONAL INFORMATION
North East Lincolnshire Council,http://statistics.data.gov.uk/id/local-authority/00FC),Childrens Services,Education And Inclusion,Sen/Inclusion,Other Local Authorities,Third Pp - Other Local Auth,PC101,07/02/2022,710887,4725,REVENUE,REDACTED PERSONAL INFORMATION,REDACTED PERSONAL INFORMATION
North East Lincolnshire Council,http://statistics.data.gov.uk/id/local-authority/00FC),Childrens Services,Education And Inclusion,Sen/Inclusion,Other Local Authorities,Third Pp - Other Local Auth,PC101,07/02/2022,710888,4725,REVENUE,REDACTED PERSONAL INFORMATION,REDACTED PERSONAL INFORMATION
North East Lincolnshire Council,http://statistics.data.gov.uk/id/local-authority/00FC),Childrens Services,Education And Inclusion,Sen/Inclusion,Other Local Authorities,Third Pp - Other Local Auth,PC101,07/02/2022,710881,4725,REVENUE,REDACTED PERSONAL INFORMATION,REDACTED PERSONAL INFORMATION
North East Lincolnshire Council,http://statistics.data.gov.uk/id/local-authority/00FC),Childrens Services,Education And Inclusion,Sen/Inclusion,Other Local Authorities,Third Pp - Other Local Auth,PC101,01/02/2022,709894,57960,REVENUE,REDACTED PERSONAL INFORMATION,REDACTED PERSONAL INFORMATION
North East Lincolnshire Council,http://statistics.data.gov.uk/id/local-authority/00FC),Childrens Services,Education And Inclusion,Sen/Inclusion,Other Local Authorities,Third Pp - Other Local Auth,PC101,07/02/2022,710897,3311.89,REVENUE,REDACTED PERSONAL INFORMATION,REDACTED PERSONAL INFORMATION
North East Lincolnshire Council,http://statistics.data.gov.uk/id/local-authority/00FC),Childrens Services,Education And Inclusion,Sen/Inclusion,Other Local Authorities,Third Pp - Other Local Auth,PC101,07/02/2022,710898,2091.72,REVENUE,REDACTED PERSONAL INFORMATION,REDACTED PERSONAL INFORMATION
North East Lincolnshire Council,http://statistics.data.gov.uk/id/local-authority/00FC),Childrens Services,Education And Inclusion,Sen/Inclusion,Other Local Authorities,Third Pp - Other Local Auth,PC101,01/02/2022,701785,-10000,REVENUE,REDACTED PERSONAL INFORMATION,REDACTED PERSONAL INFORMATION
North East Lincolnshire Council,http://statistics.data.gov.uk/id/local-authority/00FC),Childrens Services,Education And Inclusion,Sen/Inclusion,Other Local Authorities,Third Pp - Other Local Auth,PC101,24/02/2022,713955,1800,REVENUE,REDACTED PERSONAL INFORMATION,REDACTED PERSONAL INFORMATION
North East Lincolnshire Council,http://statistics.data.gov.uk/id/local-authority/00FC),Childrens Services,Education And Inclusion,Sen/Inclusion,Other Local Authorities,Third Pp - Other Local Auth,PC101,04/02/2022,710817,8887.5,REVENUE,REDACTED PERSONAL INFORMATION,REDACTED PERSONAL INFORMATION
North East Lincolnshire Council,http://statistics.data.gov.uk/id/local-authority/00FC),Childrens Services,Education And Inclusion,Sen/Inclusion,Other Local Authorities,Third Pp - Other Local Auth,PC101,14/02/2022,712114,5854.5,REVENUE,REDACTED PERSONAL INFORMATION,REDACTED PERSONAL INFORMATION
North East Lincolnshire Council,http://statistics.data.gov.uk/id/local-authority/00FC),Childrens Services,Education And Inclusion,Sen/Inclusion,Other Local Authorities,Third Pp - Other Local Auth,PC101,14/02/2022,712113,4167.38,REVENUE,REDACTED PERSONAL INFORMATION,REDACTED PERSONAL INFORMATION
North East Lincolnshire Council,http://statistics.data.gov.uk/id/local-authority/00FC),Childrens Services,Education And Inclusion,Attainment & Progress,Private Contractors,Third Party Prov - Private,PH101,17/02/2022,712854,521.64,REVENUE,ALISON'S CHILDMINDING SERVICES,119740
North East Lincolnshire Council,http://statistics.data.gov.uk/id/local-authority/00FC),Childrens Services,Education And Inclusion,Attainment & Progress,Private Contractors,Third Party Prov - Private,PH101,17/02/2022,712747,572.4,REVENUE,FOR UNDER FIVES LTD,100647
North East Lincolnshire Council,http://statistics.data.gov.uk/id/local-authority/00FC),Childrens Services,Education And Inclusion,Attainment & Progress,Private Contractors,Third Party Prov - Private,PH101,17/02/2022,712828,1144.8,REVENUE,BURSAR PRIMARY ACADEMY,111550
North East Lincolnshire Council,http://statistics.data.gov.uk/id/local-authority/00FC),Childrens Services,Education And Inclusion,Attainment & Progress,Private Contractors,Third Party Prov - Private,PH101,17/02/2022,712801,2575.8,REVENUE,BUTTERFLIES DAY NURSERY,101694
North East Lincolnshire Council,http://statistics.data.gov.uk/id/local-authority/00FC),Childrens Services,Education And Inclusion,Attainment & Progress,Private Contractors,Third Party Prov - Private,PH101,17/02/2022,712880,1144.8,REVENUE,CANON PETER HALL CE PRIMARY ACADEMY,126646
North East Lincolnshire Council,http://statistics.data.gov.uk/id/local-authority/00FC),Childrens Services,Education And Inclusion,Attainment & Progress,Private Contractors,Third Party Prov - Private,PH101,17/02/2022,712750,954,REVENUE,FOR UNDER FIVES LTD,100647
North East Lincolnshire Council,http://statistics.data.gov.uk/id/local-authority/00FC),Childrens Services,Education And Inclusion,Attainment & Progress,Private Contractors,Third Party Prov - Private,PH101,17/02/2022,712868,572.4,REVENUE,EASTFIELD PRIMARY ACADEMY,121907
North East Lincolnshire Council,http://statistics.data.gov.uk/id/local-authority/00FC),Childrens Services,Education And Inclusion,Attainment & Progress,Private Contractors,Third Party Prov - Private,PH101,17/02/2022,712830,381.6,REVENUE,EDWARD HENEAGE PRIMARY (ACADEMY),111742
North East Lincolnshire Council,http://statistics.data.gov.uk/id/local-authority/00FC),Childrens Services,Education And Inclusion,Attainment & Progress,Private Contractors,Third Party Prov - Private,PH101,17/02/2022,712903,1502.55,REVENUE,ELLISTON PRIMARY ACADEMY,129629
North East Lincolnshire Council,http://statistics.data.gov.uk/id/local-authority/00FC),Childrens Services,Education And Inclusion,Attainment & Progress,Private Contractors,Third Party Prov - Private,PH101,17/02/2022,712955,286.2,REVENUE,EXPLOROSITY EDUCATION LTD,145026
North East Lincolnshire Council,http://statistics.data.gov.uk/id/local-authority/00FC),Childrens Services,Education And Inclusion,Attainment & Progress,Private Contractors,Third Party Prov - Private,PH101,17/02/2022,712899,477,REVENUE,FREESTON TOTS PRESCHOOL,128592
North East Lincolnshire Council,http://statistics.data.gov.uk/id/local-authority/00FC),Childrens Services,Education And Inclusion,Attainment & Progress,Private Contractors,Third Party Prov - Private,PH101,17/02/2022,712785,2806.35,REVENUE,FIRST STEPS GRIMSBY LIMITED,101411
North East Lincolnshire Council,http://statistics.data.gov.uk/id/local-authority/00FC),Childrens Services,Education And Inclusion,Attainment & Progress,Private Contractors,Third Party Prov - Private,PH101,17/02/2022,712842,1431,REVENUE,HUMBERSTON PRE SCHOOL,114491
North East Lincolnshire Council,http://statistics.data.gov.uk/id/local-authority/00FC),Childrens Services,Education And Inclusion,Attainment & Progress,Private Contractors,Third Party Prov - Private,PH101,17/02/2022,712922,572.4,REVENUE,GREAT COATES PRIMARY ACADEMY,134467
North East Lincolnshire Council,http://statistics.data.gov.uk/id/local-authority/00FC),Childrens Services,Education And Inclusion,Attainment & Progress,Private Contractors,Third Party Prov - Private,PH101,17/02/2022,712770,286.2,REVENUE,HEALING VILLAGE NURSERY,101096
North East Lincolnshire Council,http://statistics.data.gov.uk/id/local-authority/00FC),Childrens Services,Education And Inclusion,Attainment & Progress,Private Contractors,Third Party Prov - Private,PH101,17/02/2022,712796,546.96,REVENUE,CLEETHORPES CHILDCARE,101591
North East Lincolnshire Council,http://statistics.data.gov.uk/id/local-authority/00FC),Childrens Services,Education And Inclusion,Attainment & Progress,Private Contractors,Third Party Prov - Private,PH101,17/02/2022,712908,477,REVENUE,HUMBERSTON CLOVERFIELDS ACADEMY NURSERY,132178
North East Lincolnshire Council,http://statistics.data.gov.uk/id/local-authority/00FC),Childrens Services,Education And Inclusion,Attainment & Progress,Private Contractors,Third Party Prov - Private,PH101,17/02/2022,712873,1144.8,REVENUE,IMMINGHAM DAY CARE,122312
North East Lincolnshire Council,http://statistics.data.gov.uk/id/local-authority/00FC),Childrens Services,Education And Inclusion,Attainment & Progress,Private Contractors,Third Party Prov - Private,PH101,17/02/2022,712768,381.6,REVENUE,IMMINGHAM DAY NURSERY,100998
North East Lincolnshire Council,http://statistics.data.gov.uk/id/local-authority/00FC),Childrens Services,Education And Inclusion,Attainment & Progress,Private Contractors,Third Party Prov - Private,PH101,17/02/2022,712890,477,REVENUE,LEAP AHEAD NURSERY,128017
North East Lincolnshire Council,http://statistics.data.gov.uk/id/local-authority/00FC),Childrens Services,Education And Inclusion,Attainment & Progress,Private Contractors,Third Party Prov - Private,PH101,17/02/2022,712889,572.4,REVENUE,LEAP AHEAD NURSERY,128017
North East Lincolnshire Council,http://statistics.data.gov.uk/id/local-authority/00FC),Childrens Services,Education And Inclusion,Attainment & Progress,Private Contractors,Third Party Prov - Private,PH101,17/02/2022,712948,667.8,REVENUE,LITTLE OAKS DAY NURSERY,144718
North East Lincolnshire Council,http://statistics.data.gov.uk/id/local-authority/00FC),Childrens Services,Education And Inclusion,Attainment & Progress,Private Contractors,Third Party Prov - Private,PH101,17/02/2022,712964,858.6,REVENUE,TEC PARTNERSHIP - LITTLE STARS NURSERY,149044
North East Lincolnshire Council,http://statistics.data.gov.uk/id/local-authority/00FC),Childrens Services,Education And Inclusion,Attainment & Progress,Private Contractors,Third Party Prov - Private,PH101,17/02/2022,712819,896.76,REVENUE,LISLE MARSDEN CHILDCARE LIMITED,110493
North East Lincolnshire Council,http://statistics.data.gov.uk/id/local-authority/00FC),Childrens Services,Education And Inclusion,Attainment & Progress,Private Contractors,Third Party Prov - Private,PH101,17/02/2022,712919,954,REVENUE,LITTLECOATES PRIMARY ACADEMY,134261
North East Lincolnshire Council,http://statistics.data.gov.uk/id/local-authority/00FC),Childrens Services,Education And Inclusion,Attainment & Progress,Private Contractors,Third Party Prov - Private,PH101,17/02/2022,712838,1812.6,REVENUE,MACAULAY PRIMARY ACADEMY,112680
North East Lincolnshire Council,http://statistics.data.gov.uk/id/local-authority/00FC),Childrens Services,Education And Inclusion,Attainment & Progress,Private Contractors,Third Party Prov - Private,PH101,17/02/2022,712940,477,REVENUE,MIDDLETHORPE NURSERY,143658
North East Lincolnshire Council,http://statistics.data.gov.uk/id/local-authority/00FC),Childrens Services,Education And Inclusion,Attainment & Progress,Private Contractors,Third Party Prov - Private,PH101,17/02/2022,712815,591.48,REVENUE,NEW WALTHAM ACADEMY,108556
North East Lincolnshire Council,http://statistics.data.gov.uk/id/local-authority/00FC),Childrens Services,Education And Inclusion,Attainment & Progress,Private Contractors,Third Party Prov - Private,PH101,17/02/2022,712896,381.6,REVENUE,ONLY ABOUT KIDS,128121
North East Lincolnshire Council,http://statistics.data.gov.uk/id/local-authority/00FC),Childrens Services,Education And Inclusion,Attainment & Progress,Private Contractors,Third Party Prov - Private,PH101,17/02/2022,712876,1216.35,REVENUE,OASIS ACADEMY SCHOOL (NUNSTHORPE SCHOOL),122861
North East Lincolnshire Council,http://statistics.data.gov.uk/id/local-authority/00FC),Childrens Services,Education And Inclusion,Attainment & Progress,Private Contractors,Third Party Prov - Private,PH101,17/02/2022,712857,1335.6,REVENUE,OLD CLEE PRIMARY ACADEMY,119822
North East Lincolnshire Council,http://statistics.data.gov.uk/id/local-authority/00FC),Childrens Services,Education And Inclusion,Attainment & Progress,Private Contractors,Third Party Prov - Private,PH101,17/02/2022,712832,2082.9,REVENUE,ORMISTON SOUTH PARADE ACADEMY,111750
North East Lincolnshire Council,http://statistics.data.gov.uk/id/local-authority/00FC),Childrens Services,Education And Inclusion,Attainment & Progress,Private Contractors,Third Party Prov - Private,PH101,17/02/2022,712925,643.95,REVENUE,PILGRIM ACADEMY,136366
North East Lincolnshire Council,http://statistics.data.gov.uk/id/local-authority/00FC),Childrens Services,Education And Inclusion,Attainment & Progress,Private Contractors,Third Party Prov - Private,PH101,17/02/2022,712787,1583.64,REVENUE,PRECIOUS TIMES CHILDCARE SERVICES,101420
North East Lincolnshire Council,http://statistics.data.gov.uk/id/local-authority/00FC),Childrens Services,Education And Inclusion,Attainment & Progress,Private Contractors,Third Party Prov - Private,PH101,17/02/2022,712757,1144.8,REVENUE,FOR UNDER FIVES LTD,100647
North East Lincolnshire Council,http://statistics.data.gov.uk/id/local-authority/00FC),Childrens Services,Education And Inclusion,Attainment & Progress,Private Contractors,Third Party Prov - Private,PH101,17/02/2022,712870,1240.2,REVENUE,REYNOLDS ACADEMY,122175
North East Lincolnshire Council,http://statistics.data.gov.uk/id/local-authority/00FC),Childrens Services,Education And Inclusion,Attainment & Progress,Private Contractors,Third Party Prov - Private,PH101,17/02/2022,712794,566.04,REVENUE,CLEETHORPES CHILDCARE,101591
North East Lincolnshire Council,http://statistics.data.gov.uk/id/local-authority/00FC),Childrens Services,Education And Inclusion,Attainment & Progress,Private Contractors,Third Party Prov - Private,PH101,17/02/2022,712866,756.84,REVENUE,ST CHRISTOPHERS PRE SCHOOL,121589
North East Lincolnshire Council,http://statistics.data.gov.uk/id/local-authority/00FC),Childrens Services,Education And Inclusion,Attainment & Progress,Private Contractors,Third Party Prov - Private,PH101,17/02/2022,712817,457.92,REVENUE,ST JOSEPH'S RC PRIMARY ACADEMY,110066
North East Lincolnshire Council,http://statistics.data.gov.uk/id/local-authority/00FC),Childrens Services,Education And Inclusion,Attainment & Progress,Private Contractors,Third Party Prov - Private,PH101,17/02/2022,712848,858.6,REVENUE,ST MARYS CATHOLIC PRIMARY VOLUNTARY ACADEMY,115108
North East Lincolnshire Council,http://statistics.data.gov.uk/id/local-authority/00FC),Childrens Services,Education And Inclusion,Attainment & Progress,Private Contractors,Third Party Prov - Private,PH101,17/02/2022,712778,1144.8,REVENUE,ST PETERS CHILDREN CENTRE,101322
North East Lincolnshire Council,http://statistics.data.gov.uk/id/local-authority/00FC),Childrens Services,Education And Inclusion,Attainment & Progress,Private Contractors,Third Party Prov - Private,PH101,17/02/2022,712835,667.8,REVENUE,STRAND PRIMARY ACADEMY,111862
North East Lincolnshire Council,http://statistics.data.gov.uk/id/local-authority/00FC),Childrens Services,Education And Inclusion,Attainment & Progress,Private Contractors,Third Party Prov - Private,PH101,17/02/2022,712849,477,REVENUE,THRUNSCOE PRIMARY AND NURSERY ACADEMY,118749
North East Lincolnshire Council,http://statistics.data.gov.uk/id/local-authority/00FC),Childrens Services,Education And Inclusion,Attainment & Progress,Private Contractors,Third Party Prov - Private,PH101,17/02/2022,712812,954,REVENUE,WALTHAM LEAS PRE-SCHOOL,108236
North East Lincolnshire Council,http://statistics.data.gov.uk/id/local-authority/00FC),Childrens Services,Education And Inclusion,Attainment & Progress,Private Contractors,Third Party Prov - Private,PH101,17/02/2022,712826,1399.2,REVENUE,WEELSBY ACADEMY,111161
North East Lincolnshire Council,http://statistics.data.gov.uk/id/local-authority/00FC),Childrens Services,Education And Inclusion,Attainment & Progress,Private Contractors,Third Party Prov - Private,PH101,17/02/2022,712883,2305.5,REVENUE,WELHOLME ACADEMY,127227
North East Lincolnshire Council,http://statistics.data.gov.uk/id/local-authority/00FC),Childrens Services,Education And Inclusion,Attainment & Progress,Private Contractors,Third Party Prov - Private,PH101,17/02/2022,712780,286.2,REVENUE,WENDOVER PRE-SCHOOL,101350
North East Lincolnshire Council,http://statistics.data.gov.uk/id/local-authority/00FC),Childrens Services,Education And Inclusion,Attainment & Progress,Private Contractors,Third Party Prov - Private,PH101,17/02/2022,712861,373.65,REVENUE,WILLOWS PRIMARY ACADEMY,120478
North East Lincolnshire Council,http://statistics.data.gov.uk/id/local-authority/00FC),Childrens Services,Education And Inclusion,Attainment & Progress,Private Contractors,Third Party Prov - Private,PH101,17/02/2022,712808,1450.08,REVENUE,WIZ KIDZ,102424
North East Lincolnshire Council,http://statistics.data.gov.uk/id/local-authority/00FC),Childrens Services,Education And Inclusion,Attainment & Progress,Private Contractors,Third Party Prov - Private,PH101,17/02/2022,712912,1534.35,REVENUE,WOODLANDS ACADEMY,132649
North East Lincolnshire Council,http://statistics.data.gov.uk/id/local-authority/00FC),Childrens Services,Education And Inclusion,Attainment & Progress,Private Contractors,Third Party Prov - Private,PH101,17/02/2022,712841,572.4,REVENUE,YARBOROUGH ACADEMY,112852
North East Lincolnshire Council,http://statistics.data.gov.uk/id/local-authority/00FC),Childrens Services,Education And Inclusion,Attainment & Progress,Other Agencies,Nursery Educ Fund - Standard,PJ139,17/02/2022,712909,558.9,REVENUE,MRS ALISON PARKER,132521
North East Lincolnshire Council,http://statistics.data.gov.uk/id/local-authority/00FC),Childrens Services,Education And Inclusion,Attainment & Progress,Other Agencies,Nursery Educ Fund - Standard,PJ139,17/02/2022,712943,377.1,REVENUE,RAYCH'S RUGRATS CHILDMINDER,143723
North East Lincolnshire Council,http://statistics.data.gov.uk/id/local-authority/00FC),Childrens Services,Education And Inclusion,Attainment & Progress,Other Agencies,Nursery Educ Fund - Standard,PJ139,17/02/2022,712746,9066.6,REVENUE,FOR UNDER FIVES LTD,100647
North East Lincolnshire Council,http://statistics.data.gov.uk/id/local-authority/00FC),Childrens Services,Education And Inclusion,Attainment & Progress,Other Agencies,Nursery Educ Fund - Standard,PJ139,17/02/2022,712829,9158.4,REVENUE,BURSAR PRIMARY ACADEMY,111550
North East Lincolnshire Council,http://statistics.data.gov.uk/id/local-authority/00FC),Childrens Services,Education And Inclusion,Attainment & Progress,Other Agencies,Nursery Educ Fund - Standard,PJ139,17/02/2022,712800,22578,REVENUE,BUTTERFLIES DAY NURSERY,101694
North East Lincolnshire Council,http://statistics.data.gov.uk/id/local-authority/00FC),Childrens Services,Education And Inclusion,Attainment & Progress,Other Agencies,Nursery Educ Fund - Standard,PJ139,17/02/2022,712917,10875.6,REVENUE,CAMPDEN KIDS LTD,132975
North East Lincolnshire Council,http://statistics.data.gov.uk/id/local-authority/00FC),Childrens Services,Education And Inclusion,Attainment & Progress,Other Agencies,Nursery Educ Fund - Standard,PJ139,17/02/2022,712879,5914.8,REVENUE,CANON PETER HALL CE PRIMARY ACADEMY,126646
North East Lincolnshire Council,http://statistics.data.gov.uk/id/local-authority/00FC),Childrens Services,Education And Inclusion,Attainment & Progress,Other Agencies,Nursery Educ Fund - Standard,PJ139,17/02/2022,712968,869.4,REVENUE,KERRY BYRAM,149814
North East Lincolnshire Council,http://statistics.data.gov.uk/id/local-authority/00FC),Childrens Services,Education And Inclusion,Attainment & Progress,Other Agencies,Nursery Educ Fund - Standard,PJ139,17/02/2022,712749,4197.6,REVENUE,FOR UNDER FIVES LTD,100647
North East Lincolnshire Council,http://statistics.data.gov.uk/id/local-authority/00FC),Childrens Services,Education And Inclusion,Attainment & Progress,Other Agencies,Nursery Educ Fund - Standard,PJ139,17/02/2022,712773,7743.87,REVENUE,THE CHILDRENS HOUSE,101141
North East Lincolnshire Council,http://statistics.data.gov.uk/id/local-authority/00FC),Childrens Services,Education And Inclusion,Attainment & Progress,Other Agencies,Nursery Educ Fund - Standard,PJ139,17/02/2022,712930,954,REVENUE,CLARE HOLNESS,140793
North East Lincolnshire Council,http://statistics.data.gov.uk/id/local-authority/00FC),Childrens Services,Education And Inclusion,Attainment & Progress,Other Agencies,Nursery Educ Fund - Standard,PJ139,17/02/2022,712867,13786.2,REVENUE,EASTFIELD PRIMARY ACADEMY,121907
North East Lincolnshire Council,http://statistics.data.gov.uk/id/local-authority/00FC),Childrens Services,Education And Inclusion,Attainment & Progress,Other Agencies,Nursery Educ Fund - Standard,PJ139,17/02/2022,712816,2154.87,REVENUE,EAST RAVENDALE C OF E PRIMARY SCHOOL ACADEMY,109167
North East Lincolnshire Council,http://statistics.data.gov.uk/id/local-authority/00FC),Childrens Services,Education And Inclusion,Attainment & Progress,Other Agencies,Nursery Educ Fund - Standard,PJ139,17/02/2022,712831,4960.8,REVENUE,EDWARD HENEAGE PRIMARY (ACADEMY),111742
North East Lincolnshire Council,http://statistics.data.gov.uk/id/local-authority/00FC),Childrens Services,Education And Inclusion,Attainment & Progress,Other Agencies,Nursery Educ Fund - Standard,PJ139,17/02/2022,712904,6105.6,REVENUE,ELLISTON PRIMARY ACADEMY,129629
North East Lincolnshire Council,http://statistics.data.gov.uk/id/local-authority/00FC),Childrens Services,Education And Inclusion,Attainment & Progress,Other Agencies,Nursery Educ Fund - Standard,PJ139,17/02/2022,712958,707.94,REVENUE,EMILY MUMBY,147323
North East Lincolnshire Council,http://statistics.data.gov.uk/id/local-authority/00FC),Childrens Services,Education And Inclusion,Attainment & Progress,Other Agencies,Nursery Educ Fund - Standard,PJ139,17/02/2022,712954,12519.36,REVENUE,EXPLOROSITY EDUCATION LTD,145026
North East Lincolnshire Council,http://statistics.data.gov.uk/id/local-authority/00FC),Childrens Services,Education And Inclusion,Attainment & Progress,Other Agencies,Nursery Educ Fund - Standard,PJ139,17/02/2022,712902,7365.06,REVENUE,FAIRFIELD PRIMARY ACADEMY,129030
North East Lincolnshire Council,http://statistics.data.gov.uk/id/local-authority/00FC),Childrens Services,Education And Inclusion,Attainment & Progress,Other Agencies,Nursery Educ Fund - Standard,PJ139,17/02/2022,712900,699.6,REVENUE,FREESTON TOTS PRESCHOOL,128592
North East Lincolnshire Council,http://statistics.data.gov.uk/id/local-authority/00FC),Childrens Services,Education And Inclusion,Attainment & Progress,Other Agencies,Nursery Educ Fund - Standard,PJ139,17/02/2022,712784,16612.32,REVENUE,FIRST STEPS GRIMSBY LIMITED,101411
North East Lincolnshire Council,http://statistics.data.gov.uk/id/local-authority/00FC),Childrens Services,Education And Inclusion,Attainment & Progress,Other Agencies,Nursery Educ Fund - Standard,PJ139,17/02/2022,712843,6906.96,REVENUE,HUMBERSTON PRE SCHOOL,114491
North East Lincolnshire Council,http://statistics.data.gov.uk/id/local-authority/00FC),Childrens Services,Education And Inclusion,Attainment & Progress,Other Agencies,Nursery Educ Fund - Standard,PJ139,17/02/2022,712923,16969.5,REVENUE,GREAT COATES PRIMARY ACADEMY,134467
North East Lincolnshire Council,http://statistics.data.gov.uk/id/local-authority/00FC),Childrens Services,Education And Inclusion,Attainment & Progress,Other Agencies,Nursery Educ Fund - Standard,PJ139,17/02/2022,712752,10743.3,REVENUE,FOR UNDER FIVES LTD,100647
North East Lincolnshire Council,http://statistics.data.gov.uk/id/local-authority/00FC),Childrens Services,Education And Inclusion,Attainment & Progress,Other Agencies,Nursery Educ Fund - Standard,PJ139,17/02/2022,712793,1552.5,REVENUE,HELEN CROOKS,101529
North East Lincolnshire Council,http://statistics.data.gov.uk/id/local-authority/00FC),Childrens Services,Education And Inclusion,Attainment & Progress,Other Agencies,Nursery Educ Fund - Standard,PJ139,17/02/2022,712771,7911.54,REVENUE,HEALING VILLAGE NURSERY,101096
North East Lincolnshire Council,http://statistics.data.gov.uk/id/local-authority/00FC),Childrens Services,Education And Inclusion,Attainment & Progress,Other Agencies,Nursery Educ Fund - Standard,PJ139,17/02/2022,712898,558.9,REVENUE,ELLIE TOTS CHILDMINDING SERVICES,128251
North East Lincolnshire Council,http://statistics.data.gov.uk/id/local-authority/00FC),Childrens Services,Education And Inclusion,Attainment & Progress,Other Agencies,Nursery Educ Fund - Standard,PJ139,17/02/2022,712797,1344.99,REVENUE,CLEETHORPES CHILDCARE,101591
North East Lincolnshire Council,http://statistics.data.gov.uk/id/local-authority/00FC),Childrens Services,Education And Inclusion,Attainment & Progress,Other Agencies,Nursery Educ Fund - Standard,PJ139,17/02/2022,712878,322.92,REVENUE,HANNAH TOFTON - LITTLE LAMBS CHILDMINDER,123304
North East Lincolnshire Council,http://statistics.data.gov.uk/id/local-authority/00FC),Childrens Services,Education And Inclusion,Attainment & Progress,Other Agencies,Nursery Educ Fund - Standard,PJ139,17/02/2022,712907,32714.28,REVENUE,HUMBERSTON CLOVERFIELDS ACADEMY NURSERY,132178
North East Lincolnshire Council,http://statistics.data.gov.uk/id/local-authority/00FC),Childrens Services,Education And Inclusion,Attainment & Progress,Other Agencies,Nursery Educ Fund - Standard,PJ139,17/02/2022,712846,12233.7,REVENUE,HUMBERSTON PRE SCHOOL,114491
North East Lincolnshire Council,http://statistics.data.gov.uk/id/local-authority/00FC),Childrens Services,Education And Inclusion,Attainment & Progress,Other Agencies,Nursery Educ Fund - Standard,PJ139,17/02/2022,712875,4098.6,REVENUE,IMMINGHAM DAY CARE,122312
North East Lincolnshire Council,http://statistics.data.gov.uk/id/local-authority/00FC),Childrens Services,Education And Inclusion,Attainment & Progress,Other Agencies,Nursery Educ Fund - Standard,PJ139,17/02/2022,712769,1863,REVENUE,IMMINGHAM DAY NURSERY,100998
North East Lincolnshire Council,http://statistics.data.gov.uk/id/local-authority/00FC),Childrens Services,Education And Inclusion,Attainment & Progress,Other Agencies,Nursery Educ Fund - Standard,PJ139,17/02/2022,712760,3816,REVENUE,JUDY CLARK CHILD CARE,100939
North East Lincolnshire Council,http://statistics.data.gov.uk/id/local-authority/00FC),Childrens Services,Education And Inclusion,Attainment & Progress,Other Agencies,Nursery Educ Fund - Standard,PJ139,17/02/2022,712951,1490.4,REVENUE,KELLY FLINN,144957
North East Lincolnshire Council,http://statistics.data.gov.uk/id/local-authority/00FC),Childrens Services,Education And Inclusion,Attainment & Progress,Other Agencies,Nursery Educ Fund - Standard,PJ139,17/02/2022,712807,1142.64,REVENUE,MS KAREN HUDSON,102103
North East Lincolnshire Council,http://statistics.data.gov.uk/id/local-authority/00FC),Childrens Services,Education And Inclusion,Attainment & Progress,Other Agencies,Nursery Educ Fund - Standard,PJ139,17/02/2022,712942,1341.36,REVENUE,KATIE ROBBINS,143660
North East Lincolnshire Council,http://statistics.data.gov.uk/id/local-authority/00FC),Childrens Services,Education And Inclusion,Attainment & Progress,Other Agencies,Nursery Educ Fund - Standard,PJ139,17/02/2022,712893,6487.2,REVENUE,LEAP AHEAD NURSERY,128017
North East Lincolnshire Council,http://statistics.data.gov.uk/id/local-authority/00FC),Childrens Services,Education And Inclusion,Attainment & Progress,Other Agencies,Nursery Educ Fund - Standard,PJ139,17/02/2022,712892,2289.6,REVENUE,LEAP AHEAD NURSERY,128017
North East Lincolnshire Council,http://statistics.data.gov.uk/id/local-authority/00FC),Childrens Services,Education And Inclusion,Attainment & Progress,Other Agencies,Nursery Educ Fund - Standard,PJ139,17/02/2022,712825,11476.08,REVENUE,LITTLE BLOSSOMS DAY NURSERY,111058
North East Lincolnshire Council,http://statistics.data.gov.uk/id/local-authority/00FC),Childrens Services,Education And Inclusion,Attainment & Progress,Other Agencies,Nursery Educ Fund - Standard,PJ139,17/02/2022,712949,8204.4,REVENUE,LITTLE OAKS DAY NURSERY,144718
North East Lincolnshire Council,http://statistics.data.gov.uk/id/local-authority/00FC),Childrens Services,Education And Inclusion,Attainment & Progress,Other Agencies,Nursery Educ Fund - Standard,PJ139,17/02/2022,712963,6347.85,REVENUE,TEC PARTNERSHIP - LITTLE STARS NURSERY,149044
North East Lincolnshire Council,http://statistics.data.gov.uk/id/local-authority/00FC),Childrens Services,Education And Inclusion,Attainment & Progress,Other Agencies,Nursery Educ Fund - Standard,PJ139,17/02/2022,712871,314.25,REVENUE,LITTLE TWINKLES CHILDCARE LTD,122217
North East Lincolnshire Council,http://statistics.data.gov.uk/id/local-authority/00FC),Childrens Services,Education And Inclusion,Attainment & Progress,Other Agencies,Nursery Educ Fund - Standard,PJ139,17/02/2022,712821,21607.83,REVENUE,LISLE MARSDEN CHILDCARE LIMITED,110493
North East Lincolnshire Council,http://statistics.data.gov.uk/id/local-authority/00FC),Childrens Services,Education And Inclusion,Attainment & Progress,Other Agencies,Nursery Educ Fund - Standard,PJ139,17/02/2022,712920,4897.2,REVENUE,LITTLECOATES PRIMARY ACADEMY,134261
North East Lincolnshire Council,http://statistics.data.gov.uk/id/local-authority/00FC),Childrens Services,Education And Inclusion,Attainment & Progress,Other Agencies,Nursery Educ Fund - Standard,PJ139,17/02/2022,712839,8586,REVENUE,MACAULAY PRIMARY ACADEMY,112680
North East Lincolnshire Council,http://statistics.data.gov.uk/id/local-authority/00FC),Childrens Services,Education And Inclusion,Attainment & Progress,Other Agencies,Nursery Educ Fund - Standard,PJ139,17/02/2022,712939,8308.98,REVENUE,MIDDLETHORPE NURSERY,143658
North East Lincolnshire Council,http://statistics.data.gov.uk/id/local-authority/00FC),Childrens Services,Education And Inclusion,Attainment & Progress,Other Agencies,Nursery Educ Fund - Standard,PJ139,17/02/2022,712946,763.2,REVENUE,MARINA WELLBURN,144696
North East Lincolnshire Council,http://statistics.data.gov.uk/id/local-authority/00FC),Childrens Services,Education And Inclusion,Attainment & Progress,Other Agencies,Nursery Educ Fund - Standard,PJ139,17/02/2022,712961,1117.8,REVENUE,EMMA FLORES,148270
North East Lincolnshire Council,http://statistics.data.gov.uk/id/local-authority/00FC),Childrens Services,Education And Inclusion,Attainment & Progress,Other Agencies,Nursery Educ Fund - Standard,PJ139,17/02/2022,712936,754.2,REVENUE,MS NATASHA DYKE,141560
North East Lincolnshire Council,http://statistics.data.gov.uk/id/local-authority/00FC),Childrens Services,Education And Inclusion,Attainment & Progress,Other Agencies,Nursery Educ Fund - Standard,PJ139,17/02/2022,712814,13165.2,REVENUE,NEW WALTHAM ACADEMY,108556
North East Lincolnshire Council,http://statistics.data.gov.uk/id/local-authority/00FC),Childrens Services,Education And Inclusion,Attainment & Progress,Other Agencies,Nursery Educ Fund - Standard,PJ139,17/02/2022,712913,558.9,REVENUE,NATALIE MUNDAY,132728
North East Lincolnshire Council,http://statistics.data.gov.uk/id/local-authority/00FC),Childrens Services,Education And Inclusion,Attainment & Progress,Other Agencies,Nursery Educ Fund - Standard,PJ139,17/02/2022,712895,5545.53,REVENUE,ONLY ABOUT KIDS,128121
North East Lincolnshire Council,http://statistics.data.gov.uk/id/local-authority/00FC),Childrens Services,Education And Inclusion,Attainment & Progress,Other Agencies,Nursery Educ Fund - Standard,PJ139,17/02/2022,712877,11511.6,REVENUE,OASIS ACADEMY SCHOOL (NUNSTHORPE SCHOOL),122861
North East Lincolnshire Council,http://statistics.data.gov.uk/id/local-authority/00FC),Childrens Services,Education And Inclusion,Attainment & Progress,Other Agencies,Nursery Educ Fund - Standard,PJ139,17/02/2022,712856,10558.8,REVENUE,OLD CLEE PRIMARY ACADEMY,119822
North East Lincolnshire Council,http://statistics.data.gov.uk/id/local-authority/00FC),Childrens Services,Education And Inclusion,Attainment & Progress,Other Agencies,Nursery Educ Fund - Standard,PJ139,17/02/2022,712950,484.38,REVENUE,LAURA SAVAGE,144810
North East Lincolnshire Council,http://statistics.data.gov.uk/id/local-authority/00FC),Childrens Services,Education And Inclusion,Attainment & Progress,Other Agencies,Nursery Educ Fund - Standard,PJ139,17/02/2022,712833,18380.4,REVENUE,ORMISTON SOUTH PARADE ACADEMY,111750
North East Lincolnshire Council,http://statistics.data.gov.uk/id/local-authority/00FC),Childrens Services,Education And Inclusion,Attainment & Progress,Other Agencies,Nursery Educ Fund - Standard,PJ139,17/02/2022,712924,7824.6,REVENUE,PILGRIM ACADEMY,136366
North East Lincolnshire Council,http://statistics.data.gov.uk/id/local-authority/00FC),Childrens Services,Education And Inclusion,Attainment & Progress,Other Agencies,Nursery Educ Fund - Standard,PJ139,17/02/2022,712786,7203.6,REVENUE,PRECIOUS TIMES CHILDCARE SERVICES,101420
North East Lincolnshire Council,http://statistics.data.gov.uk/id/local-authority/00FC),Childrens Services,Education And Inclusion,Attainment & Progress,Other Agencies,Nursery Educ Fund - Standard,PJ139,17/02/2022,712791,13500.18,REVENUE,PRECIOUS TIMES CHILDCARE SERVICES,101420
North East Lincolnshire Council,http://statistics.data.gov.uk/id/local-authority/00FC),Childrens Services,Education And Inclusion,Attainment & Progress,Other Agencies,Nursery Educ Fund - Standard,PJ139,17/02/2022,712745,10990.08,REVENUE,FOR UNDER FIVES LTD,100647
North East Lincolnshire Council,http://statistics.data.gov.uk/id/local-authority/00FC),Childrens Services,Education And Inclusion,Attainment & Progress,Other Agencies,Nursery Educ Fund - Standard,PJ139,17/02/2022,712869,14958.72,REVENUE,REYNOLDS ACADEMY,122175
North East Lincolnshire Council,http://statistics.data.gov.uk/id/local-authority/00FC),Childrens Services,Education And Inclusion,Attainment & Progress,Other Agencies,Nursery Educ Fund - Standard,PJ139,17/02/2022,712766,11606.49,REVENUE,READY TEDDY GO,100973
North East Lincolnshire Council,http://statistics.data.gov.uk/id/local-authority/00FC),Childrens Services,Education And Inclusion,Attainment & Progress,Other Agencies,Nursery Educ Fund - Standard,PJ139,17/02/2022,712887,2226,REVENUE,SARAH FARROW-BROWNE,127842
North East Lincolnshire Council,http://statistics.data.gov.uk/id/local-authority/00FC),Childrens Services,Education And Inclusion,Attainment & Progress,Other Agencies,Nursery Educ Fund - Standard,PJ139,17/02/2022,712822,377.1,REVENUE,SHARON SPRINGALL,111029
North East Lincolnshire Council,http://statistics.data.gov.uk/id/local-authority/00FC),Childrens Services,Education And Inclusion,Attainment & Progress,Other Agencies,Nursery Educ Fund - Standard,PJ139,17/02/2022,712795,17164.44,REVENUE,CLEETHORPES CHILDCARE,101591
North East Lincolnshire Council,http://statistics.data.gov.uk/id/local-authority/00FC),Childrens Services,Education And Inclusion,Attainment & Progress,Other Agencies,Nursery Educ Fund - Standard,PJ139,17/02/2022,712754,9563.4,REVENUE,FOR UNDER FIVES LTD,100647
North East Lincolnshire Council,http://statistics.data.gov.uk/id/local-authority/00FC),Childrens Services,Education And Inclusion,Attainment & Progress,Other Agencies,Nursery Educ Fund - Standard,PJ139,17/02/2022,712906,6334.2,REVENUE,SPRINGFIELD PRIMARY ACADEMY,131306
North East Lincolnshire Council,http://statistics.data.gov.uk/id/local-authority/00FC),Childrens Services,Education And Inclusion,Attainment & Progress,Other Agencies,Nursery Educ Fund - Standard,PJ139,17/02/2022,712805,496.8,REVENUE,SARAH SHOTBOLT,101742
North East Lincolnshire Council,http://statistics.data.gov.uk/id/local-authority/00FC),Childrens Services,Education And Inclusion,Attainment & Progress,Other Agencies,Nursery Educ Fund - Standard,PJ139,17/02/2022,712864,4757.28,REVENUE,ST CHRISTOPHERS PRE SCHOOL,121589
North East Lincolnshire Council,http://statistics.data.gov.uk/id/local-authority/00FC),Childrens Services,Education And Inclusion,Attainment & Progress,Other Agencies,Nursery Educ Fund - Standard,PJ139,17/02/2022,712818,3997.26,REVENUE,ST JOSEPH'S RC PRIMARY ACADEMY,110066
North East Lincolnshire Council,http://statistics.data.gov.uk/id/local-authority/00FC),Childrens Services,Education And Inclusion,Attainment & Progress,Other Agencies,Nursery Educ Fund - Standard,PJ139,17/02/2022,712804,6520.5,REVENUE,ST MARGARETS PRE-SCHOOL,101724
North East Lincolnshire Council,http://statistics.data.gov.uk/id/local-authority/00FC),Childrens Services,Education And Inclusion,Attainment & Progress,Other Agencies,Nursery Educ Fund - Standard,PJ139,17/02/2022,712761,14237.46,REVENUE,ST MARTINS PREPARATORY SCHOOL,100940
North East Lincolnshire Council,http://statistics.data.gov.uk/id/local-authority/00FC),Childrens Services,Education And Inclusion,Attainment & Progress,Other Agencies,Nursery Educ Fund - Standard,PJ139,17/02/2022,712847,6105.6,REVENUE,ST MARYS CATHOLIC PRIMARY VOLUNTARY ACADEMY,115108
North East Lincolnshire Council,http://statistics.data.gov.uk/id/local-authority/00FC),Childrens Services,Education And Inclusion,Attainment & Progress,Other Agencies,Nursery Educ Fund - Standard,PJ139,17/02/2022,712776,11231.76,REVENUE,ST PETERS CHILDREN CENTRE,101322
North East Lincolnshire Council,http://statistics.data.gov.uk/id/local-authority/00FC),Childrens Services,Education And Inclusion,Attainment & Progress,Other Agencies,Nursery Educ Fund - Standard,PJ139,17/02/2022,712836,4388.4,REVENUE,STRAND PRIMARY ACADEMY,111862
North East Lincolnshire Council,http://statistics.data.gov.uk/id/local-authority/00FC),Childrens Services,Education And Inclusion,Attainment & Progress,Other Agencies,Nursery Educ Fund - Standard,PJ139,17/02/2022,712966,5660.4,REVENUE,THE AVENUE PRESCHOOL CIO,149253
North East Lincolnshire Council,http://statistics.data.gov.uk/id/local-authority/00FC),Childrens Services,Education And Inclusion,Attainment & Progress,Other Agencies,Nursery Educ Fund - Standard,PJ139,17/02/2022,712850,9921.6,REVENUE,THRUNSCOE PRIMARY AND NURSERY ACADEMY,118749
North East Lincolnshire Council,http://statistics.data.gov.uk/id/local-authority/00FC),Childrens Services,Education And Inclusion,Attainment & Progress,Other Agencies,Nursery Educ Fund - Standard,PJ139,17/02/2022,712926,372.6,REVENUE,MRS VERITY TAYLOR-GREEN,138243
North East Lincolnshire Council,http://statistics.data.gov.uk/id/local-authority/00FC),Childrens Services,Education And Inclusion,Attainment & Progress,Other Agencies,Nursery Educ Fund - Standard,PJ139,17/02/2022,712811,20679.3,REVENUE,WALTHAM LEAS PRE-SCHOOL,108236
North East Lincolnshire Council,http://statistics.data.gov.uk/id/local-authority/00FC),Childrens Services,Education And Inclusion,Attainment & Progress,Other Agencies,Nursery Educ Fund - Standard,PJ139,17/02/2022,712827,4770,REVENUE,WEELSBY ACADEMY,111161
North East Lincolnshire Council,http://statistics.data.gov.uk/id/local-authority/00FC),Childrens Services,Education And Inclusion,Attainment & Progress,Other Agencies,Nursery Educ Fund - Standard,PJ139,17/02/2022,712884,10939.2,REVENUE,WELHOLME ACADEMY,127227
North East Lincolnshire Council,http://statistics.data.gov.uk/id/local-authority/00FC),Childrens Services,Education And Inclusion,Attainment & Progress,Other Agencies,Nursery Educ Fund - Standard,PJ139,17/02/2022,712782,5911.92,REVENUE,WENDOVER PRE-SCHOOL,101350
North East Lincolnshire Council,http://statistics.data.gov.uk/id/local-authority/00FC),Childrens Services,Education And Inclusion,Attainment & Progress,Other Agencies,Nursery Educ Fund - Standard,PJ139,17/02/2022,712862,2480.4,REVENUE,WILLOWS PRIMARY ACADEMY,120478
North East Lincolnshire Council,http://statistics.data.gov.uk/id/local-authority/00FC),Childrens Services,Education And Inclusion,Attainment & Progress,Other Agencies,Nursery Educ Fund - Standard,PJ139,17/02/2022,712810,2938.32,REVENUE,WIZ KIDZ,102424
North East Lincolnshire Council,http://statistics.data.gov.uk/id/local-authority/00FC),Childrens Services,Education And Inclusion,Attainment & Progress,Other Agencies,Nursery Educ Fund - Standard,PJ139,17/02/2022,712911,4960.8,REVENUE,WOODLANDS ACADEMY,132649
North East Lincolnshire Council,http://statistics.data.gov.uk/id/local-authority/00FC),Childrens Services,Education And Inclusion,Attainment & Progress,Other Agencies,Nursery Educ Fund - Standard,PJ139,17/02/2022,712840,9029.34,REVENUE,YARBOROUGH ACADEMY,112852
North East Lincolnshire Council,http://statistics.data.gov.uk/id/local-authority/00FC),Childrens Services,Education And Inclusion,Attainment & Progress,Other Agencies,Nursery Educ Fund - Standard,PJ139,17/02/2022,712882,381.6,REVENUE,FIRST STEPS WITH SURE START,126658
North East Lincolnshire Council,http://statistics.data.gov.uk/id/local-authority/00FC),Childrens Services,Education And Inclusion,Attainment & Progress,Other Agencies,Other,PJ121,17/02/2022,712756,2647.08,REVENUE,FOR UNDER FIVES LTD,100647
North East Lincolnshire Council,http://statistics.data.gov.uk/id/local-authority/00FC),Childrens Services,Education And Inclusion,Attainment & Progress,Other Agencies,Other,PJ121,17/02/2022,712799,22213.8,REVENUE,BUTTERFLIES DAY NURSERY,101694
North East Lincolnshire Council,http://statistics.data.gov.uk/id/local-authority/00FC),Childrens Services,Education And Inclusion,Attainment & Progress,Other Agencies,Other,PJ121,17/02/2022,712916,7430.4,REVENUE,CAMPDEN KIDS LTD,132975
North East Lincolnshire Council,http://statistics.data.gov.uk/id/local-authority/00FC),Childrens Services,Education And Inclusion,Attainment & Progress,Other Agencies,Other,PJ121,17/02/2022,712970,1857.6,REVENUE,KERRY BYRAM,149814
North East Lincolnshire Council,http://statistics.data.gov.uk/id/local-authority/00FC),Childrens Services,Education And Inclusion,Attainment & Progress,Other Agencies,Other,PJ121,17/02/2022,712748,8514,REVENUE,FOR UNDER FIVES LTD,100647
North East Lincolnshire Council,http://statistics.data.gov.uk/id/local-authority/00FC),Childrens Services,Education And Inclusion,Attainment & Progress,Other Agencies,Other,PJ121,17/02/2022,712775,11145.6,REVENUE,THE CHILDRENS HOUSE,101141
North East Lincolnshire Council,http://statistics.data.gov.uk/id/local-authority/00FC),Childrens Services,Education And Inclusion,Attainment & Progress,Other Agencies,Other,PJ121,17/02/2022,712931,1161,REVENUE,CLARE HOLNESS,140793
North East Lincolnshire Council,http://statistics.data.gov.uk/id/local-authority/00FC),Childrens Services,Education And Inclusion,Attainment & Progress,Other Agencies,Other,PJ121,17/02/2022,712886,464.4,REVENUE,ANDREA CULLUM - LITTLE GEMS,127347
North East Lincolnshire Council,http://statistics.data.gov.uk/id/local-authority/00FC),Childrens Services,Education And Inclusion,Attainment & Progress,Other Agencies,Other,PJ121,17/02/2022,712953,464.4,REVENUE,EXPLOROSITY EDUCATION LTD,145026
North East Lincolnshire Council,http://statistics.data.gov.uk/id/local-authority/00FC),Childrens Services,Education And Inclusion,Attainment & Progress,Other Agencies,Other,PJ121,17/02/2022,712901,4179.6,REVENUE,FREESTON TOTS PRESCHOOL,128592
North East Lincolnshire Council,http://statistics.data.gov.uk/id/local-authority/00FC),Childrens Services,Education And Inclusion,Attainment & Progress,Other Agencies,Other,PJ121,17/02/2022,712783,17956.8,REVENUE,FIRST STEPS GRIMSBY LIMITED,101411
North East Lincolnshire Council,http://statistics.data.gov.uk/id/local-authority/00FC),Childrens Services,Education And Inclusion,Attainment & Progress,Other Agencies,Other,PJ121,17/02/2022,712881,1625.4,REVENUE,FIRST STEPS WITH SURE START,126658
North East Lincolnshire Council,http://statistics.data.gov.uk/id/local-authority/00FC),Childrens Services,Education And Inclusion,Attainment & Progress,Other Agencies,Other,PJ121,17/02/2022,712845,4024.8,REVENUE,HUMBERSTON PRE SCHOOL,114491
North East Lincolnshire Council,http://statistics.data.gov.uk/id/local-authority/00FC),Childrens Services,Education And Inclusion,Attainment & Progress,Other Agencies,Other,PJ121,17/02/2022,712758,2786.4,REVENUE,FOR UNDER FIVES LTD,100647
North East Lincolnshire Council,http://statistics.data.gov.uk/id/local-authority/00FC),Childrens Services,Education And Inclusion,Attainment & Progress,Other Agencies,Other,PJ121,17/02/2022,712772,1099.08,REVENUE,HEALING VILLAGE NURSERY,101096
North East Lincolnshire Council,http://statistics.data.gov.uk/id/local-authority/00FC),Childrens Services,Education And Inclusion,Attainment & Progress,Other Agencies,Other,PJ121,17/02/2022,712798,5046.48,REVENUE,CLEETHORPES CHILDCARE,101591
North East Lincolnshire Council,http://statistics.data.gov.uk/id/local-authority/00FC),Childrens Services,Education And Inclusion,Attainment & Progress,Other Agencies,Other,PJ121,17/02/2022,712844,2306.52,REVENUE,HUMBERSTON PRE SCHOOL,114491
North East Lincolnshire Council,http://statistics.data.gov.uk/id/local-authority/00FC),Childrens Services,Education And Inclusion,Attainment & Progress,Other Agencies,Other,PJ121,17/02/2022,712874,1393.2,REVENUE,IMMINGHAM DAY CARE,122312
North East Lincolnshire Council,http://statistics.data.gov.uk/id/local-authority/00FC),Childrens Services,Education And Inclusion,Attainment & Progress,Other Agencies,Other,PJ121,17/02/2022,712767,4179.6,REVENUE,IMMINGHAM DAY NURSERY,100998
North East Lincolnshire Council,http://statistics.data.gov.uk/id/local-authority/00FC),Childrens Services,Education And Inclusion,Attainment & Progress,Other Agencies,Other,PJ121,17/02/2022,712759,2383.92,REVENUE,JUDY CLARK CHILD CARE,100939
North East Lincolnshire Council,http://statistics.data.gov.uk/id/local-authority/00FC),Childrens Services,Education And Inclusion,Attainment & Progress,Other Agencies,Other,PJ121,17/02/2022,712894,8204.4,REVENUE,LEAP AHEAD NURSERY,128017
North East Lincolnshire Council,http://statistics.data.gov.uk/id/local-authority/00FC),Childrens Services,Education And Inclusion,Attainment & Progress,Other Agencies,Other,PJ121,17/02/2022,712891,3483,REVENUE,LEAP AHEAD NURSERY,128017
North East Lincolnshire Council,http://statistics.data.gov.uk/id/local-authority/00FC),Childrens Services,Education And Inclusion,Attainment & Progress,Other Agencies,Other,PJ121,17/02/2022,712971,928.8,REVENUE,LEVI MCINTYRE,150323
North East Lincolnshire Council,http://statistics.data.gov.uk/id/local-authority/00FC),Childrens Services,Education And Inclusion,Attainment & Progress,Other Agencies,Other,PJ121,17/02/2022,712823,5774.04,REVENUE,LITTLE BLOSSOMS DAY NURSERY,111058
North East Lincolnshire Council,http://statistics.data.gov.uk/id/local-authority/00FC),Childrens Services,Education And Inclusion,Attainment & Progress,Other Agencies,Other,PJ121,17/02/2022,712947,1671.84,REVENUE,LITTLE OAKS DAY NURSERY,144718
North East Lincolnshire Council,http://statistics.data.gov.uk/id/local-authority/00FC),Childrens Services,Education And Inclusion,Attainment & Progress,Other Agencies,Other,PJ121,17/02/2022,712965,6811.2,REVENUE,TEC PARTNERSHIP - LITTLE STARS NURSERY,149044
North East Lincolnshire Council,http://statistics.data.gov.uk/id/local-authority/00FC),Childrens Services,Education And Inclusion,Attainment & Progress,Other Agencies,Other,PJ121,17/02/2022,712820,3993.84,REVENUE,LISLE MARSDEN CHILDCARE LIMITED,110493
North East Lincolnshire Council,http://statistics.data.gov.uk/id/local-authority/00FC),Childrens Services,Education And Inclusion,Attainment & Progress,Other Agencies,Other,PJ121,17/02/2022,712941,696.6,REVENUE,MIDDLETHORPE NURSERY,143658
North East Lincolnshire Council,http://statistics.data.gov.uk/id/local-authority/00FC),Childrens Services,Education And Inclusion,Attainment & Progress,Other Agencies,Other,PJ121,17/02/2022,712859,464.4,REVENUE,NICKY'S CHILDMINDING,119901
North East Lincolnshire Council,http://statistics.data.gov.uk/id/local-authority/00FC),Childrens Services,Education And Inclusion,Attainment & Progress,Other Agencies,Other,PJ121,17/02/2022,712945,928.8,REVENUE,MARINA WELLBURN,144696
North East Lincolnshire Council,http://statistics.data.gov.uk/id/local-authority/00FC),Childrens Services,Education And Inclusion,Attainment & Progress,Other Agencies,Other,PJ121,17/02/2022,712960,1362.24,REVENUE,EMMA FLORES,148270
North East Lincolnshire Council,http://statistics.data.gov.uk/id/local-authority/00FC),Childrens Services,Education And Inclusion,Attainment & Progress,Other Agencies,Other,PJ121,17/02/2022,712834,4644,REVENUE,ORMISTON SOUTH PARADE ACADEMY,111750
North East Lincolnshire Council,http://statistics.data.gov.uk/id/local-authority/00FC),Childrens Services,Education And Inclusion,Attainment & Progress,Other Agencies,Other,PJ121,17/02/2022,712788,1904.04,REVENUE,PRECIOUS TIMES CHILDCARE SERVICES,101420
North East Lincolnshire Council,http://statistics.data.gov.uk/id/local-authority/00FC),Childrens Services,Education And Inclusion,Attainment & Progress,Other Agencies,Other,PJ121,17/02/2022,712790,6455.16,REVENUE,PRECIOUS TIMES CHILDCARE SERVICES,101420
North East Lincolnshire Council,http://statistics.data.gov.uk/id/local-authority/00FC),Childrens Services,Education And Inclusion,Attainment & Progress,Other Agencies,Other,PJ121,17/02/2022,712751,7740,REVENUE,FOR UNDER FIVES LTD,100647
North East Lincolnshire Council,http://statistics.data.gov.uk/id/local-authority/00FC),Childrens Services,Education And Inclusion,Attainment & Progress,Other Agencies,Other,PJ121,17/02/2022,712765,1702.8,REVENUE,READY TEDDY GO,100973
North East Lincolnshire Council,http://statistics.data.gov.uk/id/local-authority/00FC),Childrens Services,Education And Inclusion,Attainment & Progress,Other Agencies,Other,PJ121,17/02/2022,712755,2554.2,REVENUE,FOR UNDER FIVES LTD,100647
North East Lincolnshire Council,http://statistics.data.gov.uk/id/local-authority/00FC),Childrens Services,Education And Inclusion,Attainment & Progress,Other Agencies,Other,PJ121,17/02/2022,712806,1393.2,REVENUE,SARAH SHOTBOLT,101742
North East Lincolnshire Council,http://statistics.data.gov.uk/id/local-authority/00FC),Childrens Services,Education And Inclusion,Attainment & Progress,Other Agencies,Other,PJ121,17/02/2022,712865,6842.16,REVENUE,ST CHRISTOPHERS PRE SCHOOL,121589
North East Lincolnshire Council,http://statistics.data.gov.uk/id/local-authority/00FC),Childrens Services,Education And Inclusion,Attainment & Progress,Other Agencies,Other,PJ121,17/02/2022,712802,1671.84,REVENUE,ST MARGARETS PRE-SCHOOL,101724
North East Lincolnshire Council,http://statistics.data.gov.uk/id/local-authority/00FC),Childrens Services,Education And Inclusion,Attainment & Progress,Other Agencies,Other,PJ121,17/02/2022,712777,6501.6,REVENUE,ST PETERS CHILDREN CENTRE,101322
North East Lincolnshire Council,http://statistics.data.gov.uk/id/local-authority/00FC),Childrens Services,Education And Inclusion,Attainment & Progress,Other Agencies,Other,PJ121,17/02/2022,712967,1625.4,REVENUE,THE AVENUE PRESCHOOL CIO,149253
North East Lincolnshire Council,http://statistics.data.gov.uk/id/local-authority/00FC),Childrens Services,Education And Inclusion,Attainment & Progress,Other Agencies,Other,PJ121,17/02/2022,712959,1083.6,REVENUE,VIDA BINGHAM,147466
North East Lincolnshire Council,http://statistics.data.gov.uk/id/local-authority/00FC),Childrens Services,Education And Inclusion,Attainment & Progress,Other Agencies,Other,PJ121,17/02/2022,712813,2739.96,REVENUE,WALTHAM LEAS PRE-SCHOOL,108236
North East Lincolnshire Council,http://statistics.data.gov.uk/id/local-authority/00FC),Childrens Services,Education And Inclusion,Attainment & Progress,Other Agencies,Other,PJ121,17/02/2022,712885,2554.2,REVENUE,WELHOLME ACADEMY,127227
North East Lincolnshire Council,http://statistics.data.gov.uk/id/local-authority/00FC),Childrens Services,Education And Inclusion,Attainment & Progress,Other Agencies,Other,PJ121,17/02/2022,712781,1145.52,REVENUE,WENDOVER PRE-SCHOOL,101350
North East Lincolnshire Council,http://statistics.data.gov.uk/id/local-authority/00FC),Childrens Services,Education And Inclusion,Attainment & Progress,Other Agencies,Other,PJ121,17/02/2022,712809,10461.9,REVENUE,WIZ KIDZ,102424
North East Lincolnshire Council,http://statistics.data.gov.uk/id/local-authority/00FC),Childrens Services,Education And Inclusion,Attainment & Progress,Direct Employee Expenses,Agency Supply Teachers,EA104,23/02/2022,709752,320,REVENUE,MAUREEN BROMLEY,100804
North East Lincolnshire Council,http://statistics.data.gov.uk/id/local-authority/00FC),Childrens Services,Education And Inclusion,Attainment & Progress,Direct Employee Expenses,Agency Supply Teachers,EA104,14/02/2022,712210,350,REVENUE,SUE BAKER,103216
North East Lincolnshire Council,http://statistics.data.gov.uk/id/local-authority/00FC),Childrens Services,Education And Inclusion,Attainment & Progress,Direct Employee Expenses,Agency Supply Teachers,EA104,03/02/2022,710484,375,REVENUE,KIM GOODEY,134788
North East Lincolnshire Council,http://statistics.data.gov.uk/id/local-authority/00FC),Childrens Services,Education And Inclusion,Attainment & Progress,Direct Employee Expenses,Agency Supply Teachers,EA104,03/02/2022,710484,594.75,REVENUE,KIM GOODEY,134788
North East Lincolnshire Council,http://statistics.data.gov.uk/id/local-authority/00FC),Childrens Services,Education And Inclusion,Attainment & Progress,Direct Employee Expenses,Agency Supply Teachers,EA104,23/02/2022,712741,525,REVENUE,BENJAMIN NUNN,143807
North East Lincolnshire Council,http://statistics.data.gov.uk/id/local-authority/00FC),Childrens Services,Education And Inclusion,Attainment & Progress,Direct Employee Expenses,Agency Supply Teachers,EA104,23/02/2022,712741,350,REVENUE,BENJAMIN NUNN,143807
North East Lincolnshire Council,http://statistics.data.gov.uk/id/local-authority/00FC),Childrens Services,Education And Inclusion,Attainment & Progress,Direct Employee Expenses,Agency Supply Teachers,EA104,23/02/2022,712741,350,REVENUE,BENJAMIN NUNN,143807
North East Lincolnshire Council,http://statistics.data.gov.uk/id/local-authority/00FC),Childrens Services,Education And Inclusion,Attainment & Progress,Direct Employee Expenses,Agency Supply Teachers,EA104,23/02/2022,712741,525,REVENUE,BENJAMIN NUNN,143807
North East Lincolnshire Council,http://statistics.data.gov.uk/id/local-authority/00FC),Childrens Services,Education And Inclusion,Attainment & Progress,Direct Employee Expenses,Agency Supply Teachers,EA104,15/02/2022,712134,1650,REVENUE,ZOE EVERATT,106842
North East Lincolnshire Council,http://statistics.data.gov.uk/id/local-authority/00FC),Childrens Services,Education And Inclusion,Attainment & Progress,Direct Employee Expenses,Agency Supply Teachers,EA104,14/02/2022,712211,1450,REVENUE,JACQUELINE KIRWIN,107311
North East Lincolnshire Council,http://statistics.data.gov.uk/id/local-authority/00FC),Childrens Services,Education And Inclusion,Attainment & Progress,Direct Employee Expenses,Agency Supply Teachers,EA104,28/02/2022,714370,525,REVENUE,ZOE EVERATT,106842
North East Lincolnshire Council,http://statistics.data.gov.uk/id/local-authority/00FC),Childrens Services,Education And Inclusion,Attainment & Progress,Direct Employee Expenses,Agency Supply Teachers,EA104,25/02/2022,712591,525,REVENUE,EMMA LAWN,105103
North East Lincolnshire Council,http://statistics.data.gov.uk/id/local-authority/00FC),Childrens Services,Education And Inclusion,Attainment & Progress,Miscellaneous Expenses,Other Expenses General,LL119,15/02/2022,712129,990,REVENUE,ROY LAUGHTON,100543
North East Lincolnshire Council,http://statistics.data.gov.uk/id/local-authority/00FC),Childrens Services,Education And Inclusion,Attainment & Progress,Private Contractors,Third Party Prov - Private,PH101,04/02/2022,710819,5600,REVENUE,STEPHEN WILD,149777
North East Lincolnshire Council,http://statistics.data.gov.uk/id/local-authority/00FC),Childrens Services,Education And Inclusion,Attainment & Progress,Other Agencies,Other,PJ121,15/02/2022,711631,1200,REVENUE,EMMA LAWN,105103
North East Lincolnshire Council,http://statistics.data.gov.uk/id/local-authority/00FC),Childrens Services,Education And Inclusion,Attainment & Progress,Other Agencies,Other,PJ121,17/02/2022,713198,1200,REVENUE,EMMA LAWN,105103
North East Lincolnshire Council,http://statistics.data.gov.uk/id/local-authority/00FC),Childrens Services,Education And Inclusion,Attainment & Progress,Catering,Provisions,LB101,08/02/2022,711127,265.06,REVENUE,REYNOLDS DAY CARE CNT,101704
North East Lincolnshire Council,http://statistics.data.gov.uk/id/local-authority/00FC),Childrens Services,Education And Inclusion,Attainment & Progress,Private Contractors,Third Party Prov - Private,PH101,01/02/2022,709628,4968,REVENUE,LINCS INSPIRE LTD,120610
North East Lincolnshire Council,http://statistics.data.gov.uk/id/local-authority/00FC),Childrens Services,Education And Inclusion,Pupil Supp Safeguard/Wellbeing,Other Agencies,Tuition,PJ112,01/02/2022,709835,312.5,REVENUE,SUE BURNHAM,145697
North East Lincolnshire Council,http://statistics.data.gov.uk/id/local-authority/00FC),Childrens Services,Education And Inclusion,Pupil Supp Safeguard/Wellbeing,Other Agencies,Tuition,PJ112,01/02/2022,710001,300,REVENUE,JEFF LAKE,142061
North East Lincolnshire Council,http://statistics.data.gov.uk/id/local-authority/00FC),Childrens Services,Education And Inclusion,Pupil Supp Safeguard/Wellbeing,Other Agencies,Tuition,PJ112,18/02/2022,713218,280,REVENUE,HOLLY FENTON,149710
North East Lincolnshire Council,http://statistics.data.gov.uk/id/local-authority/00FC),Childrens Services,Education And Inclusion,Pupil Supp Safeguard/Wellbeing,Other Agencies,Tuition,PJ112,28/02/2022,714400,1462.5,REVENUE,LEARNING4LIFE-GY-CIC,144120
North East Lincolnshire Council,http://statistics.data.gov.uk/id/local-authority/00FC),Childrens Services,Education And Inclusion,Pupil Supp Safeguard/Wellbeing,Other Agencies,Tuition,PJ112,28/02/2022,714353,1462.5,REVENUE,LEARNING4LIFE-GY-CIC,144120
North East Lincolnshire Council,http://statistics.data.gov.uk/id/local-authority/00FC),Childrens Services,Education And Inclusion,Pupil Supp Safeguard/Wellbeing,Other Agencies,Tuition,PJ112,24/02/2022,714021,255,REVENUE,EDUCLA,147507
North East Lincolnshire Council,http://statistics.data.gov.uk/id/local-authority/00FC),Childrens Services,Education And Inclusion,Pupil Supp Safeguard/Wellbeing,Other Agencies,Tuition,PJ112,24/02/2022,714022,300,REVENUE,EDUCLA,147507
North East Lincolnshire Council,http://statistics.data.gov.uk/id/local-authority/00FC),Childrens Services,Education And Inclusion,Pupil Supp Safeguard/Wellbeing,Other Agencies,Tuition,PJ112,24/02/2022,714023,300,REVENUE,EDUCLA,147507
North East Lincolnshire Council,http://statistics.data.gov.uk/id/local-authority/00FC),Childrens Services,Education And Inclusion,Pupil Supp Safeguard/Wellbeing,Other Agencies,Tuition,PJ112,24/02/2022,714024,300,REVENUE,EDUCLA,147507
North East Lincolnshire Council,http://statistics.data.gov.uk/id/local-authority/00FC),Childrens Services,Education And Inclusion,Pupil Supp Safeguard/Wellbeing,Other Agencies,Tuition,PJ112,21/02/2022,713297,500,REVENUE,NATIONAL ASSOCIATION OF VIRTUAL SCHOOL HEADS,135553
North East Lincolnshire Council,http://statistics.data.gov.uk/id/local-authority/00FC),Childrens Services,Education And Inclusion,Pupil Supp Safeguard/Wellbeing,Other Agencies,Tuition,PJ112,21/02/2022,713285,300,REVENUE,EDUCLA,147507
North East Lincolnshire Council,http://statistics.data.gov.uk/id/local-authority/00FC),Childrens Services,Education And Inclusion,Pupil Supp Safeguard/Wellbeing,Other Agencies,Tuition,PJ112,28/02/2022,714394,299,REVENUE,NATIONAL ASSOCIATION OF VIRTUAL SCHOOL HEADS,135553
North East Lincolnshire Council,http://statistics.data.gov.uk/id/local-authority/00FC),Childrens Services,Education And Inclusion,Pupil Supp Safeguard/Wellbeing,Other Agencies,Tuition,PJ112,21/02/2022,713288,900,REVENUE,LEARNING4LIFE-GY-CIC,144120
North East Lincolnshire Council,http://statistics.data.gov.uk/id/local-authority/00FC),Childrens Services,Education And Inclusion,Pupil Supp Safeguard/Wellbeing,Other Agencies,Tuition,PJ112,21/02/2022,713286,1462.5,REVENUE,LEARNING4LIFE-GY-CIC,144120
North East Lincolnshire Council,http://statistics.data.gov.uk/id/local-authority/00FC),Childrens Services,Education And Inclusion,Pupil Supp Safeguard/Wellbeing,Other Agencies,Tuition,PJ112,21/02/2022,713287,900,REVENUE,LEARNING4LIFE-GY-CIC,144120
North East Lincolnshire Council,http://statistics.data.gov.uk/id/local-authority/00FC),Childrens Services,Education And Inclusion,Pupil Supp Safeguard/Wellbeing,Other Agencies,Tuition,PJ112,21/02/2022,713284,280,REVENUE,PHILIPPA SKATE,149030
North East Lincolnshire Council,http://statistics.data.gov.uk/id/local-authority/00FC),Childrens Services,Safer And Partnerships,Young And Safe,Private Contractors,Third Party Prov - Private,PH101,17/02/2022,713154,2000,REVENUE,THE MADDOCKS CONSULTANCY LTD,148498
North East Lincolnshire Council,http://statistics.data.gov.uk/id/local-authority/00FC),Childrens Services,Safer And Partnerships,Young And Safe,Private Contractors,Third Party Prov - Private,PH101,09/02/2022,709788,2000,REVENUE,CHRISTINE GRAHAM CONSULTANCY LTD,147186
North East Lincolnshire Council,http://statistics.data.gov.uk/id/local-authority/00FC),Childrens Services,Safer And Partnerships,Young And Safe,Indirect Employee Expenses,Staff Training,EB122,09/02/2022,711597,397,REVENUE,THE AIM PROJECT,105257
North East Lincolnshire Council,http://statistics.data.gov.uk/id/local-authority/00FC),Childrens Services,Safer And Partnerships,Young And Safe,Direct Transport Costs,Vehicles - Repairs And Maint,JA105,24/02/2022,713920,785.1,REVENUE,MIS CONVERSIONS LTD,149462
North East Lincolnshire Council,http://statistics.data.gov.uk/id/local-authority/00FC),Childrens Services,Safer And Partnerships,Young And Safe,Equip / Furniture / Materials,Equipment - Maintenance,LA104,17/02/2022,712615,725,REVENUE,J MCCANN & CO LTD,100841
North East Lincolnshire Council,http://statistics.data.gov.uk/id/local-authority/00FC),Childrens Services,Safer And Partnerships,Young And Safe,Catering,Provisions,LB101,24/02/2022,713985,633.29,REVENUE,YOUTH OFFENDING SERVICES,110694
North East Lincolnshire Council,http://statistics.data.gov.uk/id/local-authority/00FC),Childrens Services,Safer And Partnerships,Young And Safe,Contributions To Provisions,Contributions - Other,LK103,03/02/2022,710468,1500,REVENUE,FUSION BOXING - FUSION HEALTH & WELLBEING,143803
North East Lincolnshire Council,http://statistics.data.gov.uk/id/local-authority/00FC),Childrens Services,Safer And Partnerships,Young And Safe,Equip / Furniture / Materials,Equipment - Purchase,LA101,02/02/2022,709922,801.72,REVENUE,BACON ENGINEERING LTD,150344
North East Lincolnshire Council,http://statistics.data.gov.uk/id/local-authority/00FC),Childrens Services,Safer And Partnerships,Safeguard Board / Dom Violence,Private Contractors,Third Party Prov - Private,PH101,18/02/2022,713216,5400,REVENUE,THE MADDOCKS CONSULTANCY LTD,148498
North East Lincolnshire Council,http://statistics.data.gov.uk/id/local-authority/00FC),Childrens Services,Safer And Partnerships,Safeguard Board / Dom Violence,Indirect Employee Expenses,Staff Training,EB122,01/02/2022,710363,19500,REVENUE,SAFELIVES,136251
North East Lincolnshire Council,http://statistics.data.gov.uk/id/local-authority/00FC),Childrens Services,Safer And Partnerships,Child Safeguarding Review Serv,Direct Employee Expenses,Agency Staff,EA105,17/02/2022,712682,2507.5,REVENUE,ATTENTI CONSULTING,146503
North East Lincolnshire Council,http://statistics.data.gov.uk/id/local-authority/00FC),Childrens Services,Safer And Partnerships,Child Safeguarding Review Serv,Direct Employee Expenses,Agency Staff,EA105,23/02/2022,713992,2507.5,REVENUE,ATTENTI CONSULTING,146503
North East Lincolnshire Council,http://statistics.data.gov.uk/id/local-authority/00FC),Childrens Services,Safer And Partnerships,Child Safeguarding Review Serv,Direct Employee Expenses,Agency Staff,EA105,24/02/2022,713940,2507.5,REVENUE,ATTENTI CONSULTING,146503
North East Lincolnshire Council,http://statistics.data.gov.uk/id/local-authority/00FC),Childrens Services,Safer And Partnerships,Child Safeguarding Review Serv,Direct Employee Expenses,Agency Staff,EA105,24/02/2022,713941,501.5,REVENUE,ATTENTI CONSULTING,146503
North East Lincolnshire Council,http://statistics.data.gov.uk/id/local-authority/00FC),Childrens Services,Safer And Partnerships,Child Safeguarding Review Serv,Direct Employee Expenses,Agency Staff,EA105,24/02/2022,713942,2006,REVENUE,ATTENTI CONSULTING,146503
North East Lincolnshire Council,http://statistics.data.gov.uk/id/local-authority/00FC),Childrens Services,Safer And Partnerships,Child Safeguarding Review Serv,Direct Employee Expenses,Agency Staff,EA105,24/02/2022,713943,501.5,REVENUE,ATTENTI CONSULTING,146503
North East Lincolnshire Council,http://statistics.data.gov.uk/id/local-authority/00FC),Childrens Services,Safer And Partnerships,Child Safeguarding Review Serv,Direct Employee Expenses,Agency Staff,EA105,24/02/2022,713951,1504.5,REVENUE,ATTENTI CONSULTING,146503
North East Lincolnshire Council,http://statistics.data.gov.uk/id/local-authority/00FC),Childrens Services,Safer And Partnerships,Ass Dir - Safer,Miscellaneous Expenses,Legal Fees - General,LL103,01/02/2022,709829,350,REVENUE,THOMPSONS SOLICITORS,101854
North East Lincolnshire Council,http://statistics.data.gov.uk/id/local-authority/00FC),Childrens Services,Ad Women Children'S & Families,Palliative / Complex Care,Private Contractors,Third Party Prov - Private,PH101,24/02/2022,713984,2975.66,REVENUE,AK PAYROLL SERVICES LTD,145106
North East Lincolnshire Council,http://statistics.data.gov.uk/id/local-authority/00FC),Childrens Services,Ad Women Children'S & Families,Palliative / Complex Care,Private Contractors,Third Party Prov - Private,PH101,02/02/2022,710371,1140,REVENUE,APOLLO HOME HEALTHCARE LIMITED,138437
North East Lincolnshire Council,http://statistics.data.gov.uk/id/local-authority/00FC),Childrens Services,Ad Women Children'S & Families,Palliative / Complex Care,Private Contractors,Third Party Prov - Private,PH101,02/02/2022,710370,1387,REVENUE,APOLLO HOME HEALTHCARE LIMITED,138437
North East Lincolnshire Council,http://statistics.data.gov.uk/id/local-authority/00FC),Childrens Services,Ad Women Children'S & Families,Palliative / Complex Care,Private Contractors,Third Party Prov - Private,PH101,14/02/2022,711804,1330,REVENUE,APOLLO HOME HEALTHCARE LIMITED,138437
North East Lincolnshire Council,http://statistics.data.gov.uk/id/local-authority/00FC),Childrens Services,Ad Women Children'S & Families,Palliative / Complex Care,Private Contractors,Third Party Prov - Private,PH101,24/02/2022,714239,1330,REVENUE,APOLLO HOME HEALTHCARE LIMITED,138437
North East Lincolnshire Council,http://statistics.data.gov.uk/id/local-authority/00FC),Childrens Services,Ad Women Children'S & Families,Palliative / Complex Care,Private Contractors,Third Party Prov - Private,PH101,24/02/2022,714252,1560,REVENUE,APOLLO HOME HEALTHCARE LIMITED,138437
North East Lincolnshire Council,http://statistics.data.gov.uk/id/local-authority/00FC),Childrens Services,Ad Women Children'S & Families,Childrens Mental & Emot Health,Health Authorities,Third Pp - Health Auth,PD101,01/02/2022,709963,2420,REVENUE,G-MAP SERVICES,109932
North East Lincolnshire Council,http://statistics.data.gov.uk/id/local-authority/00FC),Childrens Services,Ad Women Children'S & Families,Childrens Mental & Emot Health,Health Authorities,Third Pp - Health Auth,PD101,15/02/2022,712279,1545,REVENUE,CUDOX WELLBEING CIC,148254
North East Lincolnshire Council,http://statistics.data.gov.uk/id/local-authority/00FC),Childrens Services,Ad Women Children'S & Families,Childrens Mental & Emot Health,Health Authorities,Third Pp - Health Auth,PD101,15/02/2022,712269,390,REVENUE,TIME TO LISTEN LIMITED,140435
North East Lincolnshire Council,http://statistics.data.gov.uk/id/local-authority/00FC),Childrens Services,Ad Women Children'S & Families,Childrens Mental & Emot Health,Health Authorities,Third Pp - Health Auth,PD101,15/02/2022,712268,400,REVENUE,FORTIS THERAPY & TRAINING,120445
North East Lincolnshire Council,http://statistics.data.gov.uk/id/local-authority/00FC),Childrens Services,Ad Women Children'S & Families,Childrens Mental & Emot Health,Health Authorities,Third Pp - Health Auth,PD101,14/02/2022,712280,540,REVENUE,LOUISE HOWARTH,149653
North East Lincolnshire Council,http://statistics.data.gov.uk/id/local-authority/00FC),Childrens Services,Ad Women Children'S & Families,Childrens Mental & Emot Health,Private Contractors,Contract Payments,PH105,10/02/2022,711790,248705.75,REVENUE,LINCOLNSHIRE PARTNERSHIP NHS FOUNDATION TRUST,105021
North East Lincolnshire Council,http://statistics.data.gov.uk/id/local-authority/00FC),Childrens Services,Ad Women Children'S & Families,Childrens Mental & Emot Health,Other Agencies,Top Up,PJ123,10/02/2022,711788,13799.91,REVENUE,LINCOLNSHIRE PARTNERSHIP NHS FOUNDATION TRUST,105021
North East Lincolnshire Council,http://statistics.data.gov.uk/id/local-authority/00FC),Childrens Services,Ad Women Children'S & Families,Childrens Mental & Emot Health,Other Agencies,Top Up,PJ123,10/02/2022,711783,37273.17,REVENUE,LINCOLNSHIRE PARTNERSHIP NHS FOUNDATION TRUST,105021
North East Lincolnshire Council,http://statistics.data.gov.uk/id/local-authority/00FC),Childrens Services,Ad Women Children'S & Families,Childrens Mental & Emot Health,Voluntary Associations,Third Pp - Third Sector,PF101,01/02/2022,710292,585.2,REVENUE,ST ANDREWS HOSPICE,103069
North East Lincolnshire Council,http://statistics.data.gov.uk/id/local-authority/00FC),Childrens Services,Ad Women Children'S & Families,Childrens Mental & Emot Health,Voluntary Associations,Third Pp - Third Sector,PF101,01/02/2022,710288,400,REVENUE,ST ANDREWS HOSPICE,103069
North East Lincolnshire Council,http://statistics.data.gov.uk/id/local-authority/00FC),Childrens Services,Ad Women Children'S & Families,Childrens Mental & Emot Health,Voluntary Associations,Third Pp - Third Sector,PF101,15/02/2022,712282,2115.96,REVENUE,ST ANDREWS HOSPICE,103069
North East Lincolnshire Council,http://statistics.data.gov.uk/id/local-authority/00FC),Childrens Services,Ad Women Children'S & Families,Childrens Mental & Emot Health,Voluntary Associations,Third Pp - Third Sector,PF101,15/02/2022,712283,464.47,REVENUE,ST ANDREWS HOSPICE,103069
North East Lincolnshire Council,http://statistics.data.gov.uk/id/local-authority/00FC),Childrens Services,Ad Women Children'S & Families,Childrens Mental & Emot Health,Private Contractors,Contract Payments,PH105,15/02/2022,712203,5798.35,REVENUE,KOOTH DIGITAL HEALTH LIMITED,135941
North East Lincolnshire Council,http://statistics.data.gov.uk/id/local-authority/00FC),Childrens Services,Ad Women Children'S & Families,Childrens Mental & Emot Health,Private Contractors,Contract Payments,PH105,24/02/2022,714045,90689.5,REVENUE,COMPASS SERVICES TO IMPROVE HEALTH,145810
North East Lincolnshire Council,http://statistics.data.gov.uk/id/local-authority/00FC),Childrens Services,Director - Children / Fam Serv,Director Children & Fam Serv,Private Contractors,Contract Payments,PH105,08/02/2022,711128,825,REVENUE,SIGNIS LTD,145139
North East Lincolnshire Council,http://statistics.data.gov.uk/id/local-authority/00FC),Childrens Services,Director - Children / Fam Serv,Director Children & Fam Serv,Private Contractors,Contract Payments,PH105,11/02/2022,712002,825,REVENUE,SIGNIS LTD,145139
North East Lincolnshire Council,http://statistics.data.gov.uk/id/local-authority/00FC),Childrens Services,Director - Children / Fam Serv,Director Children & Fam Serv,Direct Employee Expenses,Agency Staff,EA105,01/02/2022,709825,2500,REVENUE,GRAVITAS RECRUITMENT GROUP LTD,143484
North East Lincolnshire Council,http://statistics.data.gov.uk/id/local-authority/00FC),Childrens Services,Director - Children / Fam Serv,Director Children & Fam Serv,Direct Employee Expenses,Agency Staff,EA105,14/02/2022,711031,2500,REVENUE,GRAVITAS RECRUITMENT GROUP LTD,143484
North East Lincolnshire Council,http://statistics.data.gov.uk/id/local-authority/00FC),Childrens Services,Director - Children / Fam Serv,Director Children & Fam Serv,Direct Employee Expenses,Agency Staff,EA105,14/02/2022,711957,1250,REVENUE,GRAVITAS RECRUITMENT GROUP LTD,143484
North East Lincolnshire Council,http://statistics.data.gov.uk/id/local-authority/00FC),Childrens Services,Director - Children / Fam Serv,Director Children & Fam Serv,Direct Employee Expenses,Agency Staff,EA105,23/02/2022,713253,2500,REVENUE,GRAVITAS RECRUITMENT GROUP LTD,143484
North East Lincolnshire Council,http://statistics.data.gov.uk/id/local-authority/00FC),Childrens Services,Director - Children / Fam Serv,Director Children & Fam Serv,Direct Employee Expenses,Agency Staff,EA105,02/02/2022,710251,2400,REVENUE,GRAVITAS RECRUITMENT GROUP LTD,143484
North East Lincolnshire Council,http://statistics.data.gov.uk/id/local-authority/00FC),Childrens Services,Director - Children / Fam Serv,Director Children & Fam Serv,Direct Employee Expenses,Agency Staff,EA105,14/02/2022,711277,2400,REVENUE,GRAVITAS RECRUITMENT GROUP LTD,143484
North East Lincolnshire Council,http://statistics.data.gov.uk/id/local-authority/00FC),Childrens Services,Director - Children / Fam Serv,Director Children & Fam Serv,Direct Employee Expenses,Agency Staff,EA105,16/02/2022,712251,2400,REVENUE,GRAVITAS RECRUITMENT GROUP LTD,143484
North East Lincolnshire Council,http://statistics.data.gov.uk/id/local-authority/00FC),Childrens Services,Director - Children / Fam Serv,Director Children & Fam Serv,Direct Employee Expenses,Agency Staff,EA105,23/02/2022,713423,2400,REVENUE,GRAVITAS RECRUITMENT GROUP LTD,143484
North East Lincolnshire Council,http://statistics.data.gov.uk/id/local-authority/00FC),Childrens Services,Director - Children / Fam Serv,Director Children & Fam Serv,Direct Employee Expenses,Agency Staff,EA105,02/02/2022,709826,2400,REVENUE,GRAVITAS RECRUITMENT GROUP LTD,143484
North East Lincolnshire Council,http://statistics.data.gov.uk/id/local-authority/00FC),Childrens Services,Director - Children / Fam Serv,Director Children & Fam Serv,Direct Employee Expenses,Agency Staff,EA105,14/02/2022,711030,2400,REVENUE,GRAVITAS RECRUITMENT GROUP LTD,143484
North East Lincolnshire Council,http://statistics.data.gov.uk/id/local-authority/00FC),Childrens Services,Director - Children / Fam Serv,Director Children & Fam Serv,Direct Employee Expenses,Agency Staff,EA105,16/02/2022,712038,2400,REVENUE,GRAVITAS RECRUITMENT GROUP LTD,143484
North East Lincolnshire Council,http://statistics.data.gov.uk/id/local-authority/00FC),Childrens Services,Director - Children / Fam Serv,Director Children & Fam Serv,Direct Employee Expenses,Agency Staff,EA105,21/02/2022,713214,2400,REVENUE,GRAVITAS RECRUITMENT GROUP LTD,143484
North East Lincolnshire Council,http://statistics.data.gov.uk/id/local-authority/00FC),Childrens Services,Director - Children / Fam Serv,Director Children & Fam Serv,Direct Employee Expenses,Agency Staff,EA105,07/02/2022,710391,1964.7,REVENUE,ATTENTI CONSULTING,146503
North East Lincolnshire Council,http://statistics.data.gov.uk/id/local-authority/00FC),Childrens Services,Director - Children / Fam Serv,Director Children & Fam Serv,Direct Employee Expenses,Agency Staff,EA105,14/02/2022,711687,1964.7,REVENUE,ATTENTI CONSULTING,146503
North East Lincolnshire Council,http://statistics.data.gov.uk/id/local-authority/00FC),Childrens Services,Director - Children / Fam Serv,Director Children & Fam Serv,Direct Employee Expenses,Agency Staff,EA105,17/02/2022,712684,1964.7,REVENUE,ATTENTI CONSULTING,146503
North East Lincolnshire Council,http://statistics.data.gov.uk/id/local-authority/00FC),Childrens Services,Director - Children / Fam Serv,Director Children & Fam Serv,Direct Employee Expenses,Agency Staff,EA105,23/02/2022,713990,1964.7,REVENUE,ATTENTI CONSULTING,146503
North East Lincolnshire Council,http://statistics.data.gov.uk/id/local-authority/00FC),Childrens Services,Director - Children / Fam Serv,Director Children & Fam Serv,Direct Employee Expenses,Agency Staff,EA105,24/02/2022,713932,1964.7,REVENUE,ATTENTI CONSULTING,146503
North East Lincolnshire Council,http://statistics.data.gov.uk/id/local-authority/00FC),Childrens Services,Director - Children / Fam Serv,Director Children & Fam Serv,Direct Employee Expenses,Agency Staff,EA105,28/02/2022,713935,1964.7,REVENUE,ATTENTI CONSULTING,146503
North East Lincolnshire Council,http://statistics.data.gov.uk/id/local-authority/00FC),Childrens Services,Director - Children / Fam Serv,Director Children & Fam Serv,Direct Employee Expenses,Agency Staff,EA105,01/02/2022,710281,320.42,REVENUE,ON LINE PEOPLE LTD,144850
North East Lincolnshire Council,http://statistics.data.gov.uk/id/local-authority/00FC),Childrens Services,Director - Children / Fam Serv,Director Children & Fam Serv,Direct Employee Expenses,Agency Staff,EA105,07/02/2022,711064,320.42,REVENUE,ON LINE PEOPLE LTD,144850
North East Lincolnshire Council,http://statistics.data.gov.uk/id/local-authority/00FC),Childrens Services,Director - Children / Fam Serv,Director Children & Fam Serv,Direct Employee Expenses,Agency Staff,EA105,23/02/2022,713190,320.42,REVENUE,ON LINE PEOPLE LTD,144850
North East Lincolnshire Council,http://statistics.data.gov.uk/id/local-authority/00FC),Childrens Services,Director - Children / Fam Serv,Director Children & Fam Serv,Direct Employee Expenses,Agency Staff,EA105,25/02/2022,714314,320.42,REVENUE,ON LINE PEOPLE LTD,144850
North East Lincolnshire Council,http://statistics.data.gov.uk/id/local-authority/00FC),Childrens Services,Director - Children / Fam Serv,Director Children & Fam Serv,Private Contractors,Third Party Prov - Private,PH101,22/02/2022,713205,1500,REVENUE,RAYNS SERVICES LTD,150940
North East Lincolnshire Council,http://statistics.data.gov.uk/id/local-authority/00FC),Childrens Services,Safeguard & Early Help,Childrens Health,Indirect Employee Expenses,Staff Training,EB122,23/02/2022,713967,1935,REVENUE,UNIVERSITY OF HULL,135789
North East Lincolnshire Council,http://statistics.data.gov.uk/id/local-authority/00FC),Childrens Services,Safeguard & Early Help,Childrens Health,Equip / Furniture / Materials,Furniture - Purchase,LA105,01/02/2022,710264,725.12,REVENUE,LYRECO UK LIMITED,101120
North East Lincolnshire Council,http://statistics.data.gov.uk/id/local-authority/00FC),Childrens Services,Safeguard & Early Help,Childrens Health,Communications And Computing,Computer H/Ware - Purchases,LF105,23/02/2022,703216,315,REVENUE,TOTAL COMPUTER NETWORKS LTD,141310
North East Lincolnshire Council,http://statistics.data.gov.uk/id/local-authority/00FC),Childrens Services,Safeguard & Early Help,Childrens Health,Communications And Computing,Computer H/Ware - Purchases,LF105,28/02/2022,713944,300,REVENUE,TOTAL COMPUTER NETWORKS LTD,141310
North East Lincolnshire Council,http://statistics.data.gov.uk/id/local-authority/00FC),Childrens Services,Safeguard & Early Help,Childrens Health,Communications And Computing,Computer S/Ware - Licences,LF103,23/02/2022,711794,5610,REVENUE,LEICESTERSHIRE PARTNERSHIP NHS TRUST,133208
North East Lincolnshire Council,http://statistics.data.gov.uk/id/local-authority/00FC),Childrens Services,Safeguard & Early Help,Childrens Health,Communications And Computing,Computer S/Ware - Licences,LF103,23/02/2022,711794,800,REVENUE,LEICESTERSHIRE PARTNERSHIP NHS TRUST,133208
North East Lincolnshire Council,http://statistics.data.gov.uk/id/local-authority/00FC),Childrens Services,Safeguard & Early Help,Childrens Health,Miscellaneous Expenses,Medical Supplies And Services,LL109,03/02/2022,710404,250.8,REVENUE,MEDISAVE UK LTD,101716
North East Lincolnshire Council,http://statistics.data.gov.uk/id/local-authority/00FC),Childrens Services,Safeguard & Early Help,Head Of Corporate Parenting,Direct Employee Expenses,Agency Staff,EA105,07/02/2022,709701,3245,REVENUE,ATTENTI CONSULTING,146503
North East Lincolnshire Council,http://statistics.data.gov.uk/id/local-authority/00FC),Childrens Services,Safeguard & Early Help,Head Of Corporate Parenting,Direct Employee Expenses,Agency Staff,EA105,07/02/2022,709702,3245,REVENUE,ATTENTI CONSULTING,146503
North East Lincolnshire Council,http://statistics.data.gov.uk/id/local-authority/00FC),Childrens Services,Safeguard & Early Help,Head Of Corporate Parenting,Direct Employee Expenses,Agency Staff,EA105,07/02/2022,710389,3245,REVENUE,ATTENTI CONSULTING,146503
North East Lincolnshire Council,http://statistics.data.gov.uk/id/local-authority/00FC),Childrens Services,Safeguard & Early Help,Head Of Corporate Parenting,Direct Employee Expenses,Agency Staff,EA105,14/02/2022,711688,3245,REVENUE,ATTENTI CONSULTING,146503
North East Lincolnshire Council,http://statistics.data.gov.uk/id/local-authority/00FC),Childrens Services,Safeguard & Early Help,Head Of Corporate Parenting,Direct Employee Expenses,Agency Staff,EA105,23/02/2022,712686,3245,REVENUE,ATTENTI CONSULTING,146503
North East Lincolnshire Council,http://statistics.data.gov.uk/id/local-authority/00FC),Childrens Services,Safeguard & Early Help,Head Of Corporate Parenting,Private Contractors,Third Party Prov - Private,PH101,15/02/2022,711808,3000,REVENUE,INDEPENDENT VISITOR SERVICES LTD,150074
North East Lincolnshire Council,http://statistics.data.gov.uk/id/local-authority/00FC),Childrens Services,Safeguard & Early Help,Head Of Corporate Parenting,Private Contractors,Third Party Prov - Private,PH101,15/02/2022,711806,3000,REVENUE,INDEPENDENT VISITOR SERVICES LTD,150074
North East Lincolnshire Council,http://statistics.data.gov.uk/id/local-authority/00FC),Childrens Services,Safeguard & Early Help,Head Of Corporate Parenting,Private Contractors,Third Party Prov - Private,PH101,22/02/2022,713356,3435.32,REVENUE,FOSTER CARE ASSOCIATES LIMITED,101455
North East Lincolnshire Council,http://statistics.data.gov.uk/id/local-authority/00FC),Childrens Services,Safeguard & Early Help,Head Of Corporate Parenting,Private Contractors,Third Party Prov - Private,PH101,28/02/2022,713776,3803.39,REVENUE,FOSTER CARE ASSOCIATES LIMITED,101455
North East Lincolnshire Council,http://statistics.data.gov.uk/id/local-authority/00FC),Childrens Services,Safeguard & Early Help,Head Of Corporate Parenting,Private Contractors,Third Party Prov - Private,PH101,21/02/2022,713350,3468.08,REVENUE,FOSTER CARE ASSOCIATES LIMITED,101455
North East Lincolnshire Council,http://statistics.data.gov.uk/id/local-authority/00FC),Childrens Services,Safeguard & Early Help,Head Of Corporate Parenting,Private Contractors,Third Party Prov - Private,PH101,23/02/2022,713782,3839.66,REVENUE,FOSTER CARE ASSOCIATES LIMITED,101455
North East Lincolnshire Council,http://statistics.data.gov.uk/id/local-authority/00FC),Childrens Services,Safeguard & Early Help,Head Of Corporate Parenting,Private Contractors,Third Party Prov - Private,PH101,21/02/2022,713346,3468.08,REVENUE,FOSTER CARE ASSOCIATES LIMITED,101455
North East Lincolnshire Council,http://statistics.data.gov.uk/id/local-authority/00FC),Childrens Services,Safeguard & Early Help,Head Of Corporate Parenting,Private Contractors,Third Party Prov - Private,PH101,23/02/2022,713793,3839.66,REVENUE,FOSTER CARE ASSOCIATES LIMITED,101455
North East Lincolnshire Council,http://statistics.data.gov.uk/id/local-authority/00FC),Childrens Services,Safeguard & Early Help,Head Of Corporate Parenting,Private Contractors,Third Party Prov - Private,PH101,04/02/2022,710688,812.14,REVENUE,SWIIS FOSTER CARE LTD,146857
North East Lincolnshire Council,http://statistics.data.gov.uk/id/local-authority/00FC),Childrens Services,Safeguard & Early Help,Head Of Corporate Parenting,Private Contractors,Third Party Prov - Private,PH101,14/02/2022,712081,829.99,REVENUE,SWIIS FOSTER CARE LTD,146857
North East Lincolnshire Council,http://statistics.data.gov.uk/id/local-authority/00FC),Childrens Services,Safeguard & Early Help,Head Of Corporate Parenting,Private Contractors,Third Party Prov - Private,PH101,15/02/2022,712130,812.14,REVENUE,SWIIS FOSTER CARE LTD,146857
North East Lincolnshire Council,http://statistics.data.gov.uk/id/local-authority/00FC),Childrens Services,Safeguard & Early Help,Head Of Corporate Parenting,Private Contractors,Third Party Prov - Private,PH101,23/02/2022,713766,812.14,REVENUE,SWIIS FOSTER CARE LTD,146857
North East Lincolnshire Council,http://statistics.data.gov.uk/id/local-authority/00FC),Childrens Services,Safeguard & Early Help,Head Of Corporate Parenting,Private Contractors,Third Party Prov - Private,PH101,23/02/2022,713767,829.99,REVENUE,SWIIS FOSTER CARE LTD,146857
North East Lincolnshire Council,http://statistics.data.gov.uk/id/local-authority/00FC),Childrens Services,Safeguard & Early Help,Head Of Corporate Parenting,Private Contractors,Third Party Prov - Private,PH101,23/02/2022,713768,812.14,REVENUE,SWIIS FOSTER CARE LTD,146857
North East Lincolnshire Council,http://statistics.data.gov.uk/id/local-authority/00FC),Childrens Services,Safeguard & Early Help,Head Of Corporate Parenting,Private Contractors,Third Party Prov - Private,PH101,24/02/2022,713933,814.69,REVENUE,SWIIS FOSTER CARE LTD,146857
North East Lincolnshire Council,http://statistics.data.gov.uk/id/local-authority/00FC),Childrens Services,Safeguard & Early Help,Head Of Corporate Parenting,Private Contractors,Third Party Prov - Private,PH101,21/02/2022,713338,3435.32,REVENUE,FOSTER CARE ASSOCIATES LIMITED,101455
North East Lincolnshire Council,http://statistics.data.gov.uk/id/local-authority/00FC),Childrens Services,Safeguard & Early Help,Head Of Corporate Parenting,Private Contractors,Third Party Prov - Private,PH101,15/02/2022,712145,3400.04,REVENUE,COMPASS FOSTERING LONDON LTD,149498
North East Lincolnshire Council,http://statistics.data.gov.uk/id/local-authority/00FC),Childrens Services,Safeguard & Early Help,Head Of Corporate Parenting,Private Contractors,Third Party Prov - Private,PH101,15/02/2022,712627,6650,REVENUE,REDACTED PERSONAL INFORMATION,REDACTED PERSONAL INFORMATION
North East Lincolnshire Council,http://statistics.data.gov.uk/id/local-authority/00FC),Childrens Services,Safeguard & Early Help,Head Of Corporate Parenting,Private Contractors,Third Party Prov - Private,PH101,17/02/2022,713200,6650,REVENUE,REDACTED PERSONAL INFORMATION,REDACTED PERSONAL INFORMATION
North East Lincolnshire Council,http://statistics.data.gov.uk/id/local-authority/00FC),Childrens Services,Safeguard & Early Help,Head Of Corporate Parenting,Private Contractors,Third Party Prov - Private,PH101,21/02/2022,713323,3468.08,REVENUE,FOSTER CARE ASSOCIATES LIMITED,101455
North East Lincolnshire Council,http://statistics.data.gov.uk/id/local-authority/00FC),Childrens Services,Safeguard & Early Help,Head Of Corporate Parenting,Private Contractors,Third Party Prov - Private,PH101,28/02/2022,713762,3839.66,REVENUE,FOSTER CARE ASSOCIATES LIMITED,101455
North East Lincolnshire Council,http://statistics.data.gov.uk/id/local-authority/00FC),Childrens Services,Safeguard & Early Help,Head Of Corporate Parenting,Private Contractors,Third Party Prov - Private,PH101,08/02/2022,711130,3400,REVENUE,BRIDGING GAPS LIMITED,149357
North East Lincolnshire Council,http://statistics.data.gov.uk/id/local-authority/00FC),Childrens Services,Safeguard & Early Help,Head Of Corporate Parenting,Private Contractors,Third Party Prov - Private,PH101,08/02/2022,711129,1457.14,REVENUE,BRIDGING GAPS LIMITED,149357
North East Lincolnshire Council,http://statistics.data.gov.uk/id/local-authority/00FC),Childrens Services,Safeguard & Early Help,Head Of Corporate Parenting,Private Contractors,Third Party Prov - Private,PH101,11/02/2022,711979,3520.71,REVENUE,SUNBEAM FOSTERING AGENCY LTD,150830
North East Lincolnshire Council,http://statistics.data.gov.uk/id/local-authority/00FC),Childrens Services,Safeguard & Early Help,Head Of Corporate Parenting,Private Contractors,Translation & Interpreter Serv,PH113,18/02/2022,712069,384,REVENUE,CLEAR VOICE INTERPRETING SERVICES,148993
North East Lincolnshire Council,http://statistics.data.gov.uk/id/local-authority/00FC),Childrens Services,Safeguard & Early Help,Head Of Corporate Parenting,Other Agencies,Leaving Care Grant,PJ116,10/02/2022,1005377,274.61,REVENUE,REDACTED PERSONAL INFORMATION,REDACTED PERSONAL INFORMATION
North East Lincolnshire Council,http://statistics.data.gov.uk/id/local-authority/00FC),Childrens Services,Safeguard & Early Help,Head Of Corporate Parenting,Other Agencies,Personal Allowance,PJ122,24/02/2022,714047,454.6,REVENUE,16+ SERVICES,100943
North East Lincolnshire Council,http://statistics.data.gov.uk/id/local-authority/00FC),Childrens Services,Safeguard & Early Help,Head Of Safeguarding,Direct Employee Expenses,Agency Staff,EA105,14/02/2022,711966,22092.38,REVENUE,ATTENTI CONSULTING,146503
North East Lincolnshire Council,http://statistics.data.gov.uk/id/local-authority/00FC),Childrens Services,Safeguard & Early Help,Head Of Safeguarding,Direct Employee Expenses,Agency Staff,EA105,14/02/2022,711967,25528.87,REVENUE,ATTENTI CONSULTING,146503
North East Lincolnshire Council,http://statistics.data.gov.uk/id/local-authority/00FC),Childrens Services,Safeguard & Early Help,Head Of Safeguarding,Direct Employee Expenses,Agency Staff,EA105,21/02/2022,712711,28986.52,REVENUE,ATTENTI CONSULTING,146503
North East Lincolnshire Council,http://statistics.data.gov.uk/id/local-authority/00FC),Childrens Services,Safeguard & Early Help,Head Of Safeguarding,Direct Employee Expenses,Agency Staff,EA105,21/02/2022,712712,28986.52,REVENUE,ATTENTI CONSULTING,146503
North East Lincolnshire Council,http://statistics.data.gov.uk/id/local-authority/00FC),Childrens Services,Safeguard & Early Help,Head Of Safeguarding,Direct Employee Expenses,Agency Staff,EA105,21/02/2022,712713,28986.52,REVENUE,ATTENTI CONSULTING,146503
North East Lincolnshire Council,http://statistics.data.gov.uk/id/local-authority/00FC),Childrens Services,Safeguard & Early Help,Head Of Safeguarding,Direct Employee Expenses,Agency Staff,EA105,21/02/2022,712714,28986.52,REVENUE,ATTENTI CONSULTING,146503
North East Lincolnshire Council,http://statistics.data.gov.uk/id/local-authority/00FC),Childrens Services,Safeguard & Early Help,Head Of Safeguarding,Direct Employee Expenses,Agency Staff,EA105,21/02/2022,712715,27487.1,REVENUE,ATTENTI CONSULTING,146503
North East Lincolnshire Council,http://statistics.data.gov.uk/id/local-authority/00FC),Childrens Services,Safeguard & Early Help,Head Of Safeguarding,Direct Employee Expenses,Agency Staff,EA105,21/02/2022,712717,25528.87,REVENUE,ATTENTI CONSULTING,146503
North East Lincolnshire Council,http://statistics.data.gov.uk/id/local-authority/00FC),Childrens Services,Safeguard & Early Help,Head Of Safeguarding,Direct Employee Expenses,Agency Staff,EA105,23/02/2022,713231,28269.51,REVENUE,ATTENTI CONSULTING,146503
North East Lincolnshire Council,http://statistics.data.gov.uk/id/local-authority/00FC),Childrens Services,Safeguard & Early Help,Head Of Safeguarding,Direct Employee Expenses,Agency Staff,EA105,15/02/2022,712313,1537.5,REVENUE,PARADIGM PROFESSIONAL CONSULTANCY LTD,129224
North East Lincolnshire Council,http://statistics.data.gov.uk/id/local-authority/00FC),Childrens Services,Safeguard & Early Help,Head Of Safeguarding,Direct Employee Expenses,Agency Staff,EA105,15/02/2022,712317,1537.5,REVENUE,PARADIGM PROFESSIONAL CONSULTANCY LTD,129224
North East Lincolnshire Council,http://statistics.data.gov.uk/id/local-authority/00FC),Childrens Services,Safeguard & Early Help,Head Of Safeguarding,Direct Employee Expenses,Agency Staff,EA105,21/02/2022,713222,1837.5,REVENUE,PARADIGM PROFESSIONAL CONSULTANCY LTD,129224
North East Lincolnshire Council,http://statistics.data.gov.uk/id/local-authority/00FC),Childrens Services,Safeguard & Early Help,Head Of Safeguarding,Direct Employee Expenses,Agency Staff,EA105,01/02/2022,710332,1591,REVENUE,PARADIGM PROFESSIONAL CONSULTANCY LTD,129224
North East Lincolnshire Council,http://statistics.data.gov.uk/id/local-authority/00FC),Childrens Services,Safeguard & Early Help,Head Of Safeguarding,Direct Employee Expenses,Agency Staff,EA105,01/02/2022,710337,1618.75,REVENUE,NONSTOP RECRUITMENT,120715
North East Lincolnshire Council,http://statistics.data.gov.uk/id/local-authority/00FC),Childrens Services,Safeguard & Early Help,Head Of Safeguarding,Direct Employee Expenses,Agency Staff,EA105,15/02/2022,712314,1462,REVENUE,PARADIGM PROFESSIONAL CONSULTANCY LTD,129224
North East Lincolnshire Council,http://statistics.data.gov.uk/id/local-authority/00FC),Childrens Services,Safeguard & Early Help,Head Of Safeguarding,Direct Employee Expenses,Agency Staff,EA105,17/02/2022,712315,946,REVENUE,PARADIGM PROFESSIONAL CONSULTANCY LTD,129224
North East Lincolnshire Council,http://statistics.data.gov.uk/id/local-authority/00FC),Childrens Services,Safeguard & Early Help,Head Of Safeguarding,Direct Employee Expenses,Agency Staff,EA105,21/02/2022,713229,1400,REVENUE,NONSTOP RECRUITMENT,120715
North East Lincolnshire Council,http://statistics.data.gov.uk/id/local-authority/00FC),Childrens Services,Safeguard & Early Help,Head Of Safeguarding,Direct Employee Expenses,Agency Staff,EA105,21/02/2022,713230,1618.75,REVENUE,NONSTOP RECRUITMENT,120715
North East Lincolnshire Council,http://statistics.data.gov.uk/id/local-authority/00FC),Childrens Services,Safeguard & Early Help,Head Of Safeguarding,Indirect Employee Expenses,Medical Expenses - Employees,EB112,16/02/2022,712583,7500,REVENUE,BARNSLEY METROPOLITAN BOROUGH COUNCIL,147215
North East Lincolnshire Council,http://statistics.data.gov.uk/id/local-authority/00FC),Childrens Services,Safeguard & Early Help,Head Of Safeguarding,Other Agencies,Section 17,PJ125,22/02/2022,1009283,939.14,REVENUE,REDACTED PERSONAL INFORMATION,REDACTED PERSONAL INFORMATION
North East Lincolnshire Council,http://statistics.data.gov.uk/id/local-authority/00FC),Childrens Services,Safeguard & Early Help,Head Of Safeguarding,Other Agencies,Section 17,PJ125,01/02/2022,1001084,304,REVENUE,REDACTED PERSONAL INFORMATION,REDACTED PERSONAL INFORMATION
North East Lincolnshire Council,http://statistics.data.gov.uk/id/local-authority/00FC),Childrens Services,Safeguard & Early Help,Head Of Safeguarding,Other Agencies,Section 17,PJ125,08/02/2022,1003385,304,REVENUE,REDACTED PERSONAL INFORMATION,REDACTED PERSONAL INFORMATION
North East Lincolnshire Council,http://statistics.data.gov.uk/id/local-authority/00FC),Childrens Services,Safeguard & Early Help,Head Of Safeguarding,Other Agencies,Section 17,PJ125,15/02/2022,1006287,304,REVENUE,REDACTED PERSONAL INFORMATION,REDACTED PERSONAL INFORMATION
North East Lincolnshire Council,http://statistics.data.gov.uk/id/local-authority/00FC),Childrens Services,Safeguard & Early Help,Head Of Safeguarding,Other Agencies,Section 17,PJ125,22/02/2022,1008760,304,REVENUE,REDACTED PERSONAL INFORMATION,REDACTED PERSONAL INFORMATION
North East Lincolnshire Council,http://statistics.data.gov.uk/id/local-authority/00FC),Childrens Services,Safeguard & Early Help,Head Of Safeguarding,Other Agencies,Section 17,PJ125,23/02/2022,713986,300,REVENUE,COOPERS REMOVALS AND STORAGE,130652
North East Lincolnshire Council,http://statistics.data.gov.uk/id/local-authority/00FC),Childrens Services,Safeguard & Early Help,Head Of Safeguarding,Other Agencies,Section 17,PJ125,15/02/2022,712236,1871.52,REVENUE,REDACTED PERSONAL INFORMATION,REDACTED PERSONAL INFORMATION
North East Lincolnshire Council,http://statistics.data.gov.uk/id/local-authority/00FC),Childrens Services,Safeguard & Early Help,Head Of Safeguarding,Other Agencies,Section 17,PJ125,15/02/2022,712238,1403.64,REVENUE,REDACTED PERSONAL INFORMATION,REDACTED PERSONAL INFORMATION
North East Lincolnshire Council,http://statistics.data.gov.uk/id/local-authority/00FC),Childrens Services,Safeguard & Early Help,Head Of Safeguarding,Direct Employee Expenses,Agency Staff,EA105,01/02/2022,709698,3245,REVENUE,ATTENTI CONSULTING,146503
North East Lincolnshire Council,http://statistics.data.gov.uk/id/local-authority/00FC),Childrens Services,Safeguard & Early Help,Head Of Safeguarding,Direct Employee Expenses,Agency Staff,EA105,14/02/2022,710387,3245,REVENUE,ATTENTI CONSULTING,146503
North East Lincolnshire Council,http://statistics.data.gov.uk/id/local-authority/00FC),Childrens Services,Safeguard & Early Help,Head Of Safeguarding,Direct Employee Expenses,Agency Staff,EA105,15/02/2022,711689,3245,REVENUE,ATTENTI CONSULTING,146503
North East Lincolnshire Council,http://statistics.data.gov.uk/id/local-authority/00FC),Childrens Services,Safeguard & Early Help,Head Of Safeguarding,Direct Employee Expenses,Agency Staff,EA105,17/02/2022,712685,3245,REVENUE,ATTENTI CONSULTING,146503
North East Lincolnshire Council,http://statistics.data.gov.uk/id/local-authority/00FC),Childrens Services,Safeguard & Early Help,Head Of Safeguarding,Direct Employee Expenses,Agency Staff,EA105,25/02/2022,713989,3245,REVENUE,ATTENTI CONSULTING,146503
North East Lincolnshire Council,http://statistics.data.gov.uk/id/local-authority/00FC),Childrens Services,Safeguard & Early Help,Head Of Safeguarding,Direct Employee Expenses,Agency Staff,EA105,01/02/2022,710293,1517,REVENUE,ESSENTIAL SAFEGUARDING,147739
North East Lincolnshire Council,http://statistics.data.gov.uk/id/local-authority/00FC),Childrens Services,Safeguard & Early Help,Head Of Safeguarding,Direct Employee Expenses,Agency Staff,EA105,15/02/2022,712337,1517,REVENUE,ESSENTIAL SAFEGUARDING,147739
North East Lincolnshire Council,http://statistics.data.gov.uk/id/local-authority/00FC),Childrens Services,Safeguard & Early Help,Head Of Safeguarding,Direct Employee Expenses,Agency Staff,EA105,17/02/2022,713142,1517,REVENUE,ESSENTIAL SAFEGUARDING,147739
North East Lincolnshire Council,http://statistics.data.gov.uk/id/local-authority/00FC),Childrens Services,Safeguard & Early Help,Head Of Safeguarding,Direct Employee Expenses,Agency Staff,EA105,21/02/2022,713228,909,REVENUE,ESSENTIAL SAFEGUARDING,147739
North East Lincolnshire Council,http://statistics.data.gov.uk/id/local-authority/00FC),Childrens Services,Safeguard & Early Help,Head Of Safeguarding,Direct Employee Expenses,Agency Staff,EA105,14/02/2022,711968,967.6,REVENUE,ATTENTI CONSULTING,146503
North East Lincolnshire Council,http://statistics.data.gov.uk/id/local-authority/00FC),Childrens Services,Safeguard & Early Help,Head Of Safeguarding,Direct Employee Expenses,Agency Staff,EA105,14/02/2022,711969,1548.16,REVENUE,ATTENTI CONSULTING,146503
North East Lincolnshire Council,http://statistics.data.gov.uk/id/local-authority/00FC),Childrens Services,Safeguard & Early Help,Head Of Safeguarding,Direct Employee Expenses,Agency Staff,EA105,14/02/2022,711970,1596.54,REVENUE,ATTENTI CONSULTING,146503
North East Lincolnshire Council,http://statistics.data.gov.uk/id/local-authority/00FC),Childrens Services,Safeguard & Early Help,Head Of Safeguarding,Direct Employee Expenses,Agency Staff,EA105,14/02/2022,711685,1596.54,REVENUE,ATTENTI CONSULTING,146503
North East Lincolnshire Council,http://statistics.data.gov.uk/id/local-authority/00FC),Childrens Services,Safeguard & Early Help,Head Of Safeguarding,Direct Employee Expenses,Agency Staff,EA105,14/02/2022,711971,1741.68,REVENUE,ATTENTI CONSULTING,146503
North East Lincolnshire Council,http://statistics.data.gov.uk/id/local-authority/00FC),Childrens Services,Safeguard & Early Help,Head Of Safeguarding,Direct Employee Expenses,Agency Staff,EA105,21/02/2022,712680,1790.06,REVENUE,ATTENTI CONSULTING,146503
North East Lincolnshire Council,http://statistics.data.gov.uk/id/local-authority/00FC),Childrens Services,Safeguard & Early Help,Head Of Safeguarding,Direct Employee Expenses,Agency Staff,EA105,25/02/2022,713987,1548.16,REVENUE,ATTENTI CONSULTING,146503
North East Lincolnshire Council,http://statistics.data.gov.uk/id/local-authority/00FC),Childrens Services,Safeguard & Early Help,Head Of Safeguarding,Direct Employee Expenses,Agency Staff,EA105,22/02/2022,713450,3245,REVENUE,ATTENTI CONSULTING,146503
North East Lincolnshire Council,http://statistics.data.gov.uk/id/local-authority/00FC),Childrens Services,Safeguard & Early Help,Court And Cp Service,Miscellaneous Expenses,Activities - Service Users,LL114,22/02/2022,1008642,276.68,REVENUE,REDACTED PERSONAL INFORMATION,REDACTED PERSONAL INFORMATION
North East Lincolnshire Council,http://statistics.data.gov.uk/id/local-authority/00FC),Childrens Services,Safeguard & Early Help,Court And Cp Service,Direct Employee Expenses,Agency Staff,EA105,17/02/2022,713139,452.25,REVENUE,ICS OPERATIONS LTD,141788
North East Lincolnshire Council,http://statistics.data.gov.uk/id/local-authority/00FC),Childrens Services,Safeguard & Early Help,Court And Cp Service,Direct Employee Expenses,Agency Staff,EA105,17/02/2022,713140,30092.85,REVENUE,ICS OPERATIONS LTD,141788
North East Lincolnshire Council,http://statistics.data.gov.uk/id/local-authority/00FC),Childrens Services,Safeguard & Early Help,Court And Cp Service,Direct Employee Expenses,Agency Staff,EA105,17/02/2022,713141,32387.31,REVENUE,ICS OPERATIONS LTD,141788
North East Lincolnshire Council,http://statistics.data.gov.uk/id/local-authority/00FC),Childrens Services,Safeguard & Early Help,Court And Cp Service,Direct Employee Expenses,Agency Staff,EA105,17/02/2022,713143,26991.88,REVENUE,ICS OPERATIONS LTD,141788
North East Lincolnshire Council,http://statistics.data.gov.uk/id/local-authority/00FC),Childrens Services,Safeguard & Early Help,Court And Cp Service,Direct Employee Expenses,Agency Staff,EA105,24/02/2022,713827,34254.86,REVENUE,ICS OPERATIONS LTD,141788
North East Lincolnshire Council,http://statistics.data.gov.uk/id/local-authority/00FC),Childrens Services,Safeguard & Early Help,Court And Cp Service,Direct Employee Expenses,Agency Staff,EA105,24/02/2022,713832,26991.88,REVENUE,ICS OPERATIONS LTD,141788
North East Lincolnshire Council,http://statistics.data.gov.uk/id/local-authority/00FC),Childrens Services,Safeguard & Early Help,Court And Cp Service,Direct Employee Expenses,Agency Staff,EA105,25/02/2022,713994,3000,REVENUE,ATTENTI CONSULTING,146503
North East Lincolnshire Council,http://statistics.data.gov.uk/id/local-authority/00FC),Childrens Services,Safeguard & Early Help,Court And Cp Service,Direct Employee Expenses,Agency Staff,EA105,22/02/2022,713451,58665.36,REVENUE,PARADIGM PROFESSIONAL CONSULTANCY LTD,129224
North East Lincolnshire Council,http://statistics.data.gov.uk/id/local-authority/00FC),Childrens Services,Safeguard & Early Help,Court And Cp Service,Direct Employee Expenses,Agency Staff,EA105,22/02/2022,713452,77155,REVENUE,PARADIGM PROFESSIONAL CONSULTANCY LTD,129224
North East Lincolnshire Council,http://statistics.data.gov.uk/id/local-authority/00FC),Childrens Services,Safeguard & Early Help,Court And Cp Service,Direct Employee Expenses,Agency Staff,EA105,23/02/2022,713898,250,REVENUE,SIMPSON MILLAR LLP,137357
North East Lincolnshire Council,http://statistics.data.gov.uk/id/local-authority/00FC),Childrens Services,Safeguard & Early Help,Court And Cp Service,Indirect Employee Expenses,Removal Expenses - Employees,EB111,17/02/2022,1008303,689,REVENUE,REDACTED PERSONAL INFORMATION,REDACTED PERSONAL INFORMATION
North East Lincolnshire Council,http://statistics.data.gov.uk/id/local-authority/00FC),Childrens Services,Safeguard & Early Help,Court And Cp Service,Direct Transport Costs,Hired Transport - Employees,JA101,16/02/2022,710928,382.07,REVENUE,READY RENT A CAR,100557
North East Lincolnshire Council,http://statistics.data.gov.uk/id/local-authority/00FC),Childrens Services,Safeguard & Early Help,Court And Cp Service,Public Transport,Public Transport - Employees,JD101,15/02/2022,712312,302.07,REVENUE,CLICK TRAVEL,127476
North East Lincolnshire Council,http://statistics.data.gov.uk/id/local-authority/00FC),Childrens Services,Safeguard & Early Help,Court And Cp Service,Public Transport,Public Transport - Serv User,JD102,15/02/2022,712312,807.51,REVENUE,CLICK TRAVEL,127476
North East Lincolnshire Council,http://statistics.data.gov.uk/id/local-authority/00FC),Childrens Services,Safeguard & Early Help,Court And Cp Service,Public Transport,Public Transport - Serv User,JD102,15/02/2022,712312,839.6,REVENUE,CLICK TRAVEL,127476
North East Lincolnshire Council,http://statistics.data.gov.uk/id/local-authority/00FC),Childrens Services,Safeguard & Early Help,Court And Cp Service,Public Transport,Public Transport - Serv User,JD102,15/02/2022,1006227,763.8,REVENUE,REDACTED PERSONAL INFORMATION,REDACTED PERSONAL INFORMATION
North East Lincolnshire Council,http://statistics.data.gov.uk/id/local-authority/00FC),Childrens Services,Safeguard & Early Help,Court And Cp Service,Miscellaneous Expenses,Legal Fees - General,LL103,01/02/2022,709844,250,REVENUE,RIDLEY & HALL SOLICITORS,127524
North East Lincolnshire Council,http://statistics.data.gov.uk/id/local-authority/00FC),Childrens Services,Safeguard & Early Help,Court And Cp Service,Miscellaneous Expenses,Legal Fees - General,LL103,21/02/2022,713291,250,REVENUE,SILLS & BETTERIDGE LINCOLN,143536
North East Lincolnshire Council,http://statistics.data.gov.uk/id/local-authority/00FC),Childrens Services,Safeguard & Early Help,Court And Cp Service,Miscellaneous Expenses,Legal Fees - General,LL103,21/02/2022,713282,5000,REVENUE,MORGAN ASSESSMENTS LTD,148355
North East Lincolnshire Council,http://statistics.data.gov.uk/id/local-authority/00FC),Childrens Services,Safeguard & Early Help,Court And Cp Service,Miscellaneous Expenses,Legal Fees - General,LL103,22/02/2022,713280,800,REVENUE,MORGAN ASSESSMENTS LTD,148355
North East Lincolnshire Council,http://statistics.data.gov.uk/id/local-authority/00FC),Childrens Services,Safeguard & Early Help,Court And Cp Service,Miscellaneous Expenses,Other Expenses General,LL119,15/02/2022,712249,508.2,REVENUE,AA RADIO CARS LTD,101222
North East Lincolnshire Council,http://statistics.data.gov.uk/id/local-authority/00FC),Childrens Services,Safeguard & Early Help,Court And Cp Service,Private Contractors,Third Party Prov - Private,PH101,11/02/2022,712005,2380,REVENUE,REDACTED PERSONAL INFORMATION,REDACTED PERSONAL INFORMATION
North East Lincolnshire Council,http://statistics.data.gov.uk/id/local-authority/00FC),Childrens Services,Safeguard & Early Help,Court And Cp Service,Other Agencies,Childminders/Nurseries/Playgrp,PJ127,01/02/2022,710246,303.5,REVENUE,REDACTED PERSONAL INFORMATION,REDACTED PERSONAL INFORMATION
North East Lincolnshire Council,http://statistics.data.gov.uk/id/local-authority/00FC),Childrens Services,Safeguard & Early Help,Court And Cp Service,Other Agencies,Childminders/Nurseries/Playgrp,PJ127,01/02/2022,710360,1493.28,REVENUE,REDACTED PERSONAL INFORMATION,REDACTED PERSONAL INFORMATION
North East Lincolnshire Council,http://statistics.data.gov.uk/id/local-authority/00FC),Childrens Services,Safeguard & Early Help,Court And Cp Service,Other Agencies,Childminders/Nurseries/Playgrp,PJ127,23/02/2022,713865,940.8,REVENUE,REDACTED PERSONAL INFORMATION,REDACTED PERSONAL INFORMATION
